{"text_format":"1","workbook":"xlsx","n_sheets":12,"sheets":["Premisas","Periodos","Data","Contenido","Resumen de Validaciones","110000 - Carátula","110010 - Administradores","110010 GeneraXBRL","Lists","210000 - Est. Situa. Financiera","310000 - Est. Resultados","Anotaciones"],"not_rendered":{"charts":0,"images":6,"macros":1,"external_links":0,"defined_names":79,"comments":4,"pivot_tables":0},"unopened":[],"bounds":{"document_bytes":16777216,"sheet_cells":100000,"rows_first":2000,"rows_last":500,"rows_between":2000,"halvings":0,"cell_chars":16384,"cell_head_chars":4096},"cells_cut":0,"cells_raw":0,"read":"whole","date_system":"1900"}

{"sheet":"Premisas","index":0,"n_rows":30,"n_cols":21,"rows_kept":30,"cut":false,"hidden":true,"merged":[]}
[null,null,null,null,null,null,null,null,null,null,null,null,null,null,null,null,null,null,"Codename","Visible","Pwd"]
["Formulas",null,"Trama SD","Trama Omitir","Trama Ignorar",null,null,null,null,null,null,null,"aHojas:",null,null,"Exclusiones:",null,null,"Hoja00",0,false]
[{"$f":"IF(G3=\"\",\"/*\",\"\")","v":"/*"},null,null,null,null,null,null,null,null,null,null,null,null,null,null,"Premisas;Contenido;Resumen de Validaciones;Data",null,null,"Hoja03",0,false]
[null,null,null,null,null,null,null,null,null,null,null,null,null,null,null,null,null,null,"Hoja01",2,false]
["OutPutRange",null,null,null,null,null,null,null,null,null,null,null,null,null,null,null,null,null,"Hoja2",-1,true]
["Encabezado del documento:",{"$f":"Data!$B$5:$B$13","v":"xmlns:link = 'http://www.xbrl.org/2003/linkbase'"},null,null,null,null,null,null,null,null,null,null,null,null,null,null,null,null,"Hoja6",-1,true]
["Referencia al esquema:",{"$f":"Data!$B$14","v":"link:schemaRef xlink:type='simple' xlink:href='https://www.supervigilancia.gov.co/tools/Taxonomias/2020-12-31/Grupo3_2020-12-31.xsd'"},null,null,null,null,null,null,null,null,null,null,null,null,null,null,null,null,"Hoja4",-1,true]
["Centro del documento:",{"$f":"Data!B15:B21","v":{"$error":"#VALUE!"}},null,null,null,null,null,null,null,null,null,null,null,null,null,null,null,null,"Hoja12",-1,true]
["Cierre de instancia:",{"$f":"Data!B23","v":"</xbrli:xbrl>"},null,null,null,null,null,null,null,null,null,null,null,null,null,null,null,null,"Hoja13",0,false]
["Idioma del pie:",{"$f":"Data!B22","v":"\"en\""},null,null,null,null,null,null,null,null,null,null,null,null,null,null,null,null,"Hoja1",2,false]
[null,null,null,null,null,null,null,null,null,null,null,null,null,null,null,null,null,null,"Hoja9",-1,true]
["Versión InExX:","Ver 2.0",null,null,null,null,null,null,null,null,null,null,null,null,null,null,null,null,"Hoja5",-1,true]
["Versión Plantilla:",{"$f":"Contenido!D8","v":"Versión de la Plantilla: 1.0"}]
["Valida:","Si"]
["Conteo:",{"$f":"'Resumen de Validaciones'!G18","v":36}]
["Ruta web del punto de entrada","https://www.supervigilancia.gov.co/tools/Taxonomias/2020-12-31/Grupo3_2020-12-31.xsd"]
["Nit",{"$f":"IF('110000 - Carátula'!F16=\"\",\"000000000\",'110000 - Carátula'!F16)","v":"000000000"}]
["Fecha de Corte",{"$f":"'110000 - Carátula'!F18","v":"2020-12-31"}]
["Grupo o Punto de entrada","Grupo 3"]
["Nombre del archivo",{"$f":"\"N\"&cHNIT&\"A\"&MID(YEAR(cHFechaCorte),3,2)&\"G\"&MID(cHTx,7,1)&\".xbrl\"","v":"N000000000A20G3.xbrl"}]
[]
["Texto 1","Esta herramienta es una opción que facilita a los vigilados pertenecientes al "]
["Texto 2"," de aplicación de normatividad financiera de la Superintendencia de Vigilancia y Seguridad Privada, la generación de los archivos (instancias) XBRL que la entidad requiere como parte de la presentación de la información financiera para el corte a diciembre 31 de 2020."]
[]
[]
["Local address"]
[{"$f":"'110000 - Carátula'!$E$13","v":0}]
[{"$f":"'110010 GeneraXBRL'!$D$10","v":"co-svsp-core:AdministradoresEje"}]
[{"$f":"'210000 - Est. Situa. Financiera'!$E$13","v":0}]
[{"$f":"'310000 - Est. Resultados'!$E$13","v":0}]

{"sheet":"Periodos","index":1,"n_rows":11,"n_cols":5,"rows_kept":11,"cut":false,"hidden":true,"merged":[]}
[]
[null,"Time map","Periodo 1","Periodo 2","Periodo 3"]
[null,"Fecha inicio periodo:","2020-01-01","2019-01-01","2018-01-01"]
[null,"Fecha final periodo:","2020-12-31","2019-12-31","2018-12-31"]
[]
[]
[null,"Validaciones"]
[null,"CARÁTULA",{"$f":"'110000 - Carátula'!L13","v":25}]
[null,"ADMINISTRADORES",{"$f":"+'110010 - Administradores'!Q13","v":2}]
[null,"ESTADO DE SITUACIÓN FINANCIERA",{"$f":"'210000 - Est. Situa. Financiera'!O13","v":0}]
[null,"ESTADO DE RESULTADOS",{"$f":"'310000 - Est. Resultados'!L13","v":0}]

{"sheet":"Data","index":2,"n_rows":253,"n_cols":25,"rows_kept":253,"cut":false,"hidden":true,"merged":[]}
["RowId","Footnote","Local Primary Item","Primary Item","Decimals","UnitRef","Fact","Identifier","IdentifierSchema","PeriodInitDuration","PeriodEndInstant","Dimension","DimensionMember","Dimension","DimensionMember","Dimension","DimensionMember","Dimension","DimensionMember","Dimension","DimensionMember","Dimension","DimensionMember","Dimension","DimensionMember"]
["/* "]
["/* "]
["/*"]
["/**OutputHeader","xmlns:xbrli = 'http://www.xbrl.org/2003/instance'"]
["/**OutputHeader","xmlns:link = 'http://www.xbrl.org/2003/linkbase'"]
["/**OutputHeader","xmlns:xlink = 'http://www.w3.org/1999/xlink'"]
["/**OutputHeader","xmlns:xsi='http://www.w3.org/2001/XMLSchema-instance'"]
["/**OutputHeader","xmlns:iso4217='http://www.xbrl.org/2003/iso4217'"]
["/**OutputHeader","xmlns:xbrldi='http://xbrl.org/2006/xbrldi'"]
["/**OutputHeader","xmlns:rsu='http://www.reportingstandard.com/userDefinedUnits'"]
["/**OutputHeader","xmlns:co-svsp-core='http://www.supervigilancia.gov.co/tools/Taxonomias/2020-12-31/'"]
["/**OutputHeader","xmlns:co-svsp-core-g3='http://www.supervigilancia.gov.co/tools/Taxonomias/2020-12-31/grupo3/'"]
["/**OutputHeader",{"$f":"\"link:schemaRef xlink:type='simple' xlink:href='\"&cHRef&\"'\"","v":"link:schemaRef xlink:type='simple' xlink:href='https://www.supervigilancia.gov.co/tools/Taxonomias/2020-12-31/Grupo3_2020-12-31.xsd'"}]
["/**OutputMiddle","<xbrli:unit id=\"peso\">\n<xbrli:measure>iso4217:COP</xbrli:measure>\n</xbrli:unit>",null,"<xbrli:unit id=\"peso\">\n<xbrli:measure>iso4217:","COP","</xbrli:measure>\n</xbrli:unit>"]
["/**OutputMiddle","<xbrli:unit id=\"entero\">\n<xbrli:measure>xbrli:pure</xbrli:measure>\n</xbrli:unit>",null,"<xbrli:unit id=\"entero\">\n<xbrli:measure>xbrli:","pure","</xbrli:measure>\n</xbrli:unit>"]
["/**OutputMiddle","<xbrli:unit id=\"pesoXaccion\">    <xbrli:divide>\n      <xbrli:unitNumerator>\n      <xbrli:measure>iso4217:COP</xbrli:measure>\n      </xbrli:unitNumerator>\n      <xbrli:unitDenominator>\n      <xbrli:measure>xbrli:shares</xbrli:measure>\n      </xbrli:unitDenominator>\n    </xbrli:divide>\n</xbrli:unit>",null,"<xbrli:unit id=\"pesoXaccion\">","    <xbrli:divide>\n      <xbrli:unitNumerator>\n      <xbrli:measure>iso4217:COP</xbrli:measure>\n      </xbrli:unitNumerator>\n      <xbrli:unitDenominator>\n      <xbrli:measure>xbrli:shares</xbrli:measure>\n      </xbrli:unitDenominator>\n    </xbrli:divide>\n","</xbrli:unit>"]
["/**OutputMiddle","<xbrli:unit id=\"porcentaje\">\n<xbrli:measure>xbrli:pure</xbrli:measure>\n</xbrli:unit>",null,"<xbrli:unit id=\"porcentaje\">\n<xbrli:measure>xbrli:","pure","</xbrli:measure>\n</xbrli:unit>"]
["/**OutputMiddle","<xbrli:unit id=\"decimal\">\n<xbrli:measure>xbrli:pure</xbrli:measure>\n</xbrli:unit>",null,"<xbrli:unit id=\"decimal\">\n<xbrli:measure>xbrli:","pure","</xbrli:measure>\n</xbrli:unit>"]
["/**OutputMiddle","<xbrli:unit id=\"acciones\">\n<xbrli:measure>xbrli:shares</xbrli:measure>\n</xbrli:unit>",null,"<xbrli:unit id=\"acciones\">\n<xbrli:measure>xbrli:","shares","</xbrli:measure>\n</xbrli:unit>"]
["/**OutputMiddle","<xbrli:unit id=\"indefinido\">\n<xbrli:measure>rsu:undefined</xbrli:measure>\n</xbrli:unit>",null,"<xbrli:unit id=\"indefinido\">\n<xbrli:measure>xbrli:","rsu:undefined","</xbrli:measure>\n</xbrli:unit>"]
["/**FootnoteLang","\"en\""]
["/**OutputTail","</xbrli:xbrl>"]
["/*"]
[null,"_1-peso",null,null,0,"peso",null,{"$f":"hwNIT","v":0},"http://www.xbrl.org/scheme/companyName"]
[null,"_2-vacio",null,null,null,null,null,0,"http://www.xbrl.org/scheme/companyName"]
[null,"_3-entero",null,null,0,"entero",null,0,"http://www.xbrl.org/scheme/companyName"]
[null,"_4-pesoXaccion",null,null,"INF","pesoXaccion",null,0,"http://www.xbrl.org/scheme/companyName"]
[null,"_5-porcentaje",null,null,"INF","porcentaje",null,0,"http://www.xbrl.org/scheme/companyName"]
[null,"_6-decimal",null,null,"INF","decimal",null,0,"http://www.xbrl.org/scheme/companyName"]
[null,"_7-acciones",null,null,"INF","acciones",null,0,"http://www.xbrl.org/scheme/companyName"]
[null,"_8-pesomillares",null,null,0,"peso",null,0,"http://www.xbrl.org/scheme/companyName"]
["/*"]
[{"$f":"IF(G34=\"\",\"/*\",\"\")","v":"/*"}]
["/*",null,"110000 - Carátula"]
["/*",null,"--01--"]
["/*",null,{"$f":"'110000 - Carátula'!$E$14","v":"Carátula"},{"$f":"'110000 - Carátula'!$D$14","v":"co-svsp-core:Caratula"}]
["/*",null,{"$f":"'110000 - Carátula'!$E$15","v":"Datos Básicos"},{"$f":"'110000 - Carátula'!$D$15","v":"co-svsp-core:DatosBasicos"}]
["",null,{"$f":"'110000 - Carátula'!$E$16","v":"NIT"},{"$f":"'110000 - Carátula'!$D$16","v":"co-svsp-core:NIT"},null,null,{"$f":"'110000 - Carátula'!$F$16","v":0},999999999,"http://www.xbrl.org/scheme/companyName",null,{"$f":"Periodos!$C$4","v":"2020-12-31"}]
["",null,{"$f":"'110000 - Carátula'!$E$17","v":"DV"},{"$f":"'110000 - Carátula'!$D$17","v":"co-svsp-core:DV"},null,null,{"$f":"'110000 - Carátula'!$F$17","v":0},999999999,"http://www.xbrl.org/scheme/companyName",null,{"$f":"Periodos!$C$4","v":"2020-12-31"}]
["",null,{"$f":"'110000 - Carátula'!$E$18","v":"Fecha de Corte"},{"$f":"'110000 - Carátula'!$D$18","v":"co-svsp-core:FechadeCorte"},null,null,{"$f":"'110000 - Carátula'!$F$18","v":"2020-12-31"},999999999,"http://www.xbrl.org/scheme/companyName",null,{"$f":"Periodos!$C$4","v":"2020-12-31"}]
["",null,{"$f":"'110000 - Carátula'!$E$19","v":"Se reunió el máximo Órgano Social para considerar los Estados Financieros"},{"$f":"'110000 - Carátula'!$D$19","v":"co-svsp-core:SereunioelmaximoOrganoSocialparaconsiderarlosEstadosFinancieros"},null,null,{"$f":"'110000 - Carátula'!$F$19","v":0},999999999,"http://www.xbrl.org/scheme/companyName",null,{"$f":"Periodos!$C$4","v":"2020-12-31"}]
["/*",null,{"$f":"'110000 - Carátula'!$E$20","v":"Acta Número"},{"$f":"'110000 - Carátula'!$D$20","v":"co-svsp-core:ActaNumero"}]
["/*",null,{"$f":"'110000 - Carátula'!$E$21","v":"Fecha del Acta"},{"$f":"'110000 - Carátula'!$D$21","v":"co-svsp-core:FechadelActa"}]
["/*",null,{"$f":"'110000 - Carátula'!$E$22","v":"Fueron aprobados en Asamblea General de Accionistas o la Junta de Socios"},{"$f":"'110000 - Carátula'!$D$22","v":"co-svsp-core:FueronaprobadosenAsambleaGeneraldeAccionistasolaJuntadeSocios"}]
["/*",null,{"$f":"'110000 - Carátula'!$E$23","v":"Información General"},{"$f":"'110000 - Carátula'!$D$23","v":"co-svsp-core:InformacionGeneral"}]
["",null,{"$f":"'110000 - Carátula'!$E$24","v":"Razón Social"},{"$f":"'110000 - Carátula'!$D$24","v":"co-svsp-core:RazonSocial"},null,null,{"$f":"'110000 - Carátula'!$F$24","v":0},999999999,"http://www.xbrl.org/scheme/companyName",null,{"$f":"Periodos!$C$4","v":"2020-12-31"}]
["",null,{"$f":"'110000 - Carátula'!$E$25","v":"Objeto Social Principal"},{"$f":"'110000 - Carátula'!$D$25","v":"co-svsp-core:ObjetoSocialPrincipal"},null,null,{"$f":"'110000 - Carátula'!$F$25","v":0},999999999,"http://www.xbrl.org/scheme/companyName",null,{"$f":"Periodos!$C$4","v":"2020-12-31"}]
["",null,{"$f":"'110000 - Carátula'!$E$26","v":"Clasificación Industrial Internacional Uniforme Versión 4 A.C"},{"$f":"'110000 - Carátula'!$D$26","v":"co-svsp-core:ClasificacionIndustrialInternacionalUniformeVersion4AC"},null,null,{"$f":"'110000 - Carátula'!$F$26","v":0},999999999,"http://www.xbrl.org/scheme/companyName",null,{"$f":"Periodos!$C$4","v":"2020-12-31"}]
["",null,{"$f":"'110000 - Carátula'!$E$27","v":"Grupo de Preparadores de Información Financiera"},{"$f":"'110000 - Carátula'!$D$27","v":"co-svsp-core:GrupodePreparadoresdeInformacionFinanciera"},null,null,{"$f":"'110000 - Carátula'!$F$27","v":0},999999999,"http://www.xbrl.org/scheme/companyName",null,{"$f":"Periodos!$C$4","v":"2020-12-31"}]
["",null,{"$f":"'110000 - Carátula'!$E$28","v":"Naturaleza de la Empresa"},{"$f":"'110000 - Carátula'!$D$28","v":"co-svsp-core:NaturalezadelaEmpresa"},null,null,{"$f":"'110000 - Carátula'!$F$28","v":0},999999999,"http://www.xbrl.org/scheme/companyName",null,{"$f":"Periodos!$C$4","v":"2020-12-31"}]
["",null,{"$f":"'110000 - Carátula'!$E$29","v":"Tipo Societario"},{"$f":"'110000 - Carátula'!$D$29","v":"co-svsp-core:TipoSocietario"},null,null,{"$f":"'110000 - Carátula'!$F$29","v":0},999999999,"http://www.xbrl.org/scheme/companyName",null,{"$f":"Periodos!$C$4","v":"2020-12-31"}]
["",null,{"$f":"'110000 - Carátula'!$E$30","v":"Estado de la Empresa"},{"$f":"'110000 - Carátula'!$D$30","v":"co-svsp-core:EstadoDeLaEmpresa"},null,null,{"$f":"'110000 - Carátula'!$F$30","v":0},999999999,"http://www.xbrl.org/scheme/companyName",null,{"$f":"Periodos!$C$4","v":"2020-12-31"}]
["",null,{"$f":"'110000 - Carátula'!$E$31","v":"Dirección de Notificación Judicial"},{"$f":"'110000 - Carátula'!$D$31","v":"co-svsp-core:DirecciondeNotificacionJudicial"},null,null,{"$f":"'110000 - Carátula'!$F$31","v":0},999999999,"http://www.xbrl.org/scheme/companyName",null,{"$f":"Periodos!$C$4","v":"2020-12-31"}]
["",null,{"$f":"'110000 - Carátula'!$E$32","v":"Departamento de Notificación Judicial"},{"$f":"'110000 - Carátula'!$D$32","v":"co-svsp-core:DepartamentodeNotificacionJudicial"},null,null,{"$f":"'110000 - Carátula'!$F$32","v":0},999999999,"http://www.xbrl.org/scheme/companyName",null,{"$f":"Periodos!$C$4","v":"2020-12-31"}]
["",null,{"$f":"'110000 - Carátula'!$E$33","v":"Ciudad de Notificación Judicial"},{"$f":"'110000 - Carátula'!$D$33","v":"co-svsp-core:CiudaddeNotificacionJudicial"},null,null,{"$f":"'110000 - Carátula'!$F$33","v":0},999999999,"http://www.xbrl.org/scheme/companyName",null,{"$f":"Periodos!$C$4","v":"2020-12-31"}]
["",null,{"$f":"'110000 - Carátula'!$E$34","v":"Correo electrónico de notificación"},{"$f":"'110000 - Carátula'!$D$34","v":"co-svsp-core:CorreoElectronicoDeNotificacion"},null,null,{"$f":"'110000 - Carátula'!$F$34","v":0},null,null,null,{"$f":"Periodos!$C$4","v":"2020-12-31"}]
["",null,{"$f":"'110000 - Carátula'!$E$36","v":"Celular"},{"$f":"'110000 - Carátula'!$D$36","v":"co-svsp-core:Celular"},null,null,{"$f":"'110000 - Carátula'!$F$36","v":0},999999999,"http://www.xbrl.org/scheme/companyName",null,{"$f":"Periodos!$C$4","v":"2020-12-31"}]
["",null,{"$f":"'110000 - Carátula'!$E$37","v":"Teléfono Fijo"},{"$f":"'110000 - Carátula'!$D$37","v":"co-svsp-core:TelefonoFijo"},null,null,{"$f":"'110000 - Carátula'!$F$37","v":0},999999999,"http://www.xbrl.org/scheme/companyName",null,{"$f":"Periodos!$C$4","v":"2020-12-31"}]
["/*",null,{"$f":"'110000 - Carátula'!$E$38","v":"Información ante Supervigilancia"},{"$f":"'110000 - Carátula'!$D$38","v":"co-svsp-core:InformacionAnteSupervigilancia"}]
["",null,{"$f":"'110000 - Carátula'!$E$39","v":"Estado de Licencia de Funcionamiento"},{"$f":"'110000 - Carátula'!$D$39","v":"co-svsp-core:EstadoDeLicenciaDeFuncionamiento"},null,null,{"$f":"'110000 - Carátula'!$F$39","v":0},999999999,"http://www.xbrl.org/scheme/companyName",null,{"$f":"Periodos!$C$4","v":"2020-12-31"}]
["",null,{"$f":"'110000 - Carátula'!$E$40","v":"Tipo de Servicio"},{"$f":"'110000 - Carátula'!$D$40","v":"co-svsp-core:TipoDeServicio"},null,null,{"$f":"'110000 - Carátula'!$F$40","v":0},999999999,"http://www.xbrl.org/scheme/companyName",null,{"$f":"Periodos!$C$4","v":"2020-12-31"}]
["/*",null,{"$f":"'110000 - Carátula'!$E$41","v":"Información sobre la Revisoría Fiscal"},{"$f":"'110000 - Carátula'!$D$41","v":"co-svsp-core:InformacionSobreLaRevisoriaFiscal"}]
["",null,{"$f":"'110000 - Carátula'!$E$42","v":"¿La compañía esta obligada a tener revisor fiscal?"},{"$f":"'110000 - Carátula'!$D$42","v":"co-svsp-core:LaCompaniaEstaObligadaARevisorFiscal"},null,null,{"$f":"'110000 - Carátula'!$F$42","v":0},999999999,"http://www.xbrl.org/scheme/companyName",null,{"$f":"Periodos!$C$4","v":"2020-12-31"}]
["/*",null,{"$f":"'110000 - Carátula'!$E$43","v":"¿El revisor fiscal pertenece a una firma?"},{"$f":"'110000 - Carátula'!$D$43","v":"co-svsp-core:RevisorFiscalPerteneceAFirma"}]
["/*",null,{"$f":"'110000 - Carátula'!$E$44","v":"¿A que firma pertenece el revisor fiscal?"},{"$f":"'110000 - Carátula'!$D$44","v":"co-svsp-core:RazonSocialRevisorFiscalPersonaJurídica"}]
["/*",null,{"$f":"'110000 - Carátula'!$E$45","v":"Dirección de Domicilio de la firma a la cual pertenece el revisor fiscal"},{"$f":"'110000 - Carátula'!$D$45","v":"co-svsp-core:DirecciondeDomicilioRevisorFiscalPersonaJurídica"}]
["/*",null,{"$f":"'110000 - Carátula'!$E$46","v":"Registro en la Junta Central de Contadores del Revisor fiscal"},{"$f":"'110000 - Carátula'!$D$46","v":"co-svsp-core:RegistroJCCRevisorFiscalPersonaJurídica"}]
["/*",null,{"$f":"'110000 - Carátula'!$E$47","v":"Información sobre consolidación de Estados Financieros"},{"$f":"'110000 - Carátula'!$D$47","v":"co-svsp-core:InformacionSobreConsolidacionDeEstadosFinancieros"}]
["",null,{"$f":"'110000 - Carátula'!$E$48","v":"¿La compañía es responsable de consolidar información para este periodo?"},{"$f":"'110000 - Carátula'!$D$48","v":"co-svsp-core:LaCompaniaEsResponsableDeConsolidarInformacionParaEstePeriodo"},null,null,{"$f":"'110000 - Carátula'!$F$48","v":0},999999999,"http://www.xbrl.org/scheme/companyName",null,{"$f":"Periodos!$C$4","v":"2020-12-31"}]
["",null,{"$f":"'110000 - Carátula'!$E$49","v":"¿La compañía es subordinada o asociada de otra compañía?"},{"$f":"'110000 - Carátula'!$D$49","v":"co-svsp-core:LaCompaniaEsSubordinadaOAsociadaDeOtraCompania"},null,null,{"$f":"'110000 - Carátula'!$F$49","v":0},999999999,"http://www.xbrl.org/scheme/companyName",null,{"$f":"Periodos!$C$4","v":"2020-12-31"}]
["",null,{"$f":"'110000 - Carátula'!$E$50","v":"¿La compañía tiene subordinadas?"},{"$f":"'110000 - Carátula'!$D$50","v":"co-svsp-core:LaCompaniaTieneSubordinadas"},null,null,{"$f":"'110000 - Carátula'!$F$50","v":0},999999999,"http://www.xbrl.org/scheme/companyName",null,{"$f":"Periodos!$C$4","v":"2020-12-31"}]
["",null,{"$f":"'110000 - Carátula'!$E$51","v":"¿La compañía tiene asociadas?"},{"$f":"'110000 - Carátula'!$D$51","v":"co-svsp-core:LaCompaniaTieneAsociadas"},null,null,{"$f":"'110000 - Carátula'!$F$51","v":0},999999999,"http://www.xbrl.org/scheme/companyName",null,{"$f":"Periodos!$C$4","v":"2020-12-31"}]
["",null,{"$f":"'110000 - Carátula'!$E$52","v":"¿La compañía tiene negocios conjuntos?"},{"$f":"'110000 - Carátula'!$D$52","v":"co-svsp-core:LaCompaniaTieneNegociosConjuntos"},null,null,{"$f":"'110000 - Carátula'!$F$52","v":0},999999999,"http://www.xbrl.org/scheme/companyName",null,{"$f":"Periodos!$C$4","v":"2020-12-31"}]
["/*"]
["/*",null,"110010 GeneraXBRL"]
["/*",null,"--01--"]
["/*",null,{"$f":"'110010 GeneraXBRL'!$D$11","v":"Tipo de documento"},{"$f":"'110010 GeneraXBRL'!$C$11","v":"co-svsp-core:TipoDeDocumento"},null,null,{"$f":"'110010 GeneraXBRL'!$E$11","v":""},999999999,"http://www.xbrl.org/scheme/companyName",null,{"$f":"Periodos!$C$4","v":"2020-12-31"},{"$f":"'110010 GeneraXBRL'!$D$10","v":"co-svsp-core:AdministradoresEje"},{"$f":"'110010 GeneraXBRL'!$E$9","v":"co-svsp-core:RepresentantePrincipalMiembro"}]
["/*",null,{"$f":"'110010 GeneraXBRL'!$D$12","v":"Numero de documento"},{"$f":"'110010 GeneraXBRL'!$C$12","v":"co-svsp-core:NumeroDeDocumento"},null,null,{"$f":"'110010 GeneraXBRL'!$E$12","v":""},999999999,"http://www.xbrl.org/scheme/companyName",null,{"$f":"Periodos!$C$4","v":"2020-12-31"},{"$f":"'110010 GeneraXBRL'!$D$10","v":"co-svsp-core:AdministradoresEje"},{"$f":"'110010 GeneraXBRL'!$E$9","v":"co-svsp-core:RepresentantePrincipalMiembro"}]
["/*",null,{"$f":"'110010 GeneraXBRL'!$D$13","v":"Nombres"},{"$f":"'110010 GeneraXBRL'!$C$13","v":"co-svsp-core:Nombres"},null,null,{"$f":"'110010 GeneraXBRL'!$E$13","v":""},999999999,"http://www.xbrl.org/scheme/companyName",null,{"$f":"Periodos!$C$4","v":"2020-12-31"},{"$f":"'110010 GeneraXBRL'!$D$10","v":"co-svsp-core:AdministradoresEje"},{"$f":"'110010 GeneraXBRL'!$E$9","v":"co-svsp-core:RepresentantePrincipalMiembro"}]
["/*",null,{"$f":"'110010 GeneraXBRL'!$D$14","v":"Apellidos"},{"$f":"'110010 GeneraXBRL'!$C$14","v":"co-svsp-core:Apellidos"},null,null,{"$f":"'110010 GeneraXBRL'!$E$14","v":""},999999999,"http://www.xbrl.org/scheme/companyName",null,{"$f":"Periodos!$C$4","v":"2020-12-31"},{"$f":"'110010 GeneraXBRL'!$D$10","v":"co-svsp-core:AdministradoresEje"},{"$f":"'110010 GeneraXBRL'!$E$9","v":"co-svsp-core:RepresentantePrincipalMiembro"}]
["/*",null,{"$f":"'110010 GeneraXBRL'!$D$15","v":"Email"},{"$f":"'110010 GeneraXBRL'!$C$15","v":"co-svsp-core:Email"},null,null,{"$f":"'110010 GeneraXBRL'!$E$15","v":""},999999999,"http://www.xbrl.org/scheme/companyName",null,{"$f":"Periodos!$C$4","v":"2020-12-31"},{"$f":"'110010 GeneraXBRL'!$D$10","v":"co-svsp-core:AdministradoresEje"},{"$f":"'110010 GeneraXBRL'!$E$9","v":"co-svsp-core:RepresentantePrincipalMiembro"}]
["/*",null,{"$f":"'110010 GeneraXBRL'!$D$16","v":"Tarjeta profesional"},{"$f":"'110010 GeneraXBRL'!$C$16","v":"co-svsp-core:TarjetaProfesional"}]
["/*",null,"--02--"]
["/*",null,{"$f":"'110010 GeneraXBRL'!$D$11","v":"Tipo de documento"},{"$f":"'110010 GeneraXBRL'!$C$11","v":"co-svsp-core:TipoDeDocumento"},null,null,{"$f":"'110010 GeneraXBRL'!$F$11","v":""},999999999,"http://www.xbrl.org/scheme/companyName",null,{"$f":"Periodos!$C$4","v":"2020-12-31"},{"$f":"'110010 GeneraXBRL'!$D$10","v":"co-svsp-core:AdministradoresEje"},{"$f":"'110010 GeneraXBRL'!$F$9","v":"co-svsp-core:ContadorMiembro"}]
["/*",null,{"$f":"'110010 GeneraXBRL'!$D$12","v":"Numero de documento"},{"$f":"'110010 GeneraXBRL'!$C$12","v":"co-svsp-core:NumeroDeDocumento"},null,null,{"$f":"'110010 GeneraXBRL'!$F$12","v":""},999999999,"http://www.xbrl.org/scheme/companyName",null,{"$f":"Periodos!$C$4","v":"2020-12-31"},{"$f":"'110010 GeneraXBRL'!$D$10","v":"co-svsp-core:AdministradoresEje"},{"$f":"'110010 GeneraXBRL'!$F$9","v":"co-svsp-core:ContadorMiembro"}]
["/*",null,{"$f":"'110010 GeneraXBRL'!$D$13","v":"Nombres"},{"$f":"'110010 GeneraXBRL'!$C$13","v":"co-svsp-core:Nombres"},null,null,{"$f":"'110010 GeneraXBRL'!$F$13","v":""},999999999,"http://www.xbrl.org/scheme/companyName",null,{"$f":"Periodos!$C$4","v":"2020-12-31"},{"$f":"'110010 GeneraXBRL'!$D$10","v":"co-svsp-core:AdministradoresEje"},{"$f":"'110010 GeneraXBRL'!$F$9","v":"co-svsp-core:ContadorMiembro"}]
["/*",null,{"$f":"'110010 GeneraXBRL'!$D$14","v":"Apellidos"},{"$f":"'110010 GeneraXBRL'!$C$14","v":"co-svsp-core:Apellidos"},null,null,{"$f":"'110010 GeneraXBRL'!$F$14","v":""},999999999,"http://www.xbrl.org/scheme/companyName",null,{"$f":"Periodos!$C$4","v":"2020-12-31"},{"$f":"'110010 GeneraXBRL'!$D$10","v":"co-svsp-core:AdministradoresEje"},{"$f":"'110010 GeneraXBRL'!$F$9","v":"co-svsp-core:ContadorMiembro"}]
["/*",null,{"$f":"'110010 GeneraXBRL'!$D$15","v":"Email"},{"$f":"'110010 GeneraXBRL'!$C$15","v":"co-svsp-core:Email"},null,null,{"$f":"'110010 GeneraXBRL'!$F$15","v":""},999999999,"http://www.xbrl.org/scheme/companyName",null,{"$f":"Periodos!$C$4","v":"2020-12-31"},{"$f":"'110010 GeneraXBRL'!$D$10","v":"co-svsp-core:AdministradoresEje"},{"$f":"'110010 GeneraXBRL'!$F$9","v":"co-svsp-core:ContadorMiembro"}]
["/*",null,{"$f":"'110010 GeneraXBRL'!$D$16","v":"Tarjeta profesional"},{"$f":"'110010 GeneraXBRL'!$C$16","v":"co-svsp-core:TarjetaProfesional"},null,null,{"$f":"'110010 GeneraXBRL'!$F$16","v":""},999999999,"http://www.xbrl.org/scheme/companyName",null,{"$f":"Periodos!$C$4","v":"2020-12-31"},{"$f":"'110010 GeneraXBRL'!$D$10","v":"co-svsp-core:AdministradoresEje"},{"$f":"'110010 GeneraXBRL'!$F$9","v":"co-svsp-core:ContadorMiembro"}]
["/*",null,"--03--"]
["/*",null,{"$f":"'110010 GeneraXBRL'!$D$11","v":"Tipo de documento"},{"$f":"'110010 GeneraXBRL'!$C$11","v":"co-svsp-core:TipoDeDocumento"},null,null,{"$f":"'110010 GeneraXBRL'!$G$11","v":""},999999999,"http://www.xbrl.org/scheme/companyName",null,{"$f":"Periodos!$C$4","v":"2020-12-31"},{"$f":"'110010 GeneraXBRL'!$D$10","v":"co-svsp-core:AdministradoresEje"},{"$f":"'110010 GeneraXBRL'!$G$9","v":"co-svsp-core:RevisorFiscalMiembro"}]
["/*",null,{"$f":"'110010 GeneraXBRL'!$D$12","v":"Numero de documento"},{"$f":"'110010 GeneraXBRL'!$C$12","v":"co-svsp-core:NumeroDeDocumento"},null,null,{"$f":"'110010 GeneraXBRL'!$G$12","v":""},999999999,"http://www.xbrl.org/scheme/companyName",null,{"$f":"Periodos!$C$4","v":"2020-12-31"},{"$f":"'110010 GeneraXBRL'!$D$10","v":"co-svsp-core:AdministradoresEje"},{"$f":"'110010 GeneraXBRL'!$G$9","v":"co-svsp-core:RevisorFiscalMiembro"}]
["/*",null,{"$f":"'110010 GeneraXBRL'!$D$13","v":"Nombres"},{"$f":"'110010 GeneraXBRL'!$C$13","v":"co-svsp-core:Nombres"},null,null,{"$f":"'110010 GeneraXBRL'!$G$13","v":""},999999999,"http://www.xbrl.org/scheme/companyName",null,{"$f":"Periodos!$C$4","v":"2020-12-31"},{"$f":"'110010 GeneraXBRL'!$D$10","v":"co-svsp-core:AdministradoresEje"},{"$f":"'110010 GeneraXBRL'!$G$9","v":"co-svsp-core:RevisorFiscalMiembro"}]
["/*",null,{"$f":"'110010 GeneraXBRL'!$D$14","v":"Apellidos"},{"$f":"'110010 GeneraXBRL'!$C$14","v":"co-svsp-core:Apellidos"},null,null,{"$f":"'110010 GeneraXBRL'!$G$14","v":""},999999999,"http://www.xbrl.org/scheme/companyName",null,{"$f":"Periodos!$C$4","v":"2020-12-31"},{"$f":"'110010 GeneraXBRL'!$D$10","v":"co-svsp-core:AdministradoresEje"},{"$f":"'110010 GeneraXBRL'!$G$9","v":"co-svsp-core:RevisorFiscalMiembro"}]
["/*",null,{"$f":"'110010 GeneraXBRL'!$D$15","v":"Email"},{"$f":"'110010 GeneraXBRL'!$C$15","v":"co-svsp-core:Email"},null,null,{"$f":"'110010 GeneraXBRL'!$G$15","v":""},999999999,"http://www.xbrl.org/scheme/companyName",null,{"$f":"Periodos!$C$4","v":"2020-12-31"},{"$f":"'110010 GeneraXBRL'!$D$10","v":"co-svsp-core:AdministradoresEje"},{"$f":"'110010 GeneraXBRL'!$G$9","v":"co-svsp-core:RevisorFiscalMiembro"}]
["/*",null,{"$f":"'110010 GeneraXBRL'!$D$16","v":"Tarjeta profesional"},{"$f":"'110010 GeneraXBRL'!$C$16","v":"co-svsp-core:TarjetaProfesional"},null,null,{"$f":"'110010 GeneraXBRL'!$G$16","v":""},999999999,"http://www.xbrl.org/scheme/companyName",null,{"$f":"Periodos!$C$4","v":"2020-12-31"},{"$f":"'110010 GeneraXBRL'!$D$10","v":"co-svsp-core:AdministradoresEje"},{"$f":"'110010 GeneraXBRL'!$G$9","v":"co-svsp-core:RevisorFiscalMiembro"}]
[{"$f":"IF(G98=\"\",\"/*\",\"\")","v":"/*"}]
["/*",null,"210000 - Est. Situa. Financiera"]
["/*",null,"--01--"]
["/*",null,{"$f":"'210000 - Est. Situa. Financiera'!$E$14","v":"Estado de situación financiera [resumen]"},{"$f":"'210000 - Est. Situa. Financiera'!$D$14","v":"co-svsp-core-g3:EstadoDeSituacionFinancieraTitulo"}]
["/*",null,{"$f":"'210000 - Est. Situa. Financiera'!$E$15","v":"Activos [resumen]"},{"$f":"'210000 - Est. Situa. Financiera'!$D$15","v":"co-svsp-core-g3:ActivosTitulo"}]
["/*",null,{"$f":"'210000 - Est. Situa. Financiera'!$E$16","v":"Activos corrientes [resumen]"},{"$f":"'210000 - Est. Situa. Financiera'!$D$16","v":"co-svsp-core-g3:ActivosCorrientesTitulo"}]
["",null,{"$f":"'210000 - Est. Situa. Financiera'!$E$17","v":"Efectivo y equivalentes al efectivo"},{"$f":"'210000 - Est. Situa. Financiera'!$D$17","v":"co-svsp-core-g3:EfectivoYEquivalentesAlEfectivo"},0,"peso",{"$f":"'210000 - Est. Situa. Financiera'!$F$17","v":0},999999999,"http://www.xbrl.org/scheme/companyName",null,{"$f":"Periodos!$C$4","v":"2020-12-31"}]
["",null,{"$f":"'210000 - Est. Situa. Financiera'!$E$18","v":"Cuentas comerciales por cobrar y otras cuentas por cobrar corrientes"},{"$f":"'210000 - Est. Situa. Financiera'!$D$18","v":"co-svsp-core-g3:CuentasComercialesPorCobrarYOtrasCuentasPorCobrarCorrientes"},0,"peso",{"$f":"'210000 - Est. Situa. Financiera'!$F$18","v":0},999999999,"http://www.xbrl.org/scheme/companyName",null,{"$f":"Periodos!$C$4","v":"2020-12-31"}]
["",null,{"$f":"'210000 - Est. Situa. Financiera'!$E$19","v":"Inventarios corrientes"},{"$f":"'210000 - Est. Situa. Financiera'!$D$19","v":"co-svsp-core-g3:InventariosCorrientes"},0,"peso",{"$f":"'210000 - Est. Situa. Financiera'!$F$19","v":0},999999999,"http://www.xbrl.org/scheme/companyName",null,{"$f":"Periodos!$C$4","v":"2020-12-31"}]
["",null,{"$f":"'210000 - Est. Situa. Financiera'!$E$20","v":"Activos por impuestos corrientes, corriente"},{"$f":"'210000 - Est. Situa. Financiera'!$D$20","v":"co-svsp-core-g3:ActivosPorImpuestosCorrientesCorriente"},0,"peso",{"$f":"'210000 - Est. Situa. Financiera'!$F$20","v":0},999999999,"http://www.xbrl.org/scheme/companyName",null,{"$f":"Periodos!$C$4","v":"2020-12-31"}]
["",null,{"$f":"'210000 - Est. Situa. Financiera'!$E$21","v":"Inversiones corrientes"},{"$f":"'210000 - Est. Situa. Financiera'!$D$21","v":"co-svsp-core-g3:InversionesCorrientes"},0,"peso",{"$f":"'210000 - Est. Situa. Financiera'!$F$21","v":0},999999999,"http://www.xbrl.org/scheme/companyName",null,{"$f":"Periodos!$C$4","v":"2020-12-31"}]
["",null,{"$f":"'210000 - Est. Situa. Financiera'!$E$22","v":"Otros activos corrientes"},{"$f":"'210000 - Est. Situa. Financiera'!$D$22","v":"co-svsp-core-g3:OtrosActivosCorrientes"},0,"peso",{"$f":"'210000 - Est. Situa. Financiera'!$F$22","v":0},999999999,"http://www.xbrl.org/scheme/companyName",null,{"$f":"Periodos!$C$4","v":"2020-12-31"}]
["/*",null,{"$f":"'210000 - Est. Situa. Financiera'!$E$23","v":"Activos corrientes totales"},{"$f":"'210000 - Est. Situa. Financiera'!$D$23","v":"co-svsp-core-g3:ActivosCorrientes"},0,"peso",{"$f":"'210000 - Est. Situa. Financiera'!$F$23","v":""},999999999,"http://www.xbrl.org/scheme/companyName",null,{"$f":"Periodos!$C$4","v":"2020-12-31"}]
["/*",null,{"$f":"'210000 - Est. Situa. Financiera'!$E$24","v":"Activos no corrientes [resumen]"},{"$f":"'210000 - Est. Situa. Financiera'!$D$24","v":"co-svsp-core-g3:ActivosNoCorrientesTitulo"}]
["",null,{"$f":"'210000 - Est. Situa. Financiera'!$E$25","v":"Propiedad de inversión"},{"$f":"'210000 - Est. Situa. Financiera'!$D$25","v":"co-svsp-core-g3:PropiedadesDeInversion"},0,"peso",{"$f":"'210000 - Est. Situa. Financiera'!$F$25","v":0},999999999,"http://www.xbrl.org/scheme/companyName",null,{"$f":"Periodos!$C$4","v":"2020-12-31"}]
["",null,{"$f":"'210000 - Est. Situa. Financiera'!$E$26","v":"Propiedades, planta y equipo"},{"$f":"'210000 - Est. Situa. Financiera'!$D$26","v":"co-svsp-core-g3:PropiedadesPlantaYEquipo"},0,"peso",{"$f":"'210000 - Est. Situa. Financiera'!$F$26","v":0},999999999,"http://www.xbrl.org/scheme/companyName",null,{"$f":"Periodos!$C$4","v":"2020-12-31"}]
["",null,{"$f":"'210000 - Est. Situa. Financiera'!$E$27","v":"Plusvalía"},{"$f":"'210000 - Est. Situa. Financiera'!$D$27","v":"co-svsp-core-g3:Plusvalia"},0,"peso",{"$f":"'210000 - Est. Situa. Financiera'!$F$27","v":0},999999999,"http://www.xbrl.org/scheme/companyName",null,{"$f":"Periodos!$C$4","v":"2020-12-31"}]
["",null,{"$f":"'210000 - Est. Situa. Financiera'!$E$28","v":"Inversiones no corrientes"},{"$f":"'210000 - Est. Situa. Financiera'!$D$28","v":"co-svsp-core-g3:InversionesNoCorrientes"},0,"peso",{"$f":"'210000 - Est. Situa. Financiera'!$F$28","v":0},999999999,"http://www.xbrl.org/scheme/companyName",null,{"$f":"Periodos!$C$4","v":"2020-12-31"}]
["",null,{"$f":"'210000 - Est. Situa. Financiera'!$E$29","v":"Cuentas comerciales por cobrar y otras cuentas por cobrar no corrientes"},{"$f":"'210000 - Est. Situa. Financiera'!$D$29","v":"co-svsp-core-g3:CuentasComercialesPorCobrarYOtrasCuentasPorCobrarNoCorrientes"},0,"peso",{"$f":"'210000 - Est. Situa. Financiera'!$F$29","v":0},999999999,"http://www.xbrl.org/scheme/companyName",null,{"$f":"Periodos!$C$4","v":"2020-12-31"}]
["",null,{"$f":"'210000 - Est. Situa. Financiera'!$E$30","v":"Deterioro cuentas por cobrar"},{"$f":"'210000 - Est. Situa. Financiera'!$D$30","v":"co-svsp-core-g3:DeterioroCuentasPorCobrar"},0,"peso",{"$f":"'210000 - Est. Situa. Financiera'!$F$30","v":0},999999999,"http://www.xbrl.org/scheme/companyName",null,{"$f":"Periodos!$C$4","v":"2020-12-31"}]
["",null,{"$f":"'210000 - Est. Situa. Financiera'!$E$31","v":"Inventarios no corrientes"},{"$f":"'210000 - Est. Situa. Financiera'!$D$31","v":"co-svsp-core-g3:InventariosNoCorrientes"},0,"peso",{"$f":"'210000 - Est. Situa. Financiera'!$F$31","v":0},999999999,"http://www.xbrl.org/scheme/companyName",null,{"$f":"Periodos!$C$4","v":"2020-12-31"}]
["",null,{"$f":"'210000 - Est. Situa. Financiera'!$E$32","v":"Activos por impuestos diferidos"},{"$f":"'210000 - Est. Situa. Financiera'!$D$32","v":"co-svsp-core-g3:ActivosPorImpuestosDiferidos"},0,"peso",{"$f":"'210000 - Est. Situa. Financiera'!$F$32","v":0},999999999,"http://www.xbrl.org/scheme/companyName",null,{"$f":"Periodos!$C$4","v":"2020-12-31"}]
["",null,{"$f":"'210000 - Est. Situa. Financiera'!$E$33","v":"Activos por impuestos corrientes, no corriente"},{"$f":"'210000 - Est. Situa. Financiera'!$D$33","v":"co-svsp-core-g3:ActivosPorImpuestosCorrientesNoCorriente"},0,"peso",{"$f":"'210000 - Est. Situa. Financiera'!$F$33","v":0},999999999,"http://www.xbrl.org/scheme/companyName",null,{"$f":"Periodos!$C$4","v":"2020-12-31"}]
["",null,{"$f":"'210000 - Est. Situa. Financiera'!$E$34","v":"Otros activos corrientes no corrientes"},{"$f":"'210000 - Est. Situa. Financiera'!$D$34","v":"co-svsp-core-g3:OtrosActivosCorrientesNoCorrientes"},0,"peso",{"$f":"'210000 - Est. Situa. Financiera'!$F$34","v":0},999999999,"http://www.xbrl.org/scheme/companyName",null,{"$f":"Periodos!$C$4","v":"2020-12-31"}]
["/*",null,{"$f":"'210000 - Est. Situa. Financiera'!$E$35","v":"Total de activos no corrientes"},{"$f":"'210000 - Est. Situa. Financiera'!$D$35","v":"co-svsp-core-g3:ActivosNoCorrientes"},0,"peso",{"$f":"'210000 - Est. Situa. Financiera'!$F$35","v":""},999999999,"http://www.xbrl.org/scheme/companyName",null,{"$f":"Periodos!$C$4","v":"2020-12-31"}]
["/*",null,{"$f":"'210000 - Est. Situa. Financiera'!$E$36","v":"Total de activos"},{"$f":"'210000 - Est. Situa. Financiera'!$D$36","v":"co-svsp-core-g3:Activos"},0,"peso",{"$f":"'210000 - Est. Situa. Financiera'!$F$36","v":""},999999999,"http://www.xbrl.org/scheme/companyName",null,{"$f":"Periodos!$C$4","v":"2020-12-31"}]
["/*",null,{"$f":"'210000 - Est. Situa. Financiera'!$E$37","v":"Patrimonio y pasivos [resumen]"},{"$f":"'210000 - Est. Situa. Financiera'!$D$37","v":"co-svsp-core-g3:PatrimonioYPasivosTitulo"}]
["/*",null,{"$f":"'210000 - Est. Situa. Financiera'!$E$38","v":"Pasivos [resumen]"},{"$f":"'210000 - Est. Situa. Financiera'!$D$38","v":"co-svsp-core-g3:PasivosTitulo"}]
["/*",null,{"$f":"'210000 - Est. Situa. Financiera'!$E$39","v":"Pasivos corrientes [resumen]"},{"$f":"'210000 - Est. Situa. Financiera'!$D$39","v":"co-svsp-core-g3:PasivosCorrientesTitulo"}]
["",null,{"$f":"'210000 - Est. Situa. Financiera'!$E$40","v":"Acreedores comerciales y otras cuentas por pagar corrientes"},{"$f":"'210000 - Est. Situa. Financiera'!$D$40","v":"co-svsp-core-g3:AcreedoresComercialesYOtrasCuentasPorPagarCorrientes"},0,"peso",{"$f":"'210000 - Est. Situa. Financiera'!$F$40","v":0},999999999,"http://www.xbrl.org/scheme/companyName",null,{"$f":"Periodos!$C$4","v":"2020-12-31"}]
["",null,{"$f":"'210000 - Est. Situa. Financiera'!$E$41","v":"Proveedores corrientes"},{"$f":"'210000 - Est. Situa. Financiera'!$D$41","v":"co-svsp-core-g3:ProveedoresCorrientes"},0,"peso",{"$f":"'210000 - Est. Situa. Financiera'!$F$41","v":0},999999999,"http://www.xbrl.org/scheme/companyName",null,{"$f":"Periodos!$C$4","v":"2020-12-31"}]
["",null,{"$f":"'210000 - Est. Situa. Financiera'!$E$42","v":"Ingresos diferidos corrientes"},{"$f":"'210000 - Est. Situa. Financiera'!$D$42","v":"co-svsp-core-g3:IngresosDiferidosCorrientes"},0,"peso",{"$f":"'210000 - Est. Situa. Financiera'!$F$42","v":0},999999999,"http://www.xbrl.org/scheme/companyName",null,{"$f":"Periodos!$C$4","v":"2020-12-31"}]
["",null,{"$f":"'210000 - Est. Situa. Financiera'!$E$43","v":"Gastos acumulados por pagar corrientes"},{"$f":"'210000 - Est. Situa. Financiera'!$D$43","v":"co-svsp-core-g3:GastosAcumuladosPorPagarCorrientes"},0,"peso",{"$f":"'210000 - Est. Situa. Financiera'!$F$43","v":0},999999999,"http://www.xbrl.org/scheme/companyName",null,{"$f":"Periodos!$C$4","v":"2020-12-31"}]
["",null,{"$f":"'210000 - Est. Situa. Financiera'!$E$44","v":"Otras cuentas por pagar corrientes"},{"$f":"'210000 - Est. Situa. Financiera'!$D$44","v":"co-svsp-core-g3:OtrasCuentasPorPagarCorrientes"},0,"peso",{"$f":"'210000 - Est. Situa. Financiera'!$F$44","v":0},999999999,"http://www.xbrl.org/scheme/companyName",null,{"$f":"Periodos!$C$4","v":"2020-12-31"}]
["",null,{"$f":"'210000 - Est. Situa. Financiera'!$E$45","v":"Obligaciones financieras corrientes"},{"$f":"'210000 - Est. Situa. Financiera'!$D$45","v":"co-svsp-core-g3:ObligacionesFinancierasCorrientes"},0,"peso",{"$f":"'210000 - Est. Situa. Financiera'!$F$45","v":0},999999999,"http://www.xbrl.org/scheme/companyName",null,{"$f":"Periodos!$C$4","v":"2020-12-31"}]
["",null,{"$f":"'210000 - Est. Situa. Financiera'!$E$46","v":"Obligaciones laborales corrientes"},{"$f":"'210000 - Est. Situa. Financiera'!$D$46","v":"co-svsp-core-g3:ObligacionesLaboralesCorrientes"},0,"peso",{"$f":"'210000 - Est. Situa. Financiera'!$F$46","v":0},999999999,"http://www.xbrl.org/scheme/companyName",null,{"$f":"Periodos!$C$4","v":"2020-12-31"}]
["",null,{"$f":"'210000 - Est. Situa. Financiera'!$E$47","v":"Pasivos por impuestos corrientes"},{"$f":"'210000 - Est. Situa. Financiera'!$D$47","v":"co-svsp-core-g3:PasivosPorImpuestosCorrientes"},0,"peso",{"$f":"'210000 - Est. Situa. Financiera'!$F$47","v":0},999999999,"http://www.xbrl.org/scheme/companyName",null,{"$f":"Periodos!$C$4","v":"2020-12-31"}]
["",null,{"$f":"'210000 - Est. Situa. Financiera'!$E$48","v":"Provisiones corrientes"},{"$f":"'210000 - Est. Situa. Financiera'!$D$48","v":"co-svsp-core-g3:ProvisionesCorrientes"},0,"peso",{"$f":"'210000 - Est. Situa. Financiera'!$F$48","v":0},999999999,"http://www.xbrl.org/scheme/companyName",null,{"$f":"Periodos!$C$4","v":"2020-12-31"}]
["",null,{"$f":"'210000 - Est. Situa. Financiera'!$E$49","v":"Otros pasivos corrientes"},{"$f":"'210000 - Est. Situa. Financiera'!$D$49","v":"co-svsp-core-g3:OtrosPasivosCorrientes"},0,"peso",{"$f":"'210000 - Est. Situa. Financiera'!$F$49","v":0},999999999,"http://www.xbrl.org/scheme/companyName",null,{"$f":"Periodos!$C$4","v":"2020-12-31"}]
["/*",null,{"$f":"'210000 - Est. Situa. Financiera'!$E$50","v":"Pasivos corrientes totales"},{"$f":"'210000 - Est. Situa. Financiera'!$D$50","v":"co-svsp-core-g3:PasivosCorrientes"},0,"peso",{"$f":"'210000 - Est. Situa. Financiera'!$F$50","v":""},999999999,"http://www.xbrl.org/scheme/companyName",null,{"$f":"Periodos!$C$4","v":"2020-12-31"}]
["/*",null,{"$f":"'210000 - Est. Situa. Financiera'!$E$51","v":"Pasivos no corrientes [resumen]"},{"$f":"'210000 - Est. Situa. Financiera'!$D$51","v":"co-svsp-core-g3:PasivosNoCorrientesTitulo"}]
["",null,{"$f":"'210000 - Est. Situa. Financiera'!$E$52","v":"Acreedores comerciales y otras cuentas por pagar no corrientes"},{"$f":"'210000 - Est. Situa. Financiera'!$D$52","v":"co-svsp-core-g3:AcreedoresComercialesYOtrasCuentasPorPagarNoCorrientes"},0,"peso",{"$f":"'210000 - Est. Situa. Financiera'!$F$52","v":0},999999999,"http://www.xbrl.org/scheme/companyName",null,{"$f":"Periodos!$C$4","v":"2020-12-31"}]
["",null,{"$f":"'210000 - Est. Situa. Financiera'!$E$53","v":"Proveedores no corrientes"},{"$f":"'210000 - Est. Situa. Financiera'!$D$53","v":"co-svsp-core-g3:ProveedoresNoCorrientes"},0,"peso",{"$f":"'210000 - Est. Situa. Financiera'!$F$53","v":0},999999999,"http://www.xbrl.org/scheme/companyName",null,{"$f":"Periodos!$C$4","v":"2020-12-31"}]
["",null,{"$f":"'210000 - Est. Situa. Financiera'!$E$54","v":"Ingresos diferidos no corrientes"},{"$f":"'210000 - Est. Situa. Financiera'!$D$54","v":"co-svsp-core-g3:IngresosDiferidosNoCorrientes"},0,"peso",{"$f":"'210000 - Est. Situa. Financiera'!$F$54","v":0},999999999,"http://www.xbrl.org/scheme/companyName",null,{"$f":"Periodos!$C$4","v":"2020-12-31"}]
["",null,{"$f":"'210000 - Est. Situa. Financiera'!$E$55","v":"Gastos acumulados por pagar no corrientes"},{"$f":"'210000 - Est. Situa. Financiera'!$D$55","v":"co-svsp-core-g3:GastosAcumuladosPorPagarNoCorrientes"},0,"peso",{"$f":"'210000 - Est. Situa. Financiera'!$F$55","v":0},999999999,"http://www.xbrl.org/scheme/companyName",null,{"$f":"Periodos!$C$4","v":"2020-12-31"}]
["",null,{"$f":"'210000 - Est. Situa. Financiera'!$E$56","v":"Otras cuentas por pagar no corrientes"},{"$f":"'210000 - Est. Situa. Financiera'!$D$56","v":"co-svsp-core-g3:OtrasCuentasPorPagarNoCorrientes"},0,"peso",{"$f":"'210000 - Est. Situa. Financiera'!$F$56","v":0},999999999,"http://www.xbrl.org/scheme/companyName",null,{"$f":"Periodos!$C$4","v":"2020-12-31"}]
["",null,{"$f":"'210000 - Est. Situa. Financiera'!$E$57","v":"Obligaciones financieras no corrientes"},{"$f":"'210000 - Est. Situa. Financiera'!$D$57","v":"co-svsp-core-g3:ObligacionesFinancierasNoCorrientes"},0,"peso",{"$f":"'210000 - Est. Situa. Financiera'!$F$57","v":0},999999999,"http://www.xbrl.org/scheme/companyName",null,{"$f":"Periodos!$C$4","v":"2020-12-31"}]
["",null,{"$f":"'210000 - Est. Situa. Financiera'!$E$58","v":"Obligaciones laborales no corrientes"},{"$f":"'210000 - Est. Situa. Financiera'!$D$58","v":"co-svsp-core-g3:ObligacionesLaboralesNoCorrientes"},0,"peso",{"$f":"'210000 - Est. Situa. Financiera'!$F$58","v":0},999999999,"http://www.xbrl.org/scheme/companyName",null,{"$f":"Periodos!$C$4","v":"2020-12-31"}]
["",null,{"$f":"'210000 - Est. Situa. Financiera'!$E$59","v":"Pasivos por impuestos diferidos"},{"$f":"'210000 - Est. Situa. Financiera'!$D$59","v":"co-svsp-core-g3:PasivosPorImpuestosDiferidos"},0,"peso",{"$f":"'210000 - Est. Situa. Financiera'!$F$59","v":0},999999999,"http://www.xbrl.org/scheme/companyName",null,{"$f":"Periodos!$C$4","v":"2020-12-31"}]
["",null,{"$f":"'210000 - Est. Situa. Financiera'!$E$60","v":"Pasivos por impuestos no corrientes"},{"$f":"'210000 - Est. Situa. Financiera'!$D$60","v":"co-svsp-core-g3:PasivosPorImpuestosNoCorrientes"},0,"peso",{"$f":"'210000 - Est. Situa. Financiera'!$F$60","v":0},999999999,"http://www.xbrl.org/scheme/companyName",null,{"$f":"Periodos!$C$4","v":"2020-12-31"}]
["",null,{"$f":"'210000 - Est. Situa. Financiera'!$E$61","v":"Provisiones no corrientes"},{"$f":"'210000 - Est. Situa. Financiera'!$D$61","v":"co-svsp-core-g3:ProvisionesNoCorrientes"},0,"peso",{"$f":"'210000 - Est. Situa. Financiera'!$F$61","v":0},999999999,"http://www.xbrl.org/scheme/companyName",null,{"$f":"Periodos!$C$4","v":"2020-12-31"}]
["",null,{"$f":"'210000 - Est. Situa. Financiera'!$E$62","v":"Otros pasivos no corrientes"},{"$f":"'210000 - Est. Situa. Financiera'!$D$62","v":"co-svsp-core-g3:OtrosPasivosNoCorrientes"},0,"peso",{"$f":"'210000 - Est. Situa. Financiera'!$F$62","v":0},999999999,"http://www.xbrl.org/scheme/companyName",null,{"$f":"Periodos!$C$4","v":"2020-12-31"}]
["/*",null,{"$f":"'210000 - Est. Situa. Financiera'!$E$63","v":"Total de pasivos no corrientes"},{"$f":"'210000 - Est. Situa. Financiera'!$D$63","v":"co-svsp-core-g3:PasivosNoCorrientes"},0,"peso",{"$f":"'210000 - Est. Situa. Financiera'!$F$63","v":""},999999999,"http://www.xbrl.org/scheme/companyName",null,{"$f":"Periodos!$C$4","v":"2020-12-31"}]
["/*",null,{"$f":"'210000 - Est. Situa. Financiera'!$E$64","v":"Total pasivos"},{"$f":"'210000 - Est. Situa. Financiera'!$D$64","v":"co-svsp-core-g3:Pasivos"},0,"peso",{"$f":"'210000 - Est. Situa. Financiera'!$F$64","v":""},999999999,"http://www.xbrl.org/scheme/companyName",null,{"$f":"Periodos!$C$4","v":"2020-12-31"}]
["/*",null,{"$f":"'210000 - Est. Situa. Financiera'!$E$65","v":"Patrimonio [resumen]"},{"$f":"'210000 - Est. Situa. Financiera'!$D$65","v":"co-svsp-core-g3:PatrimonioTitulo"}]
["",null,{"$f":"'210000 - Est. Situa. Financiera'!$E$66","v":"Capital emitido"},{"$f":"'210000 - Est. Situa. Financiera'!$D$66","v":"co-svsp-core-g3:CapitalEmitido"},0,"peso",{"$f":"'210000 - Est. Situa. Financiera'!$F$66","v":0},999999999,"http://www.xbrl.org/scheme/companyName",null,{"$f":"Periodos!$C$4","v":"2020-12-31"}]
["",null,{"$f":"'210000 - Est. Situa. Financiera'!$E$67","v":"Utilidad o perdida del ejercicio"},{"$f":"'210000 - Est. Situa. Financiera'!$D$67","v":"co-svsp-core-g3:UtilidadOPerdidaDelEjercicio"},0,"peso",{"$f":"'210000 - Est. Situa. Financiera'!$F$67","v":0},999999999,"http://www.xbrl.org/scheme/companyName",null,{"$f":"Periodos!$C$4","v":"2020-12-31"}]
["",null,{"$f":"'210000 - Est. Situa. Financiera'!$E$68","v":"Ganancias acumuladas"},{"$f":"'210000 - Est. Situa. Financiera'!$D$68","v":"co-svsp-core-g3:GananciasAcumuladas"},0,"peso",{"$f":"'210000 - Est. Situa. Financiera'!$F$68","v":0},999999999,"http://www.xbrl.org/scheme/companyName",null,{"$f":"Periodos!$C$4","v":"2020-12-31"}]
["",null,{"$f":"'210000 - Est. Situa. Financiera'!$E$69","v":"Reservas"},{"$f":"'210000 - Est. Situa. Financiera'!$D$69","v":"co-svsp-core-g3:Reservas"},0,"peso",{"$f":"'210000 - Est. Situa. Financiera'!$F$69","v":0},999999999,"http://www.xbrl.org/scheme/companyName",null,{"$f":"Periodos!$C$4","v":"2020-12-31"}]
["",null,{"$f":"'210000 - Est. Situa. Financiera'!$E$70","v":"Otros componentes del patrimonio"},{"$f":"'210000 - Est. Situa. Financiera'!$D$70","v":"co-svsp-core-g3:OtrosComponentesDelPatrimonio"},0,"peso",{"$f":"'210000 - Est. Situa. Financiera'!$F$70","v":0},999999999,"http://www.xbrl.org/scheme/companyName",null,{"$f":"Periodos!$C$4","v":"2020-12-31"}]
["/*",null,{"$f":"'210000 - Est. Situa. Financiera'!$E$71","v":"Patrimonio total"},{"$f":"'210000 - Est. Situa. Financiera'!$D$71","v":"co-svsp-core-g3:Patrimonio"},0,"peso",{"$f":"'210000 - Est. Situa. Financiera'!$F$71","v":""},999999999,"http://www.xbrl.org/scheme/companyName",null,{"$f":"Periodos!$C$4","v":"2020-12-31"}]
["/*",null,{"$f":"'210000 - Est. Situa. Financiera'!$E$72","v":"Total de patrimonio y pasivos"},{"$f":"'210000 - Est. Situa. Financiera'!$D$72","v":"co-svsp-core-g3:PatrimonioYPasivos"},0,"peso",{"$f":"'210000 - Est. Situa. Financiera'!$F$72","v":""},999999999,"http://www.xbrl.org/scheme/companyName",null,{"$f":"Periodos!$C$4","v":"2020-12-31"}]
["/*",null,"--02--"]
["/*",null,{"$f":"'210000 - Est. Situa. Financiera'!$E$14","v":"Estado de situación financiera [resumen]"},{"$f":"'210000 - Est. Situa. Financiera'!$D$14","v":"co-svsp-core-g3:EstadoDeSituacionFinancieraTitulo"}]
[{"$f":"IF(G162=\"\",\"/*\",\"\")","v":"/*"},null,{"$f":"'210000 - Est. Situa. Financiera'!$E$15","v":"Activos [resumen]"},{"$f":"'210000 - Est. Situa. Financiera'!$D$15","v":"co-svsp-core-g3:ActivosTitulo"}]
["/*",null,{"$f":"'210000 - Est. Situa. Financiera'!$E$16","v":"Activos corrientes [resumen]"},{"$f":"'210000 - Est. Situa. Financiera'!$D$16","v":"co-svsp-core-g3:ActivosCorrientesTitulo"}]
["",null,{"$f":"'210000 - Est. Situa. Financiera'!$E$17","v":"Efectivo y equivalentes al efectivo"},{"$f":"'210000 - Est. Situa. Financiera'!$D$17","v":"co-svsp-core-g3:EfectivoYEquivalentesAlEfectivo"},0,"peso",{"$f":"'210000 - Est. Situa. Financiera'!$G$17","v":0},999999999,"http://www.xbrl.org/scheme/companyName",null,{"$f":"Periodos!$D$4","v":"2019-12-31"}]
["",null,{"$f":"'210000 - Est. Situa. Financiera'!$E$18","v":"Cuentas comerciales por cobrar y otras cuentas por cobrar corrientes"},{"$f":"'210000 - Est. Situa. Financiera'!$D$18","v":"co-svsp-core-g3:CuentasComercialesPorCobrarYOtrasCuentasPorCobrarCorrientes"},0,"peso",{"$f":"'210000 - Est. Situa. Financiera'!$G$18","v":0},999999999,"http://www.xbrl.org/scheme/companyName",null,{"$f":"Periodos!$D$4","v":"2019-12-31"}]
["",null,{"$f":"'210000 - Est. Situa. Financiera'!$E$19","v":"Inventarios corrientes"},{"$f":"'210000 - Est. Situa. Financiera'!$D$19","v":"co-svsp-core-g3:InventariosCorrientes"},0,"peso",{"$f":"'210000 - Est. Situa. Financiera'!$G$19","v":0},999999999,"http://www.xbrl.org/scheme/companyName",null,{"$f":"Periodos!$D$4","v":"2019-12-31"}]
["",null,{"$f":"'210000 - Est. Situa. Financiera'!$E$20","v":"Activos por impuestos corrientes, corriente"},{"$f":"'210000 - Est. Situa. Financiera'!$D$20","v":"co-svsp-core-g3:ActivosPorImpuestosCorrientesCorriente"},0,"peso",{"$f":"'210000 - Est. Situa. Financiera'!$G$20","v":0},999999999,"http://www.xbrl.org/scheme/companyName",null,{"$f":"Periodos!$D$4","v":"2019-12-31"}]
["",null,{"$f":"'210000 - Est. Situa. Financiera'!$E$21","v":"Inversiones corrientes"},{"$f":"'210000 - Est. Situa. Financiera'!$D$21","v":"co-svsp-core-g3:InversionesCorrientes"},0,"peso",{"$f":"'210000 - Est. Situa. Financiera'!$G$21","v":0},999999999,"http://www.xbrl.org/scheme/companyName",null,{"$f":"Periodos!$D$4","v":"2019-12-31"}]
["",null,{"$f":"'210000 - Est. Situa. Financiera'!$E$22","v":"Otros activos corrientes"},{"$f":"'210000 - Est. Situa. Financiera'!$D$22","v":"co-svsp-core-g3:OtrosActivosCorrientes"},0,"peso",{"$f":"'210000 - Est. Situa. Financiera'!$G$22","v":0},999999999,"http://www.xbrl.org/scheme/companyName",null,{"$f":"Periodos!$D$4","v":"2019-12-31"}]
["/*",null,{"$f":"'210000 - Est. Situa. Financiera'!$E$23","v":"Activos corrientes totales"},{"$f":"'210000 - Est. Situa. Financiera'!$D$23","v":"co-svsp-core-g3:ActivosCorrientes"},0,"peso",{"$f":"'210000 - Est. Situa. Financiera'!$G$23","v":""},999999999,"http://www.xbrl.org/scheme/companyName",null,{"$f":"Periodos!$D$4","v":"2019-12-31"}]
["/*",null,{"$f":"'210000 - Est. Situa. Financiera'!$E$24","v":"Activos no corrientes [resumen]"},{"$f":"'210000 - Est. Situa. Financiera'!$D$24","v":"co-svsp-core-g3:ActivosNoCorrientesTitulo"}]
["",null,{"$f":"'210000 - Est. Situa. Financiera'!$E$25","v":"Propiedad de inversión"},{"$f":"'210000 - Est. Situa. Financiera'!$D$25","v":"co-svsp-core-g3:PropiedadesDeInversion"},0,"peso",{"$f":"'210000 - Est. Situa. Financiera'!$G$25","v":0},999999999,"http://www.xbrl.org/scheme/companyName",null,{"$f":"Periodos!$D$4","v":"2019-12-31"}]
["",null,{"$f":"'210000 - Est. Situa. Financiera'!$E$26","v":"Propiedades, planta y equipo"},{"$f":"'210000 - Est. Situa. Financiera'!$D$26","v":"co-svsp-core-g3:PropiedadesPlantaYEquipo"},0,"peso",{"$f":"'210000 - Est. Situa. Financiera'!$G$26","v":0},999999999,"http://www.xbrl.org/scheme/companyName",null,{"$f":"Periodos!$D$4","v":"2019-12-31"}]
["",null,{"$f":"'210000 - Est. Situa. Financiera'!$E$27","v":"Plusvalía"},{"$f":"'210000 - Est. Situa. Financiera'!$D$27","v":"co-svsp-core-g3:Plusvalia"},0,"peso",{"$f":"'210000 - Est. Situa. Financiera'!$G$27","v":0},999999999,"http://www.xbrl.org/scheme/companyName",null,{"$f":"Periodos!$D$4","v":"2019-12-31"}]
["",null,{"$f":"'210000 - Est. Situa. Financiera'!$E$28","v":"Inversiones no corrientes"},{"$f":"'210000 - Est. Situa. Financiera'!$D$28","v":"co-svsp-core-g3:InversionesNoCorrientes"},0,"peso",{"$f":"'210000 - Est. Situa. Financiera'!$G$28","v":0},999999999,"http://www.xbrl.org/scheme/companyName",null,{"$f":"Periodos!$D$4","v":"2019-12-31"}]
["",null,{"$f":"'210000 - Est. Situa. Financiera'!$E$29","v":"Cuentas comerciales por cobrar y otras cuentas por cobrar no corrientes"},{"$f":"'210000 - Est. Situa. Financiera'!$D$29","v":"co-svsp-core-g3:CuentasComercialesPorCobrarYOtrasCuentasPorCobrarNoCorrientes"},0,"peso",{"$f":"'210000 - Est. Situa. Financiera'!$G$29","v":0},999999999,"http://www.xbrl.org/scheme/companyName",null,{"$f":"Periodos!$D$4","v":"2019-12-31"}]
["",null,{"$f":"'210000 - Est. Situa. Financiera'!$E$30","v":"Deterioro cuentas por cobrar"},{"$f":"'210000 - Est. Situa. Financiera'!$D$30","v":"co-svsp-core-g3:DeterioroCuentasPorCobrar"},0,"peso",{"$f":"'210000 - Est. Situa. Financiera'!$G$30","v":0},999999999,"http://www.xbrl.org/scheme/companyName",null,{"$f":"Periodos!$D$4","v":"2019-12-31"}]
["",null,{"$f":"'210000 - Est. Situa. Financiera'!$E$31","v":"Inventarios no corrientes"},{"$f":"'210000 - Est. Situa. Financiera'!$D$31","v":"co-svsp-core-g3:InventariosNoCorrientes"},0,"peso",{"$f":"'210000 - Est. Situa. Financiera'!$G$31","v":0},999999999,"http://www.xbrl.org/scheme/companyName",null,{"$f":"Periodos!$D$4","v":"2019-12-31"}]
["",null,{"$f":"'210000 - Est. Situa. Financiera'!$E$32","v":"Activos por impuestos diferidos"},{"$f":"'210000 - Est. Situa. Financiera'!$D$32","v":"co-svsp-core-g3:ActivosPorImpuestosDiferidos"},0,"peso",{"$f":"'210000 - Est. Situa. Financiera'!$G$32","v":0},999999999,"http://www.xbrl.org/scheme/companyName",null,{"$f":"Periodos!$D$4","v":"2019-12-31"}]
["",null,{"$f":"'210000 - Est. Situa. Financiera'!$E$33","v":"Activos por impuestos corrientes, no corriente"},{"$f":"'210000 - Est. Situa. Financiera'!$D$33","v":"co-svsp-core-g3:ActivosPorImpuestosCorrientesNoCorriente"},0,"peso",{"$f":"'210000 - Est. Situa. Financiera'!$G$33","v":0},999999999,"http://www.xbrl.org/scheme/companyName",null,{"$f":"Periodos!$D$4","v":"2019-12-31"}]
["",null,{"$f":"'210000 - Est. Situa. Financiera'!$E$34","v":"Otros activos corrientes no corrientes"},{"$f":"'210000 - Est. Situa. Financiera'!$D$34","v":"co-svsp-core-g3:OtrosActivosCorrientesNoCorrientes"},0,"peso",{"$f":"'210000 - Est. Situa. Financiera'!$G$34","v":0},999999999,"http://www.xbrl.org/scheme/companyName",null,{"$f":"Periodos!$D$4","v":"2019-12-31"}]
["/*",null,{"$f":"'210000 - Est. Situa. Financiera'!$E$35","v":"Total de activos no corrientes"},{"$f":"'210000 - Est. Situa. Financiera'!$D$35","v":"co-svsp-core-g3:ActivosNoCorrientes"},0,"peso",{"$f":"'210000 - Est. Situa. Financiera'!$G$35","v":""},999999999,"http://www.xbrl.org/scheme/companyName",null,{"$f":"Periodos!$D$4","v":"2019-12-31"}]
["",null,{"$f":"'210000 - Est. Situa. Financiera'!$E$36","v":"Total de activos"},{"$f":"'210000 - Est. Situa. Financiera'!$D$36","v":"co-svsp-core-g3:Activos"},0,"peso",{"$f":"'210000 - Est. Situa. Financiera'!$G$36","v":0},999999999,"http://www.xbrl.org/scheme/companyName",null,{"$f":"Periodos!$D$4","v":"2019-12-31"}]
["/*",null,{"$f":"'210000 - Est. Situa. Financiera'!$E$37","v":"Patrimonio y pasivos [resumen]"},{"$f":"'210000 - Est. Situa. Financiera'!$D$37","v":"co-svsp-core-g3:PatrimonioYPasivosTitulo"}]
["/*",null,{"$f":"'210000 - Est. Situa. Financiera'!$E$38","v":"Pasivos [resumen]"},{"$f":"'210000 - Est. Situa. Financiera'!$D$38","v":"co-svsp-core-g3:PasivosTitulo"}]
["/*",null,{"$f":"'210000 - Est. Situa. Financiera'!$E$39","v":"Pasivos corrientes [resumen]"},{"$f":"'210000 - Est. Situa. Financiera'!$D$39","v":"co-svsp-core-g3:PasivosCorrientesTitulo"}]
["",null,{"$f":"'210000 - Est. Situa. Financiera'!$E$40","v":"Acreedores comerciales y otras cuentas por pagar corrientes"},{"$f":"'210000 - Est. Situa. Financiera'!$D$40","v":"co-svsp-core-g3:AcreedoresComercialesYOtrasCuentasPorPagarCorrientes"},0,"peso",{"$f":"'210000 - Est. Situa. Financiera'!$G$40","v":0},999999999,"http://www.xbrl.org/scheme/companyName",null,{"$f":"Periodos!$D$4","v":"2019-12-31"}]
["",null,{"$f":"'210000 - Est. Situa. Financiera'!$E$41","v":"Proveedores corrientes"},{"$f":"'210000 - Est. Situa. Financiera'!$D$41","v":"co-svsp-core-g3:ProveedoresCorrientes"},0,"peso",{"$f":"'210000 - Est. Situa. Financiera'!$G$41","v":0},999999999,"http://www.xbrl.org/scheme/companyName",null,{"$f":"Periodos!$D$4","v":"2019-12-31"}]
["",null,{"$f":"'210000 - Est. Situa. Financiera'!$E$42","v":"Ingresos diferidos corrientes"},{"$f":"'210000 - Est. Situa. Financiera'!$D$42","v":"co-svsp-core-g3:IngresosDiferidosCorrientes"},0,"peso",{"$f":"'210000 - Est. Situa. Financiera'!$G$42","v":0},999999999,"http://www.xbrl.org/scheme/companyName",null,{"$f":"Periodos!$D$4","v":"2019-12-31"}]
["",null,{"$f":"'210000 - Est. Situa. Financiera'!$E$43","v":"Gastos acumulados por pagar corrientes"},{"$f":"'210000 - Est. Situa. Financiera'!$D$43","v":"co-svsp-core-g3:GastosAcumuladosPorPagarCorrientes"},0,"peso",{"$f":"'210000 - Est. Situa. Financiera'!$G$43","v":0},999999999,"http://www.xbrl.org/scheme/companyName",null,{"$f":"Periodos!$D$4","v":"2019-12-31"}]
["",null,{"$f":"'210000 - Est. Situa. Financiera'!$E$44","v":"Otras cuentas por pagar corrientes"},{"$f":"'210000 - Est. Situa. Financiera'!$D$44","v":"co-svsp-core-g3:OtrasCuentasPorPagarCorrientes"},0,"peso",{"$f":"'210000 - Est. Situa. Financiera'!$G$44","v":0},999999999,"http://www.xbrl.org/scheme/companyName",null,{"$f":"Periodos!$D$4","v":"2019-12-31"}]
["",null,{"$f":"'210000 - Est. Situa. Financiera'!$E$45","v":"Obligaciones financieras corrientes"},{"$f":"'210000 - Est. Situa. Financiera'!$D$45","v":"co-svsp-core-g3:ObligacionesFinancierasCorrientes"},0,"peso",{"$f":"'210000 - Est. Situa. Financiera'!$G$45","v":0},999999999,"http://www.xbrl.org/scheme/companyName",null,{"$f":"Periodos!$D$4","v":"2019-12-31"}]
["",null,{"$f":"'210000 - Est. Situa. Financiera'!$E$46","v":"Obligaciones laborales corrientes"},{"$f":"'210000 - Est. Situa. Financiera'!$D$46","v":"co-svsp-core-g3:ObligacionesLaboralesCorrientes"},0,"peso",{"$f":"'210000 - Est. Situa. Financiera'!$G$46","v":0},999999999,"http://www.xbrl.org/scheme/companyName",null,{"$f":"Periodos!$D$4","v":"2019-12-31"}]
["",null,{"$f":"'210000 - Est. Situa. Financiera'!$E$47","v":"Pasivos por impuestos corrientes"},{"$f":"'210000 - Est. Situa. Financiera'!$D$47","v":"co-svsp-core-g3:PasivosPorImpuestosCorrientes"},0,"peso",{"$f":"'210000 - Est. Situa. Financiera'!$G$47","v":0},999999999,"http://www.xbrl.org/scheme/companyName",null,{"$f":"Periodos!$D$4","v":"2019-12-31"}]
["",null,{"$f":"'210000 - Est. Situa. Financiera'!$E$48","v":"Provisiones corrientes"},{"$f":"'210000 - Est. Situa. Financiera'!$D$48","v":"co-svsp-core-g3:ProvisionesCorrientes"},0,"peso",{"$f":"'210000 - Est. Situa. Financiera'!$G$48","v":0},999999999,"http://www.xbrl.org/scheme/companyName",null,{"$f":"Periodos!$D$4","v":"2019-12-31"}]
["",null,{"$f":"'210000 - Est. Situa. Financiera'!$E$49","v":"Otros pasivos corrientes"},{"$f":"'210000 - Est. Situa. Financiera'!$D$49","v":"co-svsp-core-g3:OtrosPasivosCorrientes"},0,"peso",{"$f":"'210000 - Est. Situa. Financiera'!$G$49","v":0},999999999,"http://www.xbrl.org/scheme/companyName",null,{"$f":"Periodos!$D$4","v":"2019-12-31"}]
["/*",null,{"$f":"'210000 - Est. Situa. Financiera'!$E$50","v":"Pasivos corrientes totales"},{"$f":"'210000 - Est. Situa. Financiera'!$D$50","v":"co-svsp-core-g3:PasivosCorrientes"},0,"peso",{"$f":"'210000 - Est. Situa. Financiera'!$G$50","v":""},999999999,"http://www.xbrl.org/scheme/companyName",null,{"$f":"Periodos!$D$4","v":"2019-12-31"}]
["/*",null,{"$f":"'210000 - Est. Situa. Financiera'!$E$51","v":"Pasivos no corrientes [resumen]"},{"$f":"'210000 - Est. Situa. Financiera'!$D$51","v":"co-svsp-core-g3:PasivosNoCorrientesTitulo"}]
["",null,{"$f":"'210000 - Est. Situa. Financiera'!$E$52","v":"Acreedores comerciales y otras cuentas por pagar no corrientes"},{"$f":"'210000 - Est. Situa. Financiera'!$D$52","v":"co-svsp-core-g3:AcreedoresComercialesYOtrasCuentasPorPagarNoCorrientes"},0,"peso",{"$f":"'210000 - Est. Situa. Financiera'!$G$52","v":0},999999999,"http://www.xbrl.org/scheme/companyName",null,{"$f":"Periodos!$D$4","v":"2019-12-31"}]
["",null,{"$f":"'210000 - Est. Situa. Financiera'!$E$53","v":"Proveedores no corrientes"},{"$f":"'210000 - Est. Situa. Financiera'!$D$53","v":"co-svsp-core-g3:ProveedoresNoCorrientes"},0,"peso",{"$f":"'210000 - Est. Situa. Financiera'!$G$53","v":0},999999999,"http://www.xbrl.org/scheme/companyName",null,{"$f":"Periodos!$D$4","v":"2019-12-31"}]
["",null,{"$f":"'210000 - Est. Situa. Financiera'!$E$54","v":"Ingresos diferidos no corrientes"},{"$f":"'210000 - Est. Situa. Financiera'!$D$54","v":"co-svsp-core-g3:IngresosDiferidosNoCorrientes"},0,"peso",{"$f":"'210000 - Est. Situa. Financiera'!$G$54","v":0},999999999,"http://www.xbrl.org/scheme/companyName",null,{"$f":"Periodos!$D$4","v":"2019-12-31"}]
["",null,{"$f":"'210000 - Est. Situa. Financiera'!$E$55","v":"Gastos acumulados por pagar no corrientes"},{"$f":"'210000 - Est. Situa. Financiera'!$D$55","v":"co-svsp-core-g3:GastosAcumuladosPorPagarNoCorrientes"},0,"peso",{"$f":"'210000 - Est. Situa. Financiera'!$G$55","v":0},999999999,"http://www.xbrl.org/scheme/companyName",null,{"$f":"Periodos!$D$4","v":"2019-12-31"}]
["",null,{"$f":"'210000 - Est. Situa. Financiera'!$E$56","v":"Otras cuentas por pagar no corrientes"},{"$f":"'210000 - Est. Situa. Financiera'!$D$56","v":"co-svsp-core-g3:OtrasCuentasPorPagarNoCorrientes"},0,"peso",{"$f":"'210000 - Est. Situa. Financiera'!$G$56","v":0},999999999,"http://www.xbrl.org/scheme/companyName",null,{"$f":"Periodos!$D$4","v":"2019-12-31"}]
["",null,{"$f":"'210000 - Est. Situa. Financiera'!$E$57","v":"Obligaciones financieras no corrientes"},{"$f":"'210000 - Est. Situa. Financiera'!$D$57","v":"co-svsp-core-g3:ObligacionesFinancierasNoCorrientes"},0,"peso",{"$f":"'210000 - Est. Situa. Financiera'!$G$57","v":0},999999999,"http://www.xbrl.org/scheme/companyName",null,{"$f":"Periodos!$D$4","v":"2019-12-31"}]
["",null,{"$f":"'210000 - Est. Situa. Financiera'!$E$58","v":"Obligaciones laborales no corrientes"},{"$f":"'210000 - Est. Situa. Financiera'!$D$58","v":"co-svsp-core-g3:ObligacionesLaboralesNoCorrientes"},0,"peso",{"$f":"'210000 - Est. Situa. Financiera'!$G$58","v":0},999999999,"http://www.xbrl.org/scheme/companyName",null,{"$f":"Periodos!$D$4","v":"2019-12-31"}]
["",null,{"$f":"'210000 - Est. Situa. Financiera'!$E$59","v":"Pasivos por impuestos diferidos"},{"$f":"'210000 - Est. Situa. Financiera'!$D$59","v":"co-svsp-core-g3:PasivosPorImpuestosDiferidos"},0,"peso",{"$f":"'210000 - Est. Situa. Financiera'!$G$59","v":0},999999999,"http://www.xbrl.org/scheme/companyName",null,{"$f":"Periodos!$D$4","v":"2019-12-31"}]
["",null,{"$f":"'210000 - Est. Situa. Financiera'!$E$60","v":"Pasivos por impuestos no corrientes"},{"$f":"'210000 - Est. Situa. Financiera'!$D$60","v":"co-svsp-core-g3:PasivosPorImpuestosNoCorrientes"},0,"peso",{"$f":"'210000 - Est. Situa. Financiera'!$G$60","v":0},999999999,"http://www.xbrl.org/scheme/companyName",null,{"$f":"Periodos!$D$4","v":"2019-12-31"}]
["",null,{"$f":"'210000 - Est. Situa. Financiera'!$E$61","v":"Provisiones no corrientes"},{"$f":"'210000 - Est. Situa. Financiera'!$D$61","v":"co-svsp-core-g3:ProvisionesNoCorrientes"},0,"peso",{"$f":"'210000 - Est. Situa. Financiera'!$G$61","v":0},999999999,"http://www.xbrl.org/scheme/companyName",null,{"$f":"Periodos!$D$4","v":"2019-12-31"}]
["",null,{"$f":"'210000 - Est. Situa. Financiera'!$E$62","v":"Otros pasivos no corrientes"},{"$f":"'210000 - Est. Situa. Financiera'!$D$62","v":"co-svsp-core-g3:OtrosPasivosNoCorrientes"},0,"peso",{"$f":"'210000 - Est. Situa. Financiera'!$G$62","v":0},999999999,"http://www.xbrl.org/scheme/companyName",null,{"$f":"Periodos!$D$4","v":"2019-12-31"}]
["/*",null,{"$f":"'210000 - Est. Situa. Financiera'!$E$63","v":"Total de pasivos no corrientes"},{"$f":"'210000 - Est. Situa. Financiera'!$D$63","v":"co-svsp-core-g3:PasivosNoCorrientes"},0,"peso",{"$f":"'210000 - Est. Situa. Financiera'!$G$63","v":""},999999999,"http://www.xbrl.org/scheme/companyName",null,{"$f":"Periodos!$D$4","v":"2019-12-31"}]
["",null,{"$f":"'210000 - Est. Situa. Financiera'!$E$64","v":"Total pasivos"},{"$f":"'210000 - Est. Situa. Financiera'!$D$64","v":"co-svsp-core-g3:Pasivos"},0,"peso",{"$f":"'210000 - Est. Situa. Financiera'!$G$64","v":0},999999999,"http://www.xbrl.org/scheme/companyName",null,{"$f":"Periodos!$D$4","v":"2019-12-31"}]
["/*",null,{"$f":"'210000 - Est. Situa. Financiera'!$E$65","v":"Patrimonio [resumen]"},{"$f":"'210000 - Est. Situa. Financiera'!$D$65","v":"co-svsp-core-g3:PatrimonioTitulo"}]
["",null,{"$f":"'210000 - Est. Situa. Financiera'!$E$66","v":"Capital emitido"},{"$f":"'210000 - Est. Situa. Financiera'!$D$66","v":"co-svsp-core-g3:CapitalEmitido"},0,"peso",{"$f":"'210000 - Est. Situa. Financiera'!$G$66","v":0},999999999,"http://www.xbrl.org/scheme/companyName",null,{"$f":"Periodos!$D$4","v":"2019-12-31"}]
["",null,{"$f":"'210000 - Est. Situa. Financiera'!$E$67","v":"Utilidad o perdida del ejercicio"},{"$f":"'210000 - Est. Situa. Financiera'!$D$67","v":"co-svsp-core-g3:UtilidadOPerdidaDelEjercicio"},0,"peso",{"$f":"'210000 - Est. Situa. Financiera'!$G$67","v":0},999999999,"http://www.xbrl.org/scheme/companyName",null,{"$f":"Periodos!$D$4","v":"2019-12-31"}]
["",null,{"$f":"'210000 - Est. Situa. Financiera'!$E$68","v":"Ganancias acumuladas"},{"$f":"'210000 - Est. Situa. Financiera'!$D$68","v":"co-svsp-core-g3:GananciasAcumuladas"},0,"peso",{"$f":"'210000 - Est. Situa. Financiera'!$G$68","v":0},999999999,"http://www.xbrl.org/scheme/companyName",null,{"$f":"Periodos!$D$4","v":"2019-12-31"}]
["",null,{"$f":"'210000 - Est. Situa. Financiera'!$E$69","v":"Reservas"},{"$f":"'210000 - Est. Situa. Financiera'!$D$69","v":"co-svsp-core-g3:Reservas"},0,"peso",{"$f":"'210000 - Est. Situa. Financiera'!$G$69","v":0},999999999,"http://www.xbrl.org/scheme/companyName",null,{"$f":"Periodos!$D$4","v":"2019-12-31"}]
["",null,{"$f":"'210000 - Est. Situa. Financiera'!$E$70","v":"Otros componentes del patrimonio"},{"$f":"'210000 - Est. Situa. Financiera'!$D$70","v":"co-svsp-core-g3:OtrosComponentesDelPatrimonio"},0,"peso",{"$f":"'210000 - Est. Situa. Financiera'!$G$70","v":0},999999999,"http://www.xbrl.org/scheme/companyName",null,{"$f":"Periodos!$D$4","v":"2019-12-31"}]
["",null,{"$f":"'210000 - Est. Situa. Financiera'!$E$71","v":"Patrimonio total"},{"$f":"'210000 - Est. Situa. Financiera'!$D$71","v":"co-svsp-core-g3:Patrimonio"},0,"peso",{"$f":"'210000 - Est. Situa. Financiera'!$G$71","v":0},999999999,"http://www.xbrl.org/scheme/companyName",null,{"$f":"Periodos!$D$4","v":"2019-12-31"}]
["",null,{"$f":"'210000 - Est. Situa. Financiera'!$E$72","v":"Total de patrimonio y pasivos"},{"$f":"'210000 - Est. Situa. Financiera'!$D$72","v":"co-svsp-core-g3:PatrimonioYPasivos"},0,"peso",{"$f":"'210000 - Est. Situa. Financiera'!$G$72","v":0},999999999,"http://www.xbrl.org/scheme/companyName",null,{"$f":"Periodos!$D$4","v":"2019-12-31"}]
["/*"]
["/*",null,"310000 - Est. Resultados"]
["/*",null,"--01--"]
["/*",null,{"$f":"'310000 - Est. Resultados'!$E$14","v":"Resultado de periodo [resumen]"},{"$f":"'310000 - Est. Resultados'!$D$14","v":"co-svsp-core-g3:ResultadoDelPeriodoTitulo"}]
["/*",null,{"$f":"'310000 - Est. Resultados'!$E$15","v":"Ganancia (pérdida) [resumen]"},{"$f":"'310000 - Est. Resultados'!$D$15","v":"co-svsp-core-g3:GananciaPerdidaTitulo"}]
["",null,{"$f":"'310000 - Est. Resultados'!$E$16","v":"Ingresos de actividades ordinarias"},{"$f":"'310000 - Est. Resultados'!$D$16","v":"co-svsp-core-g3:IngresosDeActividadesOrdinarias"},0,"peso",{"$f":"'310000 - Est. Resultados'!$F$16","v":0},999999999,"http://www.xbrl.org/scheme/companyName",{"$f":"Periodos!$C$3","v":"2020-01-01"},{"$f":"Periodos!$C$4","v":"2020-12-31"}]
[{"$f":"IF(G226=\"\",\"/*\",\"\")","v":""},null,{"$f":"'310000 - Est. Resultados'!$E$17","v":"Costo de ventas"},{"$f":"'310000 - Est. Resultados'!$D$17","v":"co-svsp-core-g3:CostoDeVentas"},0,"peso",{"$f":"'310000 - Est. Resultados'!$F$17","v":0},999999999,"http://www.xbrl.org/scheme/companyName",{"$f":"Periodos!$C$3","v":"2020-01-01"},{"$f":"Periodos!$C$4","v":"2020-12-31"}]
["",null,{"$f":"'310000 - Est. Resultados'!$E$18","v":"Ganancia bruta"},{"$f":"'310000 - Est. Resultados'!$D$18","v":"co-svsp-core-g3:GananciaBruta"},0,"peso",{"$f":"'310000 - Est. Resultados'!$F$18","v":0},999999999,"http://www.xbrl.org/scheme/companyName",{"$f":"Periodos!$C$3","v":"2020-01-01"},{"$f":"Periodos!$C$4","v":"2020-12-31"}]
["",null,{"$f":"'310000 - Est. Resultados'!$E$19","v":"Otros ingresos"},{"$f":"'310000 - Est. Resultados'!$D$19","v":"co-svsp-core-g3:OtrosIngresos"},0,"peso",{"$f":"'310000 - Est. Resultados'!$F$19","v":0},999999999,"http://www.xbrl.org/scheme/companyName",{"$f":"Periodos!$C$3","v":"2020-01-01"},{"$f":"Periodos!$C$4","v":"2020-12-31"}]
["",null,{"$f":"'310000 - Est. Resultados'!$E$20","v":"Costos de distribución"},{"$f":"'310000 - Est. Resultados'!$D$20","v":"co-svsp-core-g3:CostosDeDistribucion"},0,"peso",{"$f":"'310000 - Est. Resultados'!$F$20","v":0},999999999,"http://www.xbrl.org/scheme/companyName",{"$f":"Periodos!$C$3","v":"2020-01-01"},{"$f":"Periodos!$C$4","v":"2020-12-31"}]
["",null,{"$f":"'310000 - Est. Resultados'!$E$21","v":"Gastos de administración"},{"$f":"'310000 - Est. Resultados'!$D$21","v":"co-svsp-core-g3:GastosDeAdministracion"},0,"peso",{"$f":"'310000 - Est. Resultados'!$F$21","v":0},999999999,"http://www.xbrl.org/scheme/companyName",{"$f":"Periodos!$C$3","v":"2020-01-01"},{"$f":"Periodos!$C$4","v":"2020-12-31"}]
["",null,{"$f":"'310000 - Est. Resultados'!$E$22","v":"Otros gastos"},{"$f":"'310000 - Est. Resultados'!$D$22","v":"co-svsp-core-g3:OtrosGastos"},0,"peso",{"$f":"'310000 - Est. Resultados'!$F$22","v":0},999999999,"http://www.xbrl.org/scheme/companyName",{"$f":"Periodos!$C$3","v":"2020-01-01"},{"$f":"Periodos!$C$4","v":"2020-12-31"}]
["",null,{"$f":"'310000 - Est. Resultados'!$E$23","v":"Otras ganancias (pérdidas)"},{"$f":"'310000 - Est. Resultados'!$D$23","v":"co-svsp-core-g3:OtrasGananciasPerdidas"},0,"peso",{"$f":"'310000 - Est. Resultados'!$F$23","v":0},999999999,"http://www.xbrl.org/scheme/companyName",{"$f":"Periodos!$C$3","v":"2020-01-01"},{"$f":"Periodos!$C$4","v":"2020-12-31"}]
["",null,{"$f":"'310000 - Est. Resultados'!$E$24","v":"Costos financieros"},{"$f":"'310000 - Est. Resultados'!$D$24","v":"co-svsp-core-g3:CostosFinancieros"},0,"peso",{"$f":"'310000 - Est. Resultados'!$F$24","v":0},999999999,"http://www.xbrl.org/scheme/companyName",{"$f":"Periodos!$C$3","v":"2020-01-01"},{"$f":"Periodos!$C$4","v":"2020-12-31"}]
["",null,{"$f":"'310000 - Est. Resultados'!$E$25","v":"Ingresos financieros"},{"$f":"'310000 - Est. Resultados'!$D$25","v":"co-svsp-core-g3:IngresosFinancieros"},0,"peso",{"$f":"'310000 - Est. Resultados'!$F$25","v":0},999999999,"http://www.xbrl.org/scheme/companyName",{"$f":"Periodos!$C$3","v":"2020-01-01"},{"$f":"Periodos!$C$4","v":"2020-12-31"}]
["",null,{"$f":"'310000 - Est. Resultados'!$E$26","v":"Ganancia (pérdida), antes de impuestos"},{"$f":"'310000 - Est. Resultados'!$D$26","v":"co-svsp-core-g3:GananciaPerdidaAntesDeImpuestos"},0,"peso",{"$f":"'310000 - Est. Resultados'!$F$26","v":0},999999999,"http://www.xbrl.org/scheme/companyName",{"$f":"Periodos!$C$3","v":"2020-01-01"},{"$f":"Periodos!$C$4","v":"2020-12-31"}]
["",null,{"$f":"'310000 - Est. Resultados'!$E$27","v":"Ingreso (gasto) por impuesto sobre la renta"},{"$f":"'310000 - Est. Resultados'!$D$27","v":"co-svsp-core-g3:IngresoGastoPorImpuestoSobreRenta"},0,"peso",{"$f":"'310000 - Est. Resultados'!$F$27","v":0},999999999,"http://www.xbrl.org/scheme/companyName",{"$f":"Periodos!$C$3","v":"2020-01-01"},{"$f":"Periodos!$C$4","v":"2020-12-31"}]
["",null,{"$f":"'310000 - Est. Resultados'!$E$28","v":"Ganancia (pérdida)"},{"$f":"'310000 - Est. Resultados'!$D$28","v":"co-svsp-core-g3:GananciaPerdida"},0,"peso",{"$f":"'310000 - Est. Resultados'!$F$28","v":0},999999999,"http://www.xbrl.org/scheme/companyName",{"$f":"Periodos!$C$3","v":"2020-01-01"},{"$f":"Periodos!$C$4","v":"2020-12-31"}]
["/*",null,"--02--"]
["/*",null,{"$f":"'310000 - Est. Resultados'!$E$14","v":"Resultado de periodo [resumen]"},{"$f":"'310000 - Est. Resultados'!$D$14","v":"co-svsp-core-g3:ResultadoDelPeriodoTitulo"}]
["/*",null,{"$f":"'310000 - Est. Resultados'!$E$15","v":"Ganancia (pérdida) [resumen]"},{"$f":"'310000 - Est. Resultados'!$D$15","v":"co-svsp-core-g3:GananciaPerdidaTitulo"}]
["",null,{"$f":"'310000 - Est. Resultados'!$E$16","v":"Ingresos de actividades ordinarias"},{"$f":"'310000 - Est. Resultados'!$D$16","v":"co-svsp-core-g3:IngresosDeActividadesOrdinarias"},0,"peso",{"$f":"'310000 - Est. Resultados'!$G$16","v":0},999999999,"http://www.xbrl.org/scheme/companyName",{"$f":"Periodos!$D$3","v":"2019-01-01"},{"$f":"Periodos!$D$4","v":"2019-12-31"}]
["",null,{"$f":"'310000 - Est. Resultados'!$E$17","v":"Costo de ventas"},{"$f":"'310000 - Est. Resultados'!$D$17","v":"co-svsp-core-g3:CostoDeVentas"},0,"peso",{"$f":"'310000 - Est. Resultados'!$G$17","v":0},999999999,"http://www.xbrl.org/scheme/companyName",{"$f":"Periodos!$D$3","v":"2019-01-01"},{"$f":"Periodos!$D$4","v":"2019-12-31"}]
["",null,{"$f":"'310000 - Est. Resultados'!$E$18","v":"Ganancia bruta"},{"$f":"'310000 - Est. Resultados'!$D$18","v":"co-svsp-core-g3:GananciaBruta"},0,"peso",{"$f":"'310000 - Est. Resultados'!$G$18","v":0},999999999,"http://www.xbrl.org/scheme/companyName",{"$f":"Periodos!$D$3","v":"2019-01-01"},{"$f":"Periodos!$D$4","v":"2019-12-31"}]
["",null,{"$f":"'310000 - Est. Resultados'!$E$19","v":"Otros ingresos"},{"$f":"'310000 - Est. Resultados'!$D$19","v":"co-svsp-core-g3:OtrosIngresos"},0,"peso",{"$f":"'310000 - Est. Resultados'!$G$19","v":0},999999999,"http://www.xbrl.org/scheme/companyName",{"$f":"Periodos!$D$3","v":"2019-01-01"},{"$f":"Periodos!$D$4","v":"2019-12-31"}]
["",null,{"$f":"'310000 - Est. Resultados'!$E$20","v":"Costos de distribución"},{"$f":"'310000 - Est. Resultados'!$D$20","v":"co-svsp-core-g3:CostosDeDistribucion"},0,"peso",{"$f":"'310000 - Est. Resultados'!$G$20","v":0},999999999,"http://www.xbrl.org/scheme/companyName",{"$f":"Periodos!$D$3","v":"2019-01-01"},{"$f":"Periodos!$D$4","v":"2019-12-31"}]
["",null,{"$f":"'310000 - Est. Resultados'!$E$21","v":"Gastos de administración"},{"$f":"'310000 - Est. Resultados'!$D$21","v":"co-svsp-core-g3:GastosDeAdministracion"},0,"peso",{"$f":"'310000 - Est. Resultados'!$G$21","v":0},999999999,"http://www.xbrl.org/scheme/companyName",{"$f":"Periodos!$D$3","v":"2019-01-01"},{"$f":"Periodos!$D$4","v":"2019-12-31"}]
["",null,{"$f":"'310000 - Est. Resultados'!$E$22","v":"Otros gastos"},{"$f":"'310000 - Est. Resultados'!$D$22","v":"co-svsp-core-g3:OtrosGastos"},0,"peso",{"$f":"'310000 - Est. Resultados'!$G$22","v":0},999999999,"http://www.xbrl.org/scheme/companyName",{"$f":"Periodos!$D$3","v":"2019-01-01"},{"$f":"Periodos!$D$4","v":"2019-12-31"}]
["",null,{"$f":"'310000 - Est. Resultados'!$E$23","v":"Otras ganancias (pérdidas)"},{"$f":"'310000 - Est. Resultados'!$D$23","v":"co-svsp-core-g3:OtrasGananciasPerdidas"},0,"peso",{"$f":"'310000 - Est. Resultados'!$G$23","v":0},999999999,"http://www.xbrl.org/scheme/companyName",{"$f":"Periodos!$D$3","v":"2019-01-01"},{"$f":"Periodos!$D$4","v":"2019-12-31"}]
["",null,{"$f":"'310000 - Est. Resultados'!$E$24","v":"Costos financieros"},{"$f":"'310000 - Est. Resultados'!$D$24","v":"co-svsp-core-g3:CostosFinancieros"},0,"peso",{"$f":"'310000 - Est. Resultados'!$G$24","v":0},999999999,"http://www.xbrl.org/scheme/companyName",{"$f":"Periodos!$D$3","v":"2019-01-01"},{"$f":"Periodos!$D$4","v":"2019-12-31"}]
["",null,{"$f":"'310000 - Est. Resultados'!$E$25","v":"Ingresos financieros"},{"$f":"'310000 - Est. Resultados'!$D$25","v":"co-svsp-core-g3:IngresosFinancieros"},0,"peso",{"$f":"'310000 - Est. Resultados'!$G$25","v":0},999999999,"http://www.xbrl.org/scheme/companyName",{"$f":"Periodos!$D$3","v":"2019-01-01"},{"$f":"Periodos!$D$4","v":"2019-12-31"}]
["",null,{"$f":"'310000 - Est. Resultados'!$E$26","v":"Ganancia (pérdida), antes de impuestos"},{"$f":"'310000 - Est. Resultados'!$D$26","v":"co-svsp-core-g3:GananciaPerdidaAntesDeImpuestos"},0,"peso",{"$f":"'310000 - Est. Resultados'!$G$26","v":0},999999999,"http://www.xbrl.org/scheme/companyName",{"$f":"Periodos!$D$3","v":"2019-01-01"},{"$f":"Periodos!$D$4","v":"2019-12-31"}]
["",null,{"$f":"'310000 - Est. Resultados'!$E$27","v":"Ingreso (gasto) por impuesto sobre la renta"},{"$f":"'310000 - Est. Resultados'!$D$27","v":"co-svsp-core-g3:IngresoGastoPorImpuestoSobreRenta"},0,"peso",{"$f":"'310000 - Est. Resultados'!$G$27","v":0},999999999,"http://www.xbrl.org/scheme/companyName",{"$f":"Periodos!$D$3","v":"2019-01-01"},{"$f":"Periodos!$D$4","v":"2019-12-31"}]
["",null,{"$f":"'310000 - Est. Resultados'!$E$28","v":"Ganancia (pérdida)"},{"$f":"'310000 - Est. Resultados'!$D$28","v":"co-svsp-core-g3:GananciaPerdida"},0,"peso",{"$f":"'310000 - Est. Resultados'!$G$28","v":0},999999999,"http://www.xbrl.org/scheme/companyName",{"$f":"Periodos!$D$3","v":"2019-01-01"},{"$f":"Periodos!$D$4","v":"2019-12-31"}]

{"sheet":"Contenido","index":3,"n_rows":27,"n_cols":9,"rows_kept":27,"cut":false,"hidden":false,"merged":[[26,3,26,12],[20,3,20,12],[22,3,22,12],[24,3,24,12],[5,3,5,12],[6,3,6,12],[7,3,7,12],[9,6,9,9],[16,6,16,9],[19,3,19,12],[17,6,17,9]]}
[]
[]
[]
[]
[]
[null,null,null,"Plantilla para generación de instancias XBRL "]
[null,null,null,{"$f":"Premisas!B19&\" - Corte a Diciembre 31 de 2020\"","v":"Grupo 3 - Corte a Diciembre 31 de 2020"}]
[null,null,null,"Versión de la Plantilla: 1.0"]
[]
[null,null,null,null,null,null,"Formularios"]
[]
[null,null,null,null,null,null,110000,null,"Carátula"]
[null,null,null,null,null,null,110010,null,"Administradores"]
[null,null,null,null,null,null,210000,null,"Estado de situación financiera"]
[null,null,null,null,null,null,310000,null,"Estado de Resultados"]
[]
[null,null,null,null,null,null,"Resumen de validaciones"]
[null,null,null,null,null,null,"Anotaciones"]
[]
[]
[null,null,null,{"$f":"Texto_1&Premisas!B19&Texto_2","v":"Esta herramienta es una opción que facilita a los vigilados pertenecientes al Grupo 3 de aplicación de normatividad financiera de la Superintendencia de Vigilancia y Seguridad Privada, la generación de los archivos (instancias) XBRL que la entidad requiere como parte de la presentación de la información financiera para el corte a diciembre 31 de 2020."}]
[]
[null,null,null,"El uso de esta herramienta no es obligatorio, ni su comportamiento puede ser motivo para sustentar el no cumplimiento del requerimiento en los términos indicados en él."]
[]
[null,null,null,"Para consultar detalles sobre el uso de esta herramienta se puede acceder al botón de ayuda ubicado la barra de menú o consultar el portal web de la entidad. "]
[]
[null,null,null,"Ver Certificado de licencia y  condiciones de uso"]

{"sheet":"Resumen de Validaciones","index":4,"n_rows":18,"n_cols":9,"rows_kept":18,"cut":false,"hidden":false,"merged":[[17,1,17,5],[1,1,1,2],[2,1,2,2],[3,1,3,2],[5,2,7,5],[9,2,10,3],[9,4,10,5]]}
[]
[]
[]
[]
[]
[null,null,"Resumen de validaciones"]
[]
[]
[null,{"$f":"MID(A9,27,2)","v":""}]
[null,{"$f":"MID(A10,34,2)","v":""},"Formulario",null,"Estado de validaciones por formulario"]
[null,{"$f":"MID(A11,48,2)","v":""}]
[null,null,110000,"Carátula",{"$f":"IF('110000 - Carátula'!L13=0,\"El formulario NO tiene validaciones pendientes\",\"El Formulario tiene validaciones pendientes\")","v":"El Formulario tiene validaciones pendientes"},{"$f":"'110000 - Carátula'!H13","v":"Formulario 'Carátula' con 25 Celdas por diligenciar"},null,{"$f":"MID(F12,27,2)","v":"25"},{"$f":"IF(F12=\"Formulario 'Carátula' Completo\",0,ABS(H12))","v":25}]
[null,null,110010,"Administradores",{"$f":"IF('110010 - Administradores'!Q13=0,\"El formulario NO tiene validaciones pendientes\",\"El Formulario tiene validaciones pendientes\")","v":"El Formulario tiene validaciones pendientes"},{"$f":"'110010 - Administradores'!M13","v":"Formulario 'Administradores' con 2 filas por diligenciar"},null,{"$f":"MID(F13,34,2)","v":"2 "},{"$f":"IF(F13=\"Formulario 'Administradores' Completo\",0,ABS(H13))","v":2}]
[null,null,210000,"Estado de situación financiera",{"$f":"IF('210000 - Est. Situa. Financiera'!N13=0,\"El formulario NO tiene validaciones pendientes\",\"El Formulario tiene validaciones pendientes\")","v":"El Formulario tiene validaciones pendientes"},{"$f":"'210000 - Est. Situa. Financiera'!I13","v":"Formulario 'Estado de Situación Financiera' con 5 inconsistencias"},null,{"$f":"MID(F14,48,2)","v":" 5"},{"$f":"IF(F14=\"Formulario 'Estado de Situación Financiera' Válido\",0,ABS(H14))","v":5}]
[null,null,310000,"Estado de Resultados",{"$f":"IF('310000 - Est. Resultados'!P13=0,\"El formulario NO tiene validaciones pendientes\",\"El Formulario tiene validaciones pendientes\")","v":"El Formulario tiene validaciones pendientes"},{"$f":"'310000 - Est. Resultados'!I13","v":"Formulario 'Estado de Resultados' con 4 inconsistencias"},null,{"$f":"MID(F15,39,2)","v":"4 "},{"$f":"IF(F15=\"Formulario 'Estado de Resultados' Válido\",0,ABS(H15))","v":4}]
[]
[]
[null,{"$f":"IF(H18=0,\"El archivo NO tiene validaciones pendientes\",\"El archivo tiene validaciones pendientes:\")","v":"El archivo tiene validaciones pendientes:"},null,null,null,null,{"$f":"H18","v":36},{"$f":"I18","v":36},{"$f":"IFERROR(SUM(I12:I15),Check)","v":36}]

{"sheet":"110000 - Carátula","index":5,"n_rows":52,"n_cols":16,"rows_kept":52,"cut":false,"hidden":false,"merged":[[7,4,9,7]]}
[]
[]
[]
[]
[]
[]
[]
[null,null,null,null,"110000 - CARÁTULA"]
[]
[]
[]
[null,null,null,null,null,1]
[null,null,"Periodo",null,null,{"$f":"Periodos!C4","v":"2020-12-31"},null,{"$f":"IF(L13=0,\"Formulario 'Carátula' Completo\",\"Formulario 'Carátula' con \"&L13&\" Celdas por diligenciar\")","v":"Formulario 'Carátula' con 25 Celdas por diligenciar"},null,null,null,{"$f":"SUM(L16:L52)","v":25}]
[null,null,1,"co-svsp-core:Caratula","Carátula"]
[null,null,1,"co-svsp-core:DatosBasicos","Datos Básicos"]
[null,null,1,"co-svsp-core:NIT","NIT",null,null,{"$f":"IF(F16<>\"\",\"CORRECTO\",\"Debe registrar información para '\"&E16&\"'\")","v":"Debe registrar información para 'NIT'"},null,null,null,{"$f":"IF(H16=\"CORRECTO\",0,1)","v":1}]
[null,null,1,"co-svsp-core:DV","DV",null,null,{"$f":"IF(F17<>\"\",\"CORRECTO\",\"Debe registrar información para '\"&E17&\"'\")","v":"Debe registrar información para 'DV'"},null,null,null,{"$f":"IF(H17=\"CORRECTO\",0,1)","v":1}]
[null,null,1,"co-svsp-core:FechadeCorte","Fecha de Corte",{"$f":"Periodos!C4","v":"2020-12-31"},null,{"$f":"IF(F18<>\"\",\"CORRECTO\",\"Debe registrar información para '\"&E18&\"'\")","v":"CORRECTO"},null,null,null,{"$f":"IF(H18=\"CORRECTO\",0,1)","v":0}]
[null,null,1,"co-svsp-core:SereunioelmaximoOrganoSocialparaconsiderarlosEstadosFinancieros","Se reunió el máximo Órgano Social para considerar los Estados Financieros",null,null,"Debe registrar información para 'Se reunió el máximo Órgano Social para considerar los Estados Financieros'",null,null,null,{"$f":"IF(H19=\"CORRECTO\",0,1)","v":1},null,{"$f":"IF(OR(F19=\"\",F19=\"02. NO\"),0,1)","v":0}]
[null,null,1,"co-svsp-core:ActaNumero","Acta Número",null,null,{"$f":"IF(P20=\"CORRECTO\",\"CORRECTO\",\"Debe registrar información para '\"&E20&\"' cuando responda afirmativamente a la pregunta '\"&E19&\"', en caso contrario esta celda debe estar vacia\")","v":"CORRECTO"},null,null,null,{"$f":"IF(P20=\"CORRECTO\",0,1)","v":0},null,{"$f":"IF(F20=\"\",0,1)","v":0},null,{"$f":"IF(AND(N19=0,N20=0),\"CORRECTO\",IF(AND(N19<>0,N20<>0),\"CORRECTO\",\"INCORRECTO\"))","v":"CORRECTO"}]
[null,null,1,"co-svsp-core:FechadelActa","Fecha del Acta",null,null,{"$f":"IF(P21=\"CORRECTO\",\"CORRECTO\",\"Debe registrar información para '\"&E21&\"' cuando responda afirmativamente a la pregunta '\"&E20&\"', en caso contrario esta celda debe estar vacia\")","v":"CORRECTO"},null,null,null,{"$f":"IF(H21=\"CORRECTO\",0,1)","v":0},null,{"$f":"IF(F21=\"\",0,1)","v":0},null,{"$f":"IF(AND(N19=0,N21=0),\"CORRECTO\",IF(AND(N19<>0,N21<>0),\"CORRECTO\",\"INCORRECTO\"))","v":"CORRECTO"}]
[null,null,1,"co-svsp-core:FueronaprobadosenAsambleaGeneraldeAccionistasolaJuntadeSocios","Fueron aprobados en Asamblea General de Accionistas o la Junta de Socios",null,null,{"$f":"IF(P22=\"CORRECTO\",\"CORRECTO\",\"Debe registrar información para '\"&E22&\"' cuando responda afirmativamente a la pregunta '\"&E21&\"', en caso contrario esta celda debe estar vacia\")","v":"CORRECTO"},null,null,null,{"$f":"IF(H22=\"CORRECTO\",0,1)","v":0},null,{"$f":"IF(F22=\"\",0,1)","v":0},null,{"$f":"IF(AND(N19=0,N22=0),\"CORRECTO\",IF(AND(N19<>0,N22<>0),\"CORRECTO\",\"INCORRECTO\"))","v":"CORRECTO"}]
[null,null,1,"co-svsp-core:InformacionGeneral","Información General"]
[null,null,1,"co-svsp-core:RazonSocial","Razón Social",null,null,{"$f":"IF(F24<>\"\",\"CORRECTO\",\"Debe registrar información para '\"&E24&\"'\")","v":"Debe registrar información para 'Razón Social'"},null,null,null,{"$f":"IF(H24=\"CORRECTO\",0,1)","v":1}]
[null,null,1,"co-svsp-core:ObjetoSocialPrincipal","Objeto Social Principal",null,null,"Debe registrar información para 'Objeto Social Principal'",null,null,null,1]
[null,null,1,"co-svsp-core:ClasificacionIndustrialInternacionalUniformeVersion4AC","Clasificación Industrial Internacional Uniforme Versión 4 A.C",null,null,"Debe registrar información para 'Clasificación Industrial Internacional Uniforme Versión 4 A.C'",null,null,null,1]
[null,null,1,"co-svsp-core:GrupodePreparadoresdeInformacionFinanciera","Grupo de Preparadores de Información Financiera",null,null,"Debe registrar información para 'Grupo de Preparadores de Información Financiera'",null,null,null,1]
[null,null,1,"co-svsp-core:NaturalezadelaEmpresa","Naturaleza de la Empresa",null,null,"Debe registrar información para 'Naturaleza de la Empresa'",null,null,null,1]
[null,null,1,"co-svsp-core:TipoSocietario","Tipo Societario",null,null,"Debe registrar información para 'Tipo Societario'",null,null,null,1]
[null,null,1,"co-svsp-core:EstadoDeLaEmpresa","Estado de la Empresa",null,null,"Debe registrar información para 'Estado de la Empresa'",null,null,null,1]
[null,null,1,"co-svsp-core:DirecciondeNotificacionJudicial","Dirección de Notificación Judicial",null,null,"Debe registrar información para 'Dirección de Notificación Judicial'",null,null,null,1]
[null,null,1,"co-svsp-core:DepartamentodeNotificacionJudicial","Departamento de Notificación Judicial",null,null,"Debe registrar información para 'Departamento de Notificación Judicial'",null,null,null,1]
[null,null,1,"co-svsp-core:CiudaddeNotificacionJudicial","Ciudad de Notificación Judicial",null,null,{"$f":"IF(AND(F33<>\"\",MID(F32,1,2)=MID(F33,1,2)),\"CORRECTO\",\"Debe registrar información para '\"&E33&\"'. El valor seleccionado para '\"&E33&\"' debe corresponder con el valor seleccionado para '\"&E32&\"'.\")","v":"Debe registrar información para 'Ciudad de Notificación Judicial'. El valor seleccionado para 'Ciudad de Notificación Judicial' debe corresponder con el valor seleccionado para 'Departamento de Notificación Judicial'."},null,null,null,1]
[null,null,1,"co-svsp-core:CorreoElectronicoDeNotificacion","Correo electrónico de notificación",null,null,{"$f":"IF(AND(K34=FALSE,F34<>\"\"),\"CORRECTO\",\"Debe registrar información para '\"&E34&\"'\")","v":"Debe registrar información para 'Correo electrónico de notificación'"},null,null,{"$f":"ISERROR(AND(SEARCH(\"@\",F34),SEARCH(\".\",F34)))","v":true},1]
[null,null,1,"co-svsp-core:AutorizacionNotificacionJudicial","Autorizo a la Superintendencia de Vigilancia y Seguridad Privada a que me notifique y/o comunique cualquier decisión al correo electrónico suministrado en el marco de la aplicación del artículo 56 de la Ley 1437 de 2011",null,null,{"$f":"IF(F35<>\"\",\"CORRECTO\",\"Debe registrar información para '\"&E35&\"'\")","v":"Debe registrar información para 'Autorizo a la Superintendencia de Vigilancia y Seguridad Privada a que me notifique y/o comunique cualquier decisión al correo electrónico suministrado en el marco de la aplicación del artículo 56 de la Ley 1437 de 2011'"},null,null,null,{"$f":"IF(H35=\"CORRECTO\",0,1)","v":1},null,{"$f":"IF(OR(F35=\"\",F35=\"02. NO\"),0,1)","v":0}]
[null,null,1,"co-svsp-core:Celular","Celular",null,null,"Debe registrar información para 'Celular'",null,null,null,1]
[null,null,1,"co-svsp-core:TelefonoFijo","Teléfono Fijo",null,null,"Debe registrar información para 'Teléfono Fijo'",null,null,null,1]
[null,null,1,"co-svsp-core:InformacionAnteSupervigilancia","Información ante Supervigilancia"]
[null,null,1,"co-svsp-core:EstadoDeLicenciaDeFuncionamiento","Estado de Licencia de Funcionamiento",null,null,{"$f":"IF(F39<>\"\",\"CORRECTO\",\"Debe registrar información para '\"&E39&\"'\")","v":"Debe registrar información para 'Estado de Licencia de Funcionamiento'"},null,null,null,{"$f":"IF(H39=\"CORRECTO\",0,1)","v":1}]
[null,null,1,"co-svsp-core:TipoDeServicio","Tipo de Servicio",null,null,"Debe registrar información para 'Tipo de Servicio'",null,null,null,{"$f":"IF(H40=\"CORRECTO\",0,1)","v":1}]
[null,null,1,"co-svsp-core:InformacionSobreLaRevisoriaFiscal","Información sobre la Revisoría Fiscal"]
[null,null,1,"co-svsp-core:LaCompaniaEstaObligadaARevisorFiscal","¿La compañía esta obligada a tener revisor fiscal?",null,null,{"$f":"IF(F42<>\"\",\"CORRECTO\",\"Debe registrar información para '\"&E42&\"'\")","v":"Debe registrar información para '¿La compañía esta obligada a tener revisor fiscal?'"},null,null,null,{"$f":"IF(H42=\"CORRECTO\",0,1)","v":1},null,{"$f":"IF(OR(F42=\"\",F42=\"02. NO\"),0,1)","v":0}]
[null,null,1,"co-svsp-core:RevisorFiscalPerteneceAFirma","¿El revisor fiscal pertenece a una firma?",null,null,{"$f":"IF(P43=\"CORRECTO\",\"CORRECTO\",\"Debe registrar información para '\"&E43&\"' cuando responde afirmativamente a '\"&E42&\"'. '\"&E43&\"' debe estar vacio cuando responde negativamente a '\"&E42&\"'\")","v":"CORRECTO"},null,null,null,{"$f":"IF(P43=\"CORRECTO\",0,1)","v":0},null,{"$f":"IF(F43=\"\",0,1)","v":0},{"$f":"IF(OR(F43=\"\",F43=\"02. NO\"),0,1)","v":0},{"$f":"IF(AND(N42=0,N43=0),\"CORRECTO\",IF(AND(N42<>0,N43<>0),\"CORRECTO\",\"INCORRECTO\"))","v":"CORRECTO"}]
[null,null,1,"co-svsp-core:RazonSocialRevisorFiscalPersonaJurídica","¿A que firma pertenece el revisor fiscal?",null,null,{"$f":"IF(P44=\"CORRECTO\",\"CORRECTO\",\"Debe registrar información para '\"&E44&\"' cuando responde afirmativamente a '\"&E43&\"'. '\"&E44&\"' debe estar vacio cuando responde negativamente a '\"&E43&\"'\")","v":"CORRECTO"},null,null,null,{"$f":"IF(H44=\"CORRECTO\",0,1)","v":0},null,null,{"$f":"IF(F44=\"\",0,1)","v":0},{"$f":"IF(AND(O43=0,O44=0),\"CORRECTO\",IF(AND(O43<>0,O44<>0),\"CORRECTO\",\"INCORRECTO\"))","v":"CORRECTO"}]
[null,null,1,"co-svsp-core:DirecciondeDomicilioRevisorFiscalPersonaJurídica","Dirección de Domicilio de la firma a la cual pertenece el revisor fiscal",null,null,{"$f":"IF(P45=\"CORRECTO\",\"CORRECTO\",\"Debe registrar información para '\"&E45&\"' cuando responde afirmativamente a '\"&E43&\"'. '\"&E45&\"' debe estar vacio cuando responde negativamente a '\"&E43&\"'\")","v":"CORRECTO"},null,null,null,{"$f":"IF(H45=\"CORRECTO\",0,1)","v":0},null,null,{"$f":"IF(F45=\"\",0,1)","v":0},{"$f":"IF(AND(O43=0,O45=0),\"CORRECTO\",IF(AND(O43<>0,O45<>0),\"CORRECTO\",\"INCORRECTO\"))","v":"CORRECTO"}]
[null,null,1,"co-svsp-core:RegistroJCCRevisorFiscalPersonaJurídica","Registro en la Junta Central de Contadores del Revisor fiscal",null,null,{"$f":"IF(P46=\"CORRECTO\",\"CORRECTO\",\"Debe registrar información para '\"&E46&\"' cuando responde afirmativamente a '\"&E42&\"'. '\"&E46&\"' debe estar vacio cuando responde negativamente a '\"&E42&\"'\")","v":"CORRECTO"},null,null,null,{"$f":"IF(P46=\"CORRECTO\",0,1)","v":0},null,{"$f":"IF(F46=\"\",0,1)","v":0},null,{"$f":"IF(AND(N42=0,N46=0),\"CORRECTO\",IF(AND(N42<>0,N46<>0),\"CORRECTO\",\"INCORRECTO\"))","v":"CORRECTO"}]
[null,null,1,"co-svsp-core:InformacionSobreConsolidacionDeEstadosFinancieros","Información sobre consolidación de Estados Financieros"]
[null,null,1,"co-svsp-core:LaCompaniaEsResponsableDeConsolidarInformacionParaEstePeriodo","¿La compañía es responsable de consolidar información para este periodo?",null,null,{"$f":"IF(F48<>\"\",\"CORRECTO\",\"Debe registrar información para '\"&E48&\"'\")","v":"Debe registrar información para '¿La compañía es responsable de consolidar información para este periodo?'"},null,null,null,{"$f":"IF(H48=\"CORRECTO\",0,1)","v":1}]
[null,null,1,"co-svsp-core:LaCompaniaEsSubordinadaOAsociadaDeOtraCompania","¿La compañía es subordinada o asociada de otra compañía?",null,null,"Debe registrar información para '¿La compañía es subordinada o asociada de otra compañía?'",null,null,null,{"$f":"IF(H49=\"CORRECTO\",0,1)","v":1}]
[null,null,1,"co-svsp-core:LaCompaniaTieneSubordinadas","¿La compañía tiene subordinadas?",null,null,"Debe registrar información para '¿La compañía tiene subordinadas?'",null,null,null,{"$f":"IF(H50=\"CORRECTO\",0,1)","v":1}]
[null,null,1,"co-svsp-core:LaCompaniaTieneAsociadas","¿La compañía tiene asociadas?",null,null,"Debe registrar información para '¿La compañía tiene asociadas?'",null,null,null,{"$f":"IF(H51=\"CORRECTO\",0,1)","v":1}]
[null,null,1,"co-svsp-core:LaCompaniaTieneNegociosConjuntos","¿La compañía tiene negocios conjuntos?",null,null,"Debe registrar información para '¿La compañía tiene negocios conjuntos?'",null,null,null,{"$f":"IF(H52=\"CORRECTO\",0,1)","v":1}]

{"sheet":"110010 - Administradores","index":6,"n_rows":17,"n_cols":17,"rows_kept":17,"cut":false,"hidden":false,"merged":[[7,4,9,12],[12,5,12,10]]}
[]
[]
[]
[]
[]
[]
[]
[null,null,null,null,"110010 - Información a revelar sobre administradores"]
[]
[]
[]
[]
[null,null,null,null,null,"Detalles de Administradores ",null,null,null,null,null,null,{"$f":"IF(Q13=0,\"Formulario 'Administradores' Completo\",\"Formulario 'Administradores' con \"&Q13&\" filas por diligenciar\")","v":"Formulario 'Administradores' con 2 filas por diligenciar"},null,null,null,{"$f":"SUM(Q15:Q17)","v":2}]
[null,null,null,null,"co-svsp-core_2017-12-31:AdministradoresEje","Tipo de documento","Numero de documento","Nombres","Apellidos","Email","Tarjeta profesional"]
[null,null,null,null,"Representante legal [miembro]",null,null,null,null,null,null,null,{"$f":"IF(AND(F15<>\"\",G15<>\"\",H15<>\"\",I15<>\"\",J15<>\"\",P15=FALSE),\"CORRECTO\",\"Registre de forma completa y adecuada la información de \"&E15&\"'\")","v":"Registre de forma completa y adecuada la información de Representante legal [miembro]'"},{"$f":"ISERROR(AND(SEARCH(\"@\",H15),SEARCH(\".\",H15)))","v":true},null,{"$f":"ISERROR(AND(SEARCH(\"@\",J15),SEARCH(\".\",J15)))","v":true},{"$f":"IF(M15=\"CORRECTO\",0,1)","v":1}]
[null,null,null,null,"Contador [miembro]",null,null,null,null,null,null,null,{"$f":"IF(AND(E16<>\"\",F16<>\"\",G16<>\"\",H16<>\"\",I16<>\"\",J16<>\"\",K16<>\"\",P16=FALSE),\"CORRECTO\",\"Registre de forma completa y adecuada la información de \"&E16&\"'\")","v":"Registre de forma completa y adecuada la información de Contador [miembro]'"},{"$f":"ISERROR(AND(SEARCH(\"@\",H16),SEARCH(\".\",H16)))","v":true},null,{"$f":"ISERROR(AND(SEARCH(\"@\",J16),SEARCH(\".\",J16)))","v":true},1]
[null,null,null,null,"Revisor fiscal [miembro]",null,null,null,null,null,null,null,{"$f":"IF(OR('110000 - Carátula'!F42=\"\",'110000 - Carátula'!F42=\"02. NO\"),\"CORRECTO\",IF(AND('110000 - Carátula'!F42=\"01. SI\",F17<>\"\",G17<>\"\",H17<>\"\",I17<>\"\",J17<>\"\",K17<>\"\",Q17=FALSE),\"CORRECTO\",\"Se indíca en 'Carátula' la obligatoriedad de tener revisor fiscal, de forma completa y adecuada la información de \"&E17&\"'\"))","v":"CORRECTO"},null,null,null,{"$f":"ISERROR(AND(SEARCH(\"@\",J17),SEARCH(\".\",J17)))","v":true}]

{"sheet":"110010 GeneraXBRL","index":7,"n_rows":16,"n_cols":7,"rows_kept":16,"cut":false,"hidden":true,"merged":[[3,3,5,9],[7,3,7,6]]}
[]
[]
[]
[null,null,null,"110010 - Información a revelar sobre administradores"]
[]
[]
[]
[]
[null,null,null,null,"co-svsp-core:RepresentantePrincipalMiembro","co-svsp-core:ContadorMiembro","co-svsp-core:RevisorFiscalMiembro"]
[null,"Periodo",null,"co-svsp-core:AdministradoresEje","Representante legal [miembro]","Contador [miembro]","Revisor fiscal [miembro]"]
[null,"1;1","co-svsp-core:TipoDeDocumento","Tipo de documento",{"$f":"IF('110010 - Administradores'!F15=\"\",\"\",'110010 - Administradores'!F15)","v":""},{"$f":"IF('110010 - Administradores'!F16=\"\",\"\",'110010 - Administradores'!F16)","v":""},{"$f":"IF('110010 - Administradores'!F17=\"\",\"\",'110010 - Administradores'!F17)","v":""}]
[null,"1;1","co-svsp-core:NumeroDeDocumento","Numero de documento",{"$f":"IF('110010 - Administradores'!G15=\"\",\"\",'110010 - Administradores'!G15)","v":""},{"$f":"IF('110010 - Administradores'!G16=\"\",\"\",'110010 - Administradores'!G16)","v":""},{"$f":"IF('110010 - Administradores'!G17=\"\",\"\",'110010 - Administradores'!G17)","v":""}]
[null,"1;1","co-svsp-core:Nombres","Nombres",{"$f":"IF('110010 - Administradores'!H15=\"\",\"\",'110010 - Administradores'!H15)","v":""},{"$f":"IF('110010 - Administradores'!H16=\"\",\"\",'110010 - Administradores'!H16)","v":""},{"$f":"IF('110010 - Administradores'!H17=\"\",\"\",'110010 - Administradores'!H17)","v":""}]
[null,"1;1","co-svsp-core:Apellidos","Apellidos",{"$f":"IF('110010 - Administradores'!I15=\"\",\"\",'110010 - Administradores'!I15)","v":""},{"$f":"IF('110010 - Administradores'!I16=\"\",\"\",'110010 - Administradores'!I16)","v":""},{"$f":"IF('110010 - Administradores'!I17=\"\",\"\",'110010 - Administradores'!I17)","v":""}]
[null,"1;1","co-svsp-core:Email","Email",{"$f":"IF('110010 - Administradores'!J15=\"\",\"\",'110010 - Administradores'!J15)","v":""},{"$f":"IF('110010 - Administradores'!J16=\"\",\"\",'110010 - Administradores'!J16)","v":""},{"$f":"IF('110010 - Administradores'!J17=\"\",\"\",'110010 - Administradores'!J17)","v":""}]
[null,"1;1","co-svsp-core:TarjetaProfesional","Tarjeta profesional",{"$f":"IF('110010 - Administradores'!K15=\"\",\"\",'110010 - Administradores'!K15)","v":""},{"$f":"IF('110010 - Administradores'!K16=\"\",\"\",'110010 - Administradores'!K16)","v":""},{"$f":"IF('110010 - Administradores'!K17=\"\",\"\",'110010 - Administradores'!K17)","v":""}]

{"sheet":"Lists","index":8,"n_rows":497,"n_cols":99,"rows_kept":497,"cut":false,"hidden":true,"merged":[]}
[]
[null,null,null,null,null,null,null,null,null,null,null,null,null,null,null,null,{"$f":"MID('110000 - Carátula'!F32,1,2)","v":""},{"$f":"VLOOKUP(Q2,Q3:R35,2,FALSE)","v":{"$error":"#N/A"}},null,null,null,null,null,null,null,null,null,null,null,null,"AMAZONAS",null,"ANTIOQUIA",null,"ARAUCA",null,"ATLANTICO",null,"BOGOTA",null,"BOLIVAR",null,"BOYACA",null,"CALDAS",null,"CAQUETA",null,"CASANARE",null,"CAUCA",null,"CESAR",null,"CHOCO",null,"CORDOBA",null,"CUNDINAMARCA",null,"GUAINIA",null,"GUAVIARE",null,"HUILA",null,"LA_GUAJIRA",null,"MAGDALENA",null,"META",null,"NARINO",null,"NORTE_DE_SANTANDER",null,"PUTUMAYO",null,"QUINDIO",null,"RISARALDA",null,"SAN_ANDRES_Y_PROVIDENCIA",null,"SANTANDER",null,"SUCRE",null,"TOLIMA",null,"VALLE",null,"VAUPES",null,"VICHADA"]
[null,"01. SI","1","01. SI",null,"A0111 - Cultivo de cereales (excepto arroz), legumbres y semillas oleaginosas",null,"01. GRUPO 1",null,"01. PERSONA JURIDICA",null,"01. SOCIEDAD ANONIMA - SA",null,"01. ACTIVA",null,"05 - ANTIOQUIA",{"$f":"MID(P3,1,2)","v":"05"},"ANTIOQUIA",null,"05001 - MEDELLIN-ANTIOQUIA",null,"01. VIGENTE",null,"01. EMPRESA DE VIGILANCIA Y SEGURIDAD PRIVADAS CON ARMAS",null,null,null,"01. CEDULA DE CIUDADANIA",null,null,"91001 - LETICIA-AMAZONAS",null,"05001 - MEDELLIN-ANTIOQUIA",null,"81001 - ARAUCA-ARAUCA",null,"08001 - BARRANQUILLA-ATLANTICO",null,"11001 - BOGOTA-BOGOTA, D.C.",null,"13001 - CARTAGENA-BOLIVAR",null,"15001 - TUNJA-BOYACA",null,"17001 - MANIZALES-CALDAS",null,"18001 - FLORENCIA-CAQUETA",null,"85001 - YOPAL-CASANARE",null,"19001 - POPAYAN-CAUCA",null,"20001 - VALLEDUPAR-CESAR",null,"27001 - QUIBDO-CHOCO",null,"23001 - MONTERIA-CORDOBA",null,"25001 - AGUA DE DIOS-CUNDINAMARCA",null,"94001 - INIRIDA-GUAINIA",null,"95001 - SAN JOSE DEL GUAVIARE-GUAVIARE",null,"41001 - NEIVA-HUILA",null,"44001 - RIOHACHA-LA GUAJIRA",null,"47001 - SANTA MARTA-MAGDALENA",null,"50001 - VILLAVICENCIO-META",null,"52001 - PASTO-NARIÑO",null,"54001 - CUCUTA-NORTE DE SANTANDER",null,"86001 - MOCOA-PUTUMAYO",null,"63001 - ARMENIA-QUINDIO",null,"66001 - PEREIRA-RISARALDA",null,"88001 - SAN ANDRES-SAN ANDRES Y PROVIDENCIA",null,"68001 - BUCARAMANGA-SANTANDER",null,"70001 - SINCELEJO-SUCRE",null,"73001 - IBAGUE-TOLIMA",null,"76001 - CALI-VALLE DEL CAUCA",null,"97001 - MITU-VAUPES",null,"99001 - PUERTO CARREÑO-VICHADA",null,"CÉDULA DE CIUDADANÍA",null,"013 - AFGANISTAN"]
[null,"02. NO","2","02. NO",null,"A0112 - Cultivo de arroz",null,"02. GRUPO 2",null,"02. PERSONA NATURAL",null,"02. SOCIEDAD DE RESPONSABILIDAD LIMITADA - LTDA",null,"02. CONCORDATO EN TRÁMITE",null,"08 - ATLANTICO",{"$f":"MID(P4,1,2)","v":"08"},"ATLANTICO",null,"05002 - ABEJORRAL-ANTIOQUIA",null,"02. EN TRÁMITE",null,"02. EMPRESA DE VIGILANCIA Y SEGURIDAD PRIVADAS SIN ARMAS",null,null,null,"02. CEDULA DE EXTRANJERIA",null,null,"91263 - EL ENCANTO-AMAZONAS",null,"05002 - ABEJORRAL-ANTIOQUIA",null,"81065 - ARAUQUITA-ARAUCA",null,"08078 - BARANOA-ATLANTICO",null,null,null,"13006 - ACHI-BOLIVAR",null,"15022 - ALMEIDA-BOYACA",null,"17013 - AGUADAS-CALDAS",null,"18029 - ALBANIA-CAQUETA",null,"85010 - AGUAZUL-CASANARE",null,"19022 - ALMAGUER-CAUCA",null,"20011 - AGUACHICA-CESAR",null,"27006 - ACANDI-CHOCO",null,"23068 - AYAPEL-CORDOBA",null,"25019 - ALBAN-CUNDINAMARCA",null,"94343 - BARRANCO MINAS-GUAINIA",null,"95015 - CALAMAR-GUAVIARE",null,"41006 - ACEVEDO-HUILA",null,"44035 - ALBANIA-LA GUAJIRA",null,"47030 - ALGARROBO-MAGDALENA",null,"50006 - ACACIAS-META",null,"52019 - SAN JOSÉ ALBÁN-NARIÑO",null,"54003 - ABREGO-NORTE DE SANTANDER",null,"86219 - COLON-PUTUMAYO",null,"63111 - BUENAVISTA-QUINDIO",null,"66045 - APIA-RISARALDA",null,"88564 - PROVIDENCIA-SAN ANDRES Y PROVIDENCIA",null,"68013 - AGUADA-SANTANDER",null,"70110 - BUENAVISTA-SUCRE",null,"73024 - ALPUJARRA-TOLIMA",null,"76020 - ALCALA-VALLE DEL CAUCA",null,"97161 - CARURU-VAUPES",null,"99524 - LA PRIMAVERA-VICHADA",null,"NIT",null,"017 - ALBANIA"]
[null,null,"3","03. N/A",null,"A0113 - Cultivo de hortalizas, raíces y tubérculos",null,"03. GRUPO 3",null,null,null,"03. SOCIEDAD POR ACCIONES SIMPLIFICADA - SAS","CEDULA DE CIUDADANIA","03. CONCORDATO EN EJECUCIÓN",null,"11 - BOGOTA D.C.","11","BOGOTA",null,"05004 - ABRIAQUI-ANTIOQUIA",null,"03. EN RECURSO",null,"03. COOPERATIVA DE VIGILANCIA Y SEGURIDAD PRIVADA",null,null,null,"03. PASAPORTE",null,null,"91405 - LA CHORRERA-AMAZONAS",null,"05004 - ABRIAQUI-ANTIOQUIA",null,"81220 - CRAVO NORTE-ARAUCA",null,"08137 - CAMPO DE LA CRUZ-ATLANTICO",null,null,null,"13030 - ALTOS DEL ROSARIO-BOLIVAR",null,"15047 - AQUITANIA-BOYACA",null,"17042 - ANSERMA-CALDAS",null,"18094 - BELEN DE LOS ANDAQUIES-CAQUETA",null,"85015 - CHAMEZA-CASANARE",null,"19050 - ARGELIA-CAUCA",null,"20013 - AGUSTIN CODAZZI-CESAR",null,"27025 - ALTO BAUDO-CHOCO",null,"23079 - BUENAVISTA-CORDOBA",null,"25035 - ANAPOIMA-CUNDINAMARCA",null,"94663 - MAPIRIPANA-GUAINIA",null,"95025 - EL RETORNO-GUAVIARE",null,"41013 - AGRADO-HUILA",null,"44078 - BARRANCAS-LA GUAJIRA",null,"47053 - ARACATACA-MAGDALENA",null,"50110 - BARRANCA DE UPIA-META",null,"52022 - ALDANA-NARIÑO",null,"54051 - ARBOLEDAS-NORTE DE SANTANDER",null,"86320 - ORITO-PUTUMAYO",null,"63130 - CALARCA-QUINDIO",null,"66075 - BALBOA-RISARALDA",null,null,null,"68020 - ALBANIA-SANTANDER",null,"70124 - CAIMITO-SUCRE",null,"73026 - ALVARADO-TOLIMA",null,"76036 - ANDALUCIA-VALLE DEL CAUCA",null,"97511 - PACOA-VAUPES",null,"99624 - SANTA ROSALIA-VICHADA",null,"CEDULA EXTRANJERÍA",null,"023 - ALEMANIA"]
[null,null,"4",null,null,"A0114 - Cultivo de tabaco",null,null,null,null,null,"04. COOPERATIVA DE TRABAJO ASOCIADO - CTA",null,"04. EN ETAPA PREOPERATIVA",null,"13 - BOLIVAR","13","BOLIVAR",null,"05021 - ALEJANDRIA-ANTIOQUIA",null,null,null,"04. EMPRESA DE TRANSPORTE DE VALORES",null,null,null,null,null,null,"91407 - LA PEDRERA-AMAZONAS",null,"05021 - ALEJANDRIA-ANTIOQUIA",null,"81300 - FORTUL-ARAUCA",null,"08141 - CANDELARIA-ATLANTICO",null,null,null,"13042 - ARENAL-BOLIVAR",null,"15051 - ARCABUCO-BOYACA",null,"17050 - ARANZAZU-CALDAS",null,"18150 - CARTAGENA DEL CHAIRA-CAQUETA",null,"85125 - HATO COROZAL-CASANARE",null,"19075 - BALBOA-CAUCA",null,"20032 - ASTREA-CESAR",null,"27050 - ATRATO-CHOCO",null,"23090 - CANALETE-CORDOBA",null,"25040 - ANOLAIMA-CUNDINAMARCA",null,"94883 - SAN FELIPE-GUAINIA",null,"95200 - MIRAFLORES-GUAVIARE",null,"41016 - AIPE-HUILA",null,"44090 - DIBULLA-LA GUAJIRA",null,"47058 - ARIGUANI-MAGDALENA",null,"50124 - CABUYARO-META",null,"52036 - ANCUYA-NARIÑO",null,"54099 - BOCHALEMA-NORTE DE SANTANDER",null,"86568 - PUERTO ASIS-PUTUMAYO",null,"63190 - CIRCASIA-QUINDIO",null,"66088 - BELEN DE UMBRIA-RISARALDA",null,null,null,"68051 - ARATOCA-SANTANDER",null,"70204 - COLOSO-SUCRE",null,"73030 - AMBALEMA-TOLIMA",null,"76041 - ANSERMANUEVO-VALLE DEL CAUCA",null,"97666 - TARAIRA-VAUPES",null,"99773 - CUMARIBO-VICHADA",null,"PASAPORTE",null,"026 - ARMENIA"]
[null,null,"5",null,null,"A0115 - Cultivo de plantas textiles",null,null,null,null,null,"05. SOCIEDAD EN COMANDITA",null,"05. ACUERDO DE REESTRUCTURACIÓN",null,"15 - BOYACA","15","BOYACA",null,"05030 - AMAGA-ANTIOQUIA",null,null,null,"05. EMPRESA BLINDADORA",null,null,null,null,null,null,"91430 - LA VICTORIA-AMAZONAS",null,"05030 - AMAGA-ANTIOQUIA",null,"81591 - PUERTO RONDON-ARAUCA",null,"08296 - GALAPA-ATLANTICO",null,null,null,"13052 - ARJONA-BOLIVAR",null,"15087 - BELEN-BOYACA",null,"17088 - BELALCAZAR-CALDAS",null,"18205 - CURILLO-CAQUETA",null,"85136 - LA SALINA-CASANARE",null,"19100 - BOLIVAR-CAUCA",null,"20045 - BECERRIL-CESAR",null,"27073 - BAGADO-CHOCO",null,"23162 - CERETE-CORDOBA",null,"25053 - ARBELAEZ-CUNDINAMARCA",null,"94884 - PUERTO COLOMBIA-GUAINIA",null,null,null,"41020 - ALGECIRAS-HUILA",null,"44098 - DISTRACCION-LA GUAJIRA",null,"47161 - CERRO SAN ANTONIO-MAGDALENA",null,"50150 - CASTILLA LA NUEVA-META",null,"52051 - ARBOLEDA - BERRUECOS-NARIÑO",null,"54109 - BUCARASICA-NORTE DE SANTANDER",null,"86569 - PUERTO CAICEDO-PUTUMAYO",null,"63212 - CORDOBA-QUINDIO",null,"66170 - DOSQUEBRADAS-RISARALDA",null,null,null,"68077 - BARBOSA-SANTANDER",null,"70215 - COROZAL-SUCRE",null,"73043 - ANZOATEGUI-TOLIMA",null,"76054 - ARGELIA-VALLE DEL CAUCA",null,"97777 - PAPUNAUA-VAUPES",null,null,null,"TARJETA DE IDENTIDAD",null,"027 - ARUBA"]
[null,null,"6",null,null,"A0119 - Otros cultivos transitorios n.c.p.",null,null,null,null,null,"06. EMPRESA UNIPERSONAL",null,"06. ACUERDO DE REORGANIZACION",null,"17 - CALDAS","17","CALDAS",null,"05031 - AMALFI-ANTIOQUIA",null,null,null,"06. EMPRESA ARRENDADORA DE VEHÍCULOS BLINDADOS",null,null,null,null,null,null,"91460 - MIRITI – PARANA-AMAZONAS",null,"05031 - AMALFI-ANTIOQUIA",null,"81736 - SARAVENA-ARAUCA",null,"08372 - JUAN DE ACOSTA-ATLANTICO",null,null,null,"13062 - ARROYOHONDO-BOLIVAR",null,"15090 - BERBEO-BOYACA",null,"17174 - CHINCHINA-CALDAS",null,"18247 - EL DONCELLO-CAQUETA",null,"85139 - MANI-CASANARE",null,"19110 - BUENOS AIRES-CAUCA",null,"20060 - BOSCONIA-CESAR",null,"27075 - BAHIA SOLANO-CHOCO",null,"23168 - CHIMA-CORDOBA",null,"25086 - BELTRAN-CUNDINAMARCA",null,"94885 - GUADALUPE-GUAINIA",null,null,null,"41026 - ALTAMIRA-HUILA",null,"44110 - EL MOLINO-LA GUAJIRA",null,"47170 - CHIBOLO-MAGDALENA",null,"50223 - CUBARRAL-META",null,"52079 - BARBACOAS-NARIÑO",null,"54125 - CACOTA-NORTE DE SANTANDER",null,"86571 - PUERTO GUZMAN-PUTUMAYO",null,"63272 - FILANDIA-QUINDIO",null,"66318 - GUATICA-RISARALDA",null,null,null,"68079 - BARICHARA-SANTANDER",null,"70221 - COVEÑAS-SUCRE",null,"73055 - ARMERO-TOLIMA",null,"76100 - BOLIVAR-VALLE DEL CAUCA",null,"97889 - YAVARATE-VAUPES",null,null,null,"SOCIEDAD EXTRANJERA SIN NIT EN COLOMBIA",null,"029 - BOSNIA"]
[null,null,"7",null,null,"A0121 - Cultivo de frutas tropicales y subtropicales",null,null,null,null,null,"07. COOPERATIVA",null,"07. EN LIQUIDACIÓN",null,"18 - CAQUETA","18","CAQUETA",null,"05034 - ANDES-ANTIOQUIA",null,null,null,"07. EMPRESA ASESORA, CONSULTORA E INVESTIGADORA EN VIGILANCIA Y SEGURIDAD PRIVADA",null,null,null,null,null,null,"91530 - PUERTO ALEGRIA-AMAZONAS",null,"05034 - ANDES-ANTIOQUIA",null,"81794 - TAME-ARAUCA",null,"08421 - LURUACO-ATLANTICO",null,null,null,"13074 - BARRANCO DE LOBA-BOLIVAR",null,"15092 - BETEITIVA-BOYACA",null,"17272 - FILADELFIA-CALDAS",null,"18256 - EL PAUJIL-CAQUETA",null,"85162 - MONTERREY-CASANARE",null,"19130 - CAJIBIO-CAUCA",null,"20175 - CHIMICHAGUA-CESAR",null,"27077 - BAJO BAUDO-CHOCO",null,"23182 - CHINU-CORDOBA",null,"25095 - BITUIMA-CUNDINAMARCA",null,"94886 - CACAHUAL-GUAINIA",null,null,null,"41078 - BARAYA-HUILA",null,"44279 - FONSECA-LA GUAJIRA",null,"47189 - CIENAGA-MAGDALENA",null,"50226 - CUMARAL-META",null,"52083 - BELEN-NARIÑO",null,"54128 - CACHIRA-NORTE DE SANTANDER",null,"86573 - LEGUIZAMO-PUTUMAYO",null,"63302 - GENOVA-QUINDIO",null,"66383 - LA CELIA-RISARALDA",null,null,null,"68081 - BARRANCABERMEJA-SANTANDER",null,"70230 - CHALAN-SUCRE",null,"73067 - ATACO-TOLIMA",null,"76109 - BUENAVENTURA-VALLE DEL CAUCA",null,null,null,null,null,"PERSONA NATURAL EXTRANJERA SIN IDENTIFICACIÓN",null,"031 -BURKINA FASSO"]
[null,null,"8",null,null,"A0122 - Cultivo de plátano y banano",null,null,null,null,null,"08. JUNTA DE ACCIÓN COMUNAL",null,null,null,"19 - CAUCA","19","CAUCA",null,"05036 - ANGELOPOLIS-ANTIOQUIA",null,null,null,"08. ESCUELA DE CAPACITACIÓN Y ENTRENAMIENTO EN VIGILANCIA Y SEGURIDAD PRIVADA",null,null,null,null,null,null,"91536 - PUERTO ARICA-AMAZONAS",null,"05036 - ANGELOPOLIS-ANTIOQUIA",null,null,null,"08433 - MALAMBO-ATLANTICO",null,null,null,"13140 - CALAMAR-BOLIVAR",null,"15097 - BOAVITA-BOYACA",null,"17380 - LA DORADA-CALDAS",null,"18410 - LA MONTAÑITA-CAQUETA",null,"85225 - NUNCHIA-CASANARE",null,"19137 - CALDONO-CAUCA",null,"20178 - CHIRIGUANA-CESAR",null,"27086 - BELEN DE BAJIRA-CHOCO",null,"23189 - CIENAGA DE ORO-CORDOBA",null,"25099 - BOJACA-CUNDINAMARCA",null,"94887 - PANA PANA-GUAINIA",null,null,null,"41132 - CAMPOALEGRE-HUILA",null,"44378 - HATONUEVO-LA GUAJIRA",null,"47205 - CONCORDIA-MAGDALENA",null,"50245 - EL CALVARIO-META",null,"52110 - BUESACO-NARIÑO",null,"54172 - CHINACOTA-NORTE DE SANTANDER",null,"86749 - SIBUNDOY-PUTUMAYO",null,"63401 - LA TEBAIDA-QUINDIO",null,"66400 - LA VIRGINIA-RISARALDA",null,null,null,"68092 - BETULIA-SANTANDER",null,"70233 - EL ROBLE-SUCRE",null,"73124 - CAJAMARCA-TOLIMA",null,"76111 - GUADALAJARA DE BUGA-VALLE DEL CAUCA",null,null,null,null,null,"REGISTRO CIVIL DE NACIMIENTO",null,"037 - ANDORRA"]
[null,null,"9",null,null,"A0123 - Cultivo de café",null,null,null,null,null,"09. EMPRESA COMUNITARIA",null,null,null,"20 - CESAR","20","CESAR",null,"05038 - ANGOSTURA-ANTIOQUIA",null,null,null,null,null,null,null,null,null,null,"91540 - PUERTO NARIÑO-AMAZONAS",null,"05038 - ANGOSTURA-ANTIOQUIA",null,null,null,"08436 - MANATI-ATLANTICO",null,null,null,"13160 - CANTAGALLO-BOLIVAR",null,"15104 - BOYACA-BOYACA",null,"17388 - LA MERCED-CALDAS",null,"18460 - MILAN-CAQUETA",null,"85230 - OROCUE-CASANARE",null,"19142 - CALOTO-CAUCA",null,"20228 - CURUMANI-CESAR",null,"27099 - BOJAYA-CHOCO",null,"23300 - COTORRA-CORDOBA",null,"25120 - CABRERA-CUNDINAMARCA",null,"94888 - MORICHAL-GUAINIA",null,null,null,"41206 - COLOMBIA-HUILA",null,"44420 - LA JAGUA DEL PILAR-LA GUAJIRA",null,"47245 - EL BANCO-MAGDALENA",null,"50251 - EL CASTILLO-META",null,"52203 - COLON-NARIÑO",null,"54174 - CHITAGA-NORTE DE SANTANDER",null,"86755 - SAN FRANCISCO-PUTUMAYO",null,"63470 - MONTENEGRO-QUINDIO",null,"66440 - MARSELLA-RISARALDA",null,null,null,"68101 - BOLIVAR-SANTANDER",null,"70235 - GALERAS-SUCRE",null,"73148 - CARMEN DE APICALA-TOLIMA",null,"76113 - BUGALAGRANDE-VALLE DEL CAUCA",null,null,null,null,null,"SIN IDENTIFICACIÓN - PARA USO DEFINIDO POR SUPERVIGILANCIA",null,"040 - ANGOLA"]
[null,null,"0",null,null,"A0124 - Cultivo de caña de azúcar",null,null,null,null,null,"10. ENTIDAD SIN ANIMO DE LUCRO",null,null,null,"23 - CORDOBA","23","CORDOBA",null,"05040 - ANORI-ANTIOQUIA",null,null,null,null,null,null,null,null,null,null,"91669 - PUERTO SANTANDER-AMAZONAS",null,"05040 - ANORI-ANTIOQUIA",null,null,null,"08520 - PALMAR DE VARELA-ATLANTICO",null,null,null,"13188 - CICUCO-BOLIVAR",null,"15106 - BRICEÑO-BOYACA",null,"17433 - MANZANARES-CALDAS",null,"18479 - MORELIA-CAQUETA",null,"85250 - PAZ DE ARIPORO-CASANARE",null,"19212 - CORINTO-CAUCA",null,"20238 - EL COPEY-CESAR",null,"27135 - EL CANTON DEL SAN PABLO-CHOCO",null,"23350 - LA APARTADA-CORDOBA",null,"25123 - CACHIPAY-CUNDINAMARCA",null,null,null,null,null,"41244 - ELIAS-HUILA",null,"44430 - MAICAO-LA GUAJIRA",null,"47258 - EL PIÑON-MAGDALENA",null,"50270 - EL DORADO-META",null,"52207 - CONSACA-NARIÑO",null,"54206 - CONVENCION-NORTE DE SANTANDER",null,"86757 - SAN MIGUEL-PUTUMAYO",null,"63548 - PIJAO-QUINDIO",null,"66456 - MISTRATO-RISARALDA",null,null,null,"68121 - CABRERA-SANTANDER",null,"70265 - GUARANDA-SUCRE",null,"73152 - CASABIANCA-TOLIMA",null,"76122 - CAICEDONIA-VALLE DEL CAUCA",null,null,null,null,null,null,null,"041 - ANGUILLA"]
[null,null,null,null,null,"A0125 - Cultivo de flor de corte",null,null,null,null,null,"11. ENTIDAD GUBERNAMENTAL",null,null,null,"25 - CUNDINAMARCA","25","CUNDINAMARCA",null,"05042 - SANTAFE DE ANTIOQUIA-ANTIOQUIA",null,null,null,null,null,null,null,null,null,null,"91798 - TARAPACA-AMAZONAS",null,"05042 - SANTAFE DE ANTIOQUIA-ANTIOQUIA",null,null,null,"08549 - PIOJO-ATLANTICO",null,null,null,"13212 - CORDOBA-BOLIVAR",null,"15109 - BUENAVISTA-BOYACA",null,"17442 - MARMATO-CALDAS",null,"18592 - PUERTO RICO-CAQUETA",null,"85263 - PORE-CASANARE",null,"19256 - EL TAMBO-CAUCA",null,"20250 - EL PASO-CESAR",null,"27150 - CARMEN DEL DARIEN-CHOCO",null,"23417 - LORICA-CORDOBA",null,"25126 - CAJICA-CUNDINAMARCA",null,null,null,null,null,"41298 - GARZON-HUILA",null,"44560 - MANAURE-LA GUAJIRA",null,"47268 - EL RETEN-MAGDALENA",null,"50287 - FUENTE DE ORO-META",null,"52210 - CONTADERO-NARIÑO",null,"54223 - CUCUTILLA-NORTE DE SANTANDER",null,"86760 - SANTIAGO-PUTUMAYO",null,"63594 - QUIMBAYA-QUINDIO",null,"66572 - PUEBLO RICO-RISARALDA",null,null,null,"68132 - CALIFORNIA-SANTANDER",null,"70400 - LA UNION-SUCRE",null,"73168 - CHAPARRAL-TOLIMA",null,"76126 - CALIMA-VALLE DEL CAUCA",null,null,null,null,null,null,null,"043 - ANTIGUA Y BARBUDA"]
[null,null,null,null,null,"A0126 - Cultivo de palma para aceite (palma africana) y otros frutos oleaginosos",null,null,null,null,null,null,null,null,null,"27 - CHOCO","27","CHOCO",null,"05044 - ANZA-ANTIOQUIA",null,null,null,null,null,null,null,null,null,null,null,null,"05044 - ANZA-ANTIOQUIA",null,null,null,"08558 - POLONUEVO-ATLANTICO",null,null,null,"13222 - CLEMENCIA-BOLIVAR",null,"15114 - BUSBANZA-BOYACA",null,"17444 - MARQUETALIA-CALDAS",null,"18610 - SAN JOSE DEL FRAGUA-CAQUETA",null,"85279 - RECETOR-CASANARE",null,"19290 - FLORENCIA-CAUCA",null,"20295 - GAMARRA-CESAR",null,"27160 - CERTEGUI-CHOCO",null,"23419 - LOS CORDOBAS-CORDOBA",null,"25148 - CAPARRAPI-CUNDINAMARCA",null,null,null,null,null,"41306 - GIGANTE-HUILA",null,"44650 - SAN JUAN DEL CESAR-LA GUAJIRA",null,"47288 - FUNDACION-MAGDALENA",null,"50313 - GRANADA-META",null,"52215 - CORDOBA-NARIÑO",null,"54239 - DURANIA-NORTE DE SANTANDER",null,"86865 - VALLE DEL GUAMUEZ-PUTUMAYO",null,"63690 - SALENTO-QUINDIO",null,"66594 - QUINCHIA-RISARALDA",null,null,null,"68147 - CAPITANEJO-SANTANDER",null,"70418 - LOS PALMITOS-SUCRE",null,"73200 - COELLO-TOLIMA",null,"76130 - CANDELARIA-VALLE DEL CAUCA",null,null,null,null,null,null,null,"047 - ANTILLAS HOLANDESAS"]
[null,null,null,null,null,"A0127 - Cultivo de plantas con las que se preparan bebidas",null,null,null,null,null,null,null,null,null,"41 - HUILA","41","HUILA",null,"05045 - APARTADO-ANTIOQUIA",null,null,null,null,null,null,null,null,null,null,null,null,"05045 - APARTADO-ANTIOQUIA",null,null,null,"08560 - PONEDERA-ATLANTICO",null,null,null,"13244 - EL CARMEN DE BOLIVAR-BOLIVAR",null,"15131 - CALDAS-BOYACA",null,"17446 - MARULANDA-CALDAS",null,"18753 - SAN VICENTE DEL CAGUAN-CAQUETA",null,"85300 - SABANALARGA-CASANARE",null,"19318 - GUAPI-CAUCA",null,"20310 - GONZALEZ-CESAR",null,"27205 - CONDOTO-CHOCO",null,"23464 - MOMIL-CORDOBA",null,"25151 - CAQUEZA-CUNDINAMARCA",null,null,null,null,null,"41319 - GUADALUPE-HUILA",null,"44847 - URIBIA-LA GUAJIRA",null,"47318 - GUAMAL-MAGDALENA",null,"50318 - GUAMAL-META",null,"52224 - CUASPUD-NARIÑO",null,"54245 - EL CARMEN-NORTE DE SANTANDER",null,"86885 - VILLAGARZON-PUTUMAYO",null,null,null,"66682 - SANTA ROSA DE CABAL-RISARALDA",null,null,null,"68152 - CARCASI-SANTANDER",null,"70429 - MAJAGUAL-SUCRE",null,"73217 - COYAIMA-TOLIMA",null,"76147 - CARTAGO-VALLE DEL CAUCA",null,null,null,null,null,null,null,"053 - ARABIA SAUDITA"]
[null,null,null,null,null,"A0128 - Cultivo de especias y de plantas aromáticas y medicinales",null,null,null,null,null,null,null,null,null,"44 - LA GUAJIRA","44","LA_GUAJIRA",null,"05051 - ARBOLETES-ANTIOQUIA",null,null,null,null,null,null,null,null,null,null,null,null,"05051 - ARBOLETES-ANTIOQUIA",null,null,null,"08573 - PUERTO COLOMBIA-ATLANTICO",null,null,null,"13248 - EL GUAMO-BOLIVAR",null,"15135 - CAMPOHERMOSO-BOYACA",null,"17486 - NEIRA-CALDAS",null,"18756 - SOLANO-CAQUETA",null,"85315 - SACAMA-CASANARE",null,"19355 - INZA-CAUCA",null,"20383 - LA GLORIA-CESAR",null,"27245 - EL CARMEN DE ATRATO-CHOCO",null,"23466 - MONTELIBANO-CORDOBA",null,"25154 - CARMEN DE CARUPA-CUNDINAMARCA",null,null,null,null,null,"41349 - HOBO-HUILA",null,"44855 - URUMITA-LA GUAJIRA",null,"47460 - NUEVA GRANADA-MAGDALENA",null,"50325 - MAPIRIPAN-META",null,"52227 - CUMBAL-NARIÑO",null,"54250 - EL TARRA-NORTE DE SANTANDER",null,null,null,null,null,"66687 - SANTUARIO-RISARALDA",null,null,null,"68160 - CEPITA-SANTANDER",null,"70473 - MORROA-SUCRE",null,"73226 - CUNDAY-TOLIMA",null,"76233 - DAGUA-VALLE DEL CAUCA",null,null,null,null,null,null,null,"059 - ARGELIA"]
[null,null,null,null,null,"A0129 - Otros cultivos permanentes n.c.p.",null,null,null,null,null,null,null,null,null,"47 - MAGDALENA","47","MAGDALENA",null,"05055 - ARGELIA-ANTIOQUIA",null,null,null,null,null,null,null,null,null,null,null,null,"05055 - ARGELIA-ANTIOQUIA",null,null,null,"08606 - REPELON-ATLANTICO",null,null,null,"13268 - EL PEÑON-BOLIVAR",null,"15162 - CERINZA-BOYACA",null,"17495 - NORCASIA-CALDAS",null,"18785 - SOLITA-CAQUETA",null,"85325 - SAN LUIS DE PALENQUE-CASANARE",null,"19364 - JAMBALO-CAUCA",null,"20400 - LA JAGUA DE IBIRICO-CESAR",null,"27250 - EL LITORAL DEL SAN JUAN-CHOCO",null,"23500 - MOÑITOS-CORDOBA",null,"25168 - CHAGUANI-CUNDINAMARCA",null,null,null,null,null,"41357 - IQUIRA-HUILA",null,"44874 - VILLANUEVA-LA GUAJIRA",null,"47541 - PEDRAZA-MAGDALENA",null,"50330 - MESETAS-META",null,"52233 - CUMBITARA-NARIÑO",null,"54261 - EL ZULIA-NORTE DE SANTANDER",null,null,null,null,null,null,null,null,null,"68162 - CERRITO-SANTANDER",null,"70508 - OVEJAS-SUCRE",null,"73236 - DOLORES-TOLIMA",null,"76243 - EL AGUILA-VALLE DEL CAUCA",null,null,null,null,null,null,null,"063 - ARGENTINA"]
[null,null,null,null,null,"A0130 - Propagación de plantas (actividades de los viveros, excepto viveros forestales)",null,null,null,null,null,null,null,null,null,"50 - META","50","META",null,"05059 - ARMENIA-ANTIOQUIA",null,null,null,null,null,null,null,null,null,null,null,null,"05059 - ARMENIA-ANTIOQUIA",null,null,null,"08634 - SABANAGRANDE-ATLANTICO",null,null,null,"13300 - HATILLO DE LOBA-BOLIVAR",null,"15172 - CHINAVITA-BOYACA",null,"17513 - PACORA-CALDAS",null,"18860 - VALPARAISO-CAQUETA",null,"85400 - TAMARA-CASANARE",null,"19392 - LA SIERRA-CAUCA",null,"20443 - MANAURE-CESAR",null,"27361 - ISTMINA-CHOCO",null,"23555 - PLANETA RICA-CORDOBA",null,"25175 - CHIA-CUNDINAMARCA",null,null,null,null,null,"41359 - ISNOS-HUILA",null,null,null,"47545 - PIJIÑO DEL CARMEN-MAGDALENA",null,"50350 - LA MACARENA-META",null,"52240 - CHACHAGÜI-NARIÑO",null,"54313 - GRAMALOTE-NORTE DE SANTANDER",null,null,null,null,null,null,null,null,null,"68167 - CHARALA-SANTANDER",null,"70523 - PALMITO-SUCRE",null,"73268 - ESPINAL-TOLIMA",null,"76246 - EL CAIRO-VALLE DEL CAUCA",null,null,null,null,null,null,null,"069 - AUSTRALIA"]
[null,null,null,null,null,"A0141 - Cría de ganado bovino y bufalino",null,null,null,null,null,null,null,null,null,"52 - NARIÑO","52","NARINO",null,"05079 - BARBOSA-ANTIOQUIA",null,null,null,null,null,null,null,null,null,null,null,null,"05079 - BARBOSA-ANTIOQUIA",null,null,null,"08638 - SABANALARGA-ATLANTICO",null,null,null,"13430 - MAGANGUE-BOLIVAR",null,"15176 - CHIQUINQUIRA-BOYACA",null,"17524 - PALESTINA-CALDAS",null,null,null,"85410 - TAURAMENA-CASANARE",null,"19397 - LA VEGA-CAUCA",null,"20517 - PAILITAS-CESAR",null,"27372 - JURADO-CHOCO",null,"23570 - PUEBLO NUEVO-CORDOBA",null,"25178 - CHIPAQUE-CUNDINAMARCA",null,null,null,null,null,"41378 - LA ARGENTINA-HUILA",null,null,null,"47551 - PIVIJAY-MAGDALENA",null,"50370 - URIBE-META",null,"52250 - EL CHARCO-NARIÑO",null,"54344 - HACARI-NORTE DE SANTANDER",null,null,null,null,null,null,null,null,null,"68169 - CHARTA-SANTANDER",null,"70670 - SAMPUES-SUCRE",null,"73270 - FALAN-TOLIMA",null,"76248 - EL CERRITO-VALLE DEL CAUCA",null,null,null,null,null,null,null,"072 - AUSTRIA"]
[null,null,null,null,null,"A0142 - Cría de caballos y otros equinos",null,null,null,null,null,null,null,null,null,"54 - NORTE DE SANTANDER","54","NORTE_DE_SANTANDER",null,"05086 - BELMIRA-ANTIOQUIA",null,null,null,null,null,null,null,null,null,null,null,null,"05086 - BELMIRA-ANTIOQUIA",null,null,null,"08675 - SANTA LUCIA-ATLANTICO",null,null,null,"13433 - MAHATES-BOLIVAR",null,"15180 - CHISCAS-BOYACA",null,"17541 - PENSILVANIA-CALDAS",null,null,null,"85430 - TRINIDAD-CASANARE",null,"19418 - LOPEZ-CAUCA",null,"20550 - PELAYA-CESAR",null,"27413 - LLORO-CHOCO",null,"23574 - PUERTO ESCONDIDO-CORDOBA",null,"25181 - CHOACHI-CUNDINAMARCA",null,null,null,null,null,"41396 - LA PLATA-HUILA",null,null,null,"47555 - PLATO-MAGDALENA",null,"50400 - LEJANIAS-META",null,"52254 - EL PEÑOL-NARIÑO",null,"54347 - HERRAN-NORTE DE SANTANDER",null,null,null,null,null,null,null,null,null,"68176 - CHIMA-SANTANDER",null,"70678 - SAN BENITO ABAD-SUCRE",null,"73275 - FLANDES-TOLIMA",null,"76250 - EL DOVIO-VALLE DEL CAUCA",null,null,null,null,null,null,null,"074 - AZERBAIJAN"]
[null,null,null,null,null,"A0143 - Cría de ovejas y cabras",null,null,null,null,null,null,null,null,null,"63 - QUINDIO","63","QUINDIO",null,"05088 - BELLO-ANTIOQUIA",null,null,null,null,null,null,null,null,null,null,null,null,"05088 - BELLO-ANTIOQUIA",null,null,null,"08685 - SANTO TOMAS-ATLANTICO",null,null,null,"13440 - MARGARITA-BOLIVAR",null,"15183 - CHITA-BOYACA",null,"17614 - RIOSUCIO-CALDAS",null,null,null,"85440 - VILLANUEVA-CASANARE",null,"19450 - MERCADERES-CAUCA",null,"20570 - PUEBLO BELLO-CESAR",null,"27425 - MEDIO ATRATO-CHOCO",null,"23580 - PUERTO LIBERTADOR-CORDOBA",null,"25183 - CHOCONTA-CUNDINAMARCA",null,null,null,null,null,"41483 - NATAGA-HUILA",null,null,null,"47570 - PUEBLOVIEJO-MAGDALENA",null,"50450 - PUERTO CONCORDIA-META",null,"52256 - EL ROSARIO-NARIÑO",null,"54377 - LABATECA-NORTE DE SANTANDER",null,null,null,null,null,null,null,null,null,"68179 - CHIPATA-SANTANDER",null,"70702 - SAN JUAN DE BETULIA-SUCRE",null,"73283 - FRESNO-TOLIMA",null,"76275 - FLORIDA-VALLE DEL CAUCA",null,null,null,null,null,null,null,"077 - BAHAMAS"]
[null,null,null,null,null,"A0144 - Cría de ganado porcino",null,null,null,null,null,null,null,null,null,"66 - RISARALDA","66","RISARALDA",null,"05091 - BETANIA-ANTIOQUIA",null,null,null,null,null,null,null,null,null,null,null,null,"05091 - BETANIA-ANTIOQUIA",null,null,null,"08758 - SOLEDAD-ATLANTICO",null,null,null,"13442 - MARIA LA BAJA-BOLIVAR",null,"15185 - CHITARAQUE-BOYACA",null,"17616 - RISARALDA-CALDAS",null,null,null,null,null,"19455 - MIRANDA-CAUCA",null,"20614 - RIO DE ORO-CESAR",null,"27430 - MEDIO BAUDO-CHOCO",null,"23586 - PURISIMA-CORDOBA",null,"25200 - COGUA-CUNDINAMARCA",null,null,null,null,null,"41503 - OPORAPA-HUILA",null,null,null,"47605 - REMOLINO-MAGDALENA",null,"50568 - PUERTO GAITAN-META",null,"52258 - EL TABLON DE GOMEZ-NARIÑO",null,"54385 - LA ESPERANZA-NORTE DE SANTANDER",null,null,null,null,null,null,null,null,null,"68190 - CIMITARRA-SANTANDER",null,"70708 - SAN MARCOS-SUCRE",null,"73319 - GUAMO-TOLIMA",null,"76306 - GINEBRA-VALLE DEL CAUCA",null,null,null,null,null,null,null,"080 - BAHREIN"]
[null,null,null,null,null,"A0145 - Cría de aves de corral",null,null,null,null,null,null,null,null,null,"68 - SANTANDER","68","SANTANDER",null,"05093 - BETULIA-ANTIOQUIA",null,null,null,null,null,null,null,null,null,null,null,null,"05093 - BETULIA-ANTIOQUIA",null,null,null,"08770 - SUAN-ATLANTICO",null,null,null,"13458 - MONTECRISTO-BOLIVAR",null,"15187 - CHIVATA-BOYACA",null,"17653 - SALAMINA-CALDAS",null,null,null,null,null,"19473 - MORALES-CAUCA",null,"20621 - LA PAZ-CESAR",null,"27450 - MEDIO SAN JUAN-CHOCO",null,"23660 - SAHAGUN-CORDOBA",null,"25214 - COTA-CUNDINAMARCA",null,null,null,null,null,"41518 - PAICOL-HUILA",null,null,null,"47660 - SABANAS DE SAN ANGEL-MAGDALENA",null,"50573 - PUERTO LOPEZ-META",null,"52260 - EL TAMBO-NARIÑO",null,"54398 - LA PLAYA-NORTE DE SANTANDER",null,null,null,null,null,null,null,null,null,"68207 - CONCEPCION-SANTANDER",null,"70713 - SAN ONOFRE-SUCRE",null,"73347 - HERVEO-TOLIMA",null,"76318 - GUACARI-VALLE DEL CAUCA",null,null,null,null,null,null,null,"081 - BANGLADESH"]
[null,null,null,null,null,"A0149 - Cría de otros animales n.c.p.",null,null,null,null,null,null,null,null,null,"70 - SUCRE","70","SUCRE",null,"05101 - CIUDAD BOLIVAR-ANTIOQUIA",null,null,null,null,null,null,null,null,null,null,null,null,"05101 - CIUDAD BOLIVAR-ANTIOQUIA",null,null,null,"08832 - TUBARA-ATLANTICO",null,null,null,"13468 - MOMPOS-BOLIVAR",null,"15189 - CIENEGA-BOYACA",null,"17662 - SAMANA-CALDAS",null,null,null,null,null,"19513 - PADILLA-CAUCA",null,"20710 - SAN ALBERTO-CESAR",null,"27491 - NOVITA-CHOCO",null,"23670 - SAN ANDRES SOTAVENTO-CORDOBA",null,"25224 - CUCUNUBA-CUNDINAMARCA",null,null,null,null,null,"41524 - PALERMO-HUILA",null,null,null,"47675 - SALAMINA-MAGDALENA",null,"50577 - PUERTO LLERAS-META",null,"52287 - FUNES-NARIÑO",null,"54405 - LOS PATIOS-NORTE DE SANTANDER",null,null,null,null,null,null,null,null,null,"68209 - CONFINES-SANTANDER",null,"70717 - SAN PEDRO-SUCRE",null,"73349 - HONDA-TOLIMA",null,"76364 - JAMUNDI-VALLE DEL CAUCA",null,null,null,null,null,null,null,"083 - BARBADOS"]
[null,null,null,null,null,"A0150 - Explotación mixta (agrícola y pecuaria)",null,null,null,null,null,null,null,null,null,"73 - TOLIMA","73","TOLIMA",null,"05107 - BRICEÑO-ANTIOQUIA",null,null,null,null,null,null,null,null,null,null,null,null,"05107 - BRICEÑO-ANTIOQUIA",null,null,null,"08849 - USIACURI-ATLANTICO",null,null,null,"13473 - MORALES-BOLIVAR",null,"15204 - COMBITA-BOYACA",null,"17665 - SAN JOSE-CALDAS",null,null,null,null,null,"19517 - PAEZ-CAUCA",null,"20750 - SAN DIEGO-CESAR",null,"27495 - NUQUI-CHOCO",null,"23672 - SAN ANTERO-CORDOBA",null,"25245 - EL COLEGIO-CUNDINAMARCA",null,null,null,null,null,"41530 - PALESTINA-HUILA",null,null,null,"47692 - SAN SEBASTIAN DE BUENAVISTA-MAGDALENA",null,"50590 - PUERTO RICO-META",null,"52317 - GUACHUCAL-NARIÑO",null,"54418 - LOURDES-NORTE DE SANTANDER",null,null,null,null,null,null,null,null,null,"68211 - CONTRATACION-SANTANDER",null,"70742 - SAN LUIS DE SINCE-SUCRE",null,"73352 - ICONONZO-TOLIMA",null,"76377 - LA CUMBRE-VALLE DEL CAUCA",null,null,null,null,null,null,null,"087 - BELGICA"]
[null,null,null,null,null,"A0161 - Actividades de apoyo a la agricultura",null,null,null,null,null,null,null,null,null,"76 - VALLE DEL CAUCA","76","VALLE",null,"05113 - BURITICA-ANTIOQUIA",null,null,null,null,null,null,null,null,null,null,null,null,"05113 - BURITICA-ANTIOQUIA",null,null,null,null,null,null,null,"13549 - PINILLOS-BOLIVAR",null,"15212 - COPER-BOYACA",null,"17777 - SUPIA-CALDAS",null,null,null,null,null,"19532 - PATIA-CAUCA",null,"20770 - SAN MARTIN-CESAR",null,"27580 - RIO IRO-CHOCO",null,"23675 - SAN BERNARDO DEL VIENTO-CORDOBA",null,"25258 - EL PEÑON-CUNDINAMARCA",null,null,null,null,null,"41548 - PITAL-HUILA",null,null,null,"47703 - SAN ZENON-MAGDALENA",null,"50606 - RESTREPO-META",null,"52320 - GUAITARILLA-NARIÑO",null,"54480 - MUTISCUA-NORTE DE SANTANDER",null,null,null,null,null,null,null,null,null,"68217 - COROMORO-SANTANDER",null,"70771 - SUCRE-SUCRE",null,"73408 - LERIDA-TOLIMA",null,"76400 - LA UNION-VALLE DEL CAUCA",null,null,null,null,null,null,null,"088 - BELICE"]
[null,null,null,null,null,"A0162 - Actividades de apoyo a la ganadería",null,null,null,null,null,null,null,null,null,"81 - ARAUCA","81","ARAUCA",null,"05120 - CACERES-ANTIOQUIA",null,null,null,null,null,null,null,null,null,null,null,null,"05120 - CACERES-ANTIOQUIA",null,null,null,null,null,null,null,"13580 - REGIDOR-BOLIVAR",null,"15215 - CORRALES-BOYACA",null,"17867 - VICTORIA-CALDAS",null,null,null,null,null,"19533 - PIAMONTE-CAUCA",null,"20787 - TAMALAMEQUE-CESAR",null,"27600 - RIO QUITO-CHOCO",null,"23678 - SAN CARLOS-CORDOBA",null,"25260 - EL ROSAL-CUNDINAMARCA",null,null,null,null,null,"41551 - PITALITO-HUILA",null,null,null,"47707 - SANTA ANA-MAGDALENA",null,"50680 - SAN CARLOS DE GUAROA-META",null,"52323 - GUALMATAN-NARIÑO",null,"54498 - OCAÑA-NORTE DE SANTANDER",null,null,null,null,null,null,null,null,null,"68229 - CURITI-SANTANDER",null,"70820 - SANTIAGO DE TOLU-SUCRE",null,"73411 - LIBANO-TOLIMA",null,"76403 - LA VICTORIA-VALLE DEL CAUCA",null,null,null,null,null,null,null,"090 - BERMUDAS"]
[null,null,null,null,null,"A0163 - Actividades posteriores a la cosecha",null,null,null,null,null,null,null,null,null,"85 - CASANARE","85","CASANARE",null,"05125 - CAICEDO-ANTIOQUIA",null,null,null,null,null,null,null,null,null,null,null,null,"05125 - CAICEDO-ANTIOQUIA",null,null,null,null,null,null,null,"13600 - RIO VIEJO-BOLIVAR",null,"15218 - COVARACHIA-BOYACA",null,"17873 - VILLAMARIA-CALDAS",null,null,null,null,null,"19548 - PIENDAMO-CAUCA",null,null,null,"27615 - BELEN DE BAJIRA (CASERIO DE RIOSUCIO)-CHOCO",null,"23686 - SAN PELAYO-CORDOBA",null,"25269 - FACATATIVA-CUNDINAMARCA",null,null,null,null,null,"41615 - RIVERA-HUILA",null,null,null,"47720 - SANTA BARBARA DE PINTO-MAGDALENA",null,"50683 - SAN JUAN DE ARAMA-META",null,"52352 - ILES-NARIÑO",null,"54518 - PAMPLONA-NORTE DE SANTANDER",null,null,null,null,null,null,null,null,null,"68235 - EL CARMEN DE CHUCURI-SANTANDER",null,"70823 - TOLU VIEJO-SUCRE",null,"73443 - MARIQUITA-TOLIMA",null,"76497 - OBANDO-VALLE DEL CAUCA",null,null,null,null,null,null,null,"091 - BELARUS"]
[null,null,null,null,null,"A0164 - Tratamiento de semillas para propagación",null,null,null,null,null,null,null,null,null,"86 - PUTUMAYO","86","PUTUMAYO",null,"05129 - CALDAS-ANTIOQUIA",null,null,null,null,null,null,null,null,null,null,null,null,"05129 - CALDAS-ANTIOQUIA",null,null,null,null,null,null,null,"13620 - SAN CRISTOBAL-BOLIVAR",null,"15223 - CUBARA-BOYACA",null,"17877 - VITERBO-CALDAS",null,null,null,null,null,"19573 - PUERTO TEJADA-CAUCA",null,null,null,"27660 - SAN JOSE DEL PALMAR-CHOCO",null,"23807 - TIERRALTA-CORDOBA",null,"25279 - FOMEQUE-CUNDINAMARCA",null,null,null,null,null,"41660 - SALADOBLANCO-HUILA",null,null,null,"47745 - SITIONUEVO-MAGDALENA",null,"50686 - SAN JUANITO-META",null,"52354 - IMUES-NARIÑO",null,"54520 - PAMPLONITA-NORTE DE SANTANDER",null,null,null,null,null,null,null,null,null,"68245 - EL GUACAMAYO-SANTANDER",null,null,null,"73449 - MELGAR-TOLIMA",null,"76520 - PALMIRA-VALLE DEL CAUCA",null,null,null,null,null,null,null,"093 - BIRMANIA (MYANMAR)"]
[null,null,null,null,null,"A0170 - Caza ordinaria y mediante trampas y actividades de servicios conexas",null,null,null,null,null,null,null,null,null,"88 - SAN ANDRES Y PROVIDENCIA","88","SAN_ANDRES_Y_PROVIDENCIA",null,"05134 - CAMPAMENTO-ANTIOQUIA",null,null,null,null,null,null,null,null,null,null,null,null,"05134 - CAMPAMENTO-ANTIOQUIA",null,null,null,null,null,null,null,"13647 - SAN ESTANISLAO-BOLIVAR",null,"15224 - CUCAITA-BOYACA",null,null,null,null,null,null,null,"19585 - PURACE-CAUCA",null,null,null,"27745 - SIPI-CHOCO",null,"23855 - VALENCIA-CORDOBA",null,"25281 - FOSCA-CUNDINAMARCA",null,null,null,null,null,"41668 - SAN AGUSTIN-HUILA",null,null,null,"47798 - TENERIFE-MAGDALENA",null,"50689 - SAN MARTIN-META",null,"52356 - IPIALES-NARIÑO",null,"54553 - PUERTO SANTANDER-NORTE DE SANTANDER",null,null,null,null,null,null,null,null,null,"68250 - EL PEÑON-SANTANDER",null,null,null,"73461 - MURILLO-TOLIMA",null,"76563 - PRADERA-VALLE DEL CAUCA",null,null,null,null,null,null,null,"097 - BOLIVIA"]
[null,null,null,null,null,"A0210 - Silvicultura y otras actividades forestales",null,null,null,null,null,null,null,null,null,"91 - AMAZONAS","91","AMAZONAS",null,"05138 - CAÑASGORDAS-ANTIOQUIA",null,null,null,null,null,null,null,null,null,null,null,null,"05138 - CAÑASGORDAS-ANTIOQUIA",null,null,null,null,null,null,null,"13650 - SAN FERNANDO-BOLIVAR",null,"15226 - CUITIVA-BOYACA",null,null,null,null,null,null,null,"19622 - ROSAS-CAUCA",null,null,null,"27787 - TADO-CHOCO",null,null,null,"25286 - FUNZA-CUNDINAMARCA",null,null,null,null,null,"41676 - SANTA MARIA-HUILA",null,null,null,"47960 - ZAPAYAN-MAGDALENA",null,"50711 - VISTAHERMOSA-META",null,"52378 - LA CRUZ-NARIÑO",null,"54599 - RAGONVALIA-NORTE DE SANTANDER",null,null,null,null,null,null,null,null,null,"68255 - EL PLAYON-SANTANDER",null,null,null,"73483 - NATAGAIMA-TOLIMA",null,"76606 - RESTREPO-VALLE DEL CAUCA",null,null,null,null,null,null,null,"101 - BOTSWANA"]
[null,null,null,null,null,"A0220 - Extracción de madera",null,null,null,null,null,null,null,null,null,"94 - GUAINIA","94","GUAINIA",null,"05142 - CARACOLI-ANTIOQUIA",null,null,null,null,null,null,null,null,null,null,null,null,"05142 - CARACOLI-ANTIOQUIA",null,null,null,null,null,null,null,"13654 - SAN JACINTO-BOLIVAR",null,"15232 - CHIQUIZA-BOYACA",null,null,null,null,null,null,null,"19693 - SAN SEBASTIAN-CAUCA",null,null,null,"27800 - UNGUIA-CHOCO",null,null,null,"25288 - FUQUENE-CUNDINAMARCA",null,null,null,null,null,"41770 - SUAZA-HUILA",null,null,null,"47980 - ZONA BANANERA-MAGDALENA",null,null,null,"52381 - LA FLORIDA-NARIÑO",null,"54660 - SALAZAR-NORTE DE SANTANDER",null,null,null,null,null,null,null,null,null,"68264 - ENCINO-SANTANDER",null,null,null,"73504 - ORTEGA-TOLIMA",null,"76616 - RIOFRIO-VALLE DEL CAUCA",null,null,null,null,null,null,null,"105 - BRASIL"]
[null,null,null,null,null,"A0230 - Recolección de productos forestales diferentes a la madera",null,null,null,null,null,null,null,null,null,"95 - GUAVIARE","95","GUAVIARE",null,"05145 - CARAMANTA-ANTIOQUIA",null,null,null,null,null,null,null,null,null,null,null,null,"05145 - CARAMANTA-ANTIOQUIA",null,null,null,null,null,null,null,"13655 - SAN JACINTO DEL CAUCA-BOLIVAR",null,"15236 - CHIVOR-BOYACA",null,null,null,null,null,null,null,"19698 - SANTANDER DE QUILICHAO-CAUCA",null,null,null,"27810 - UNION PANAMERICANA-CHOCO",null,null,null,"25290 - FUSAGASUGA-CUNDINAMARCA",null,null,null,null,null,"41791 - TARQUI-HUILA",null,null,null,null,null,null,null,"52385 - LA LLANADA-NARIÑO",null,"54670 - SAN CALIXTO-NORTE DE SANTANDER",null,null,null,null,null,null,null,null,null,"68266 - ENCISO-SANTANDER",null,null,null,"73520 - PALOCABILDO-TOLIMA",null,"76622 - ROLDANILLO-VALLE DEL CAUCA",null,null,null,null,null,null,null,"108 - BRUNEI DARUSSALAM"]
[null,null,null,null,null,"A0240 - Servicios de apoyo a la silvicultura",null,null,null,null,null,null,null,null,null,"97 - VAUPES","97","VAUPES",null,"05147 - CAREPA-ANTIOQUIA",null,null,null,null,null,null,null,null,null,null,null,null,"05147 - CAREPA-ANTIOQUIA",null,null,null,null,null,null,null,"13657 - SAN JUAN NEPOMUCENO-BOLIVAR",null,"15238 - DUITAMA-BOYACA",null,null,null,null,null,null,null,"19701 - SANTA ROSA-CAUCA",null,null,null,null,null,null,null,"25293 - GACHALA-CUNDINAMARCA",null,null,null,null,null,"41797 - TESALIA-HUILA",null,null,null,null,null,null,null,"52390 - LA TOLA-NARIÑO",null,"54673 - SAN CAYETANO-NORTE DE SANTANDER",null,null,null,null,null,null,null,null,null,"68271 - FLORIAN-SANTANDER",null,null,null,"73547 - PIEDRAS-TOLIMA",null,"76670 - SAN PEDRO-VALLE DEL CAUCA",null,null,null,null,null,null,null,"111 - BULGARIA"]
[null,null,null,null,null,"A0311 - Pesca marítima",null,null,null,null,null,null,null,null,null,"99 - VICHADA","99","VICHADA",null,"05148 - EL CARMEN DE VIBORAL-ANTIOQUIA",null,null,null,null,null,null,null,null,null,null,null,null,"05148 - EL CARMEN DE VIBORAL-ANTIOQUIA",null,null,null,null,null,null,null,"13667 - SAN MARTIN DE LOBA-BOLIVAR",null,"15244 - EL COCUY-BOYACA",null,null,null,null,null,null,null,"19743 - SILVIA-CAUCA",null,null,null,null,null,null,null,"25295 - GACHANCIPA-CUNDINAMARCA",null,null,null,null,null,"41799 - TELLO-HUILA",null,null,null,null,null,null,null,"52399 - LA UNION-NARIÑO",null,"54680 - SANTIAGO-NORTE DE SANTANDER",null,null,null,null,null,null,null,null,null,"68276 - FLORIDABLANCA-SANTANDER",null,null,null,"73555 - PLANADAS-TOLIMA",null,"76736 - SEVILLA-VALLE DEL CAUCA",null,null,null,null,null,null,null,"115 - BURUNDI"]
[null,null,null,null,null,"A0312 - Pesca de agua dulce",null,null,null,null,null,null,null,null,null,null,null,null,null,"05150 - CAROLINA-ANTIOQUIA",null,null,null,null,null,null,null,null,null,null,null,null,"05150 - CAROLINA-ANTIOQUIA",null,null,null,null,null,null,null,"13670 - SAN PABLO-BOLIVAR",null,"15248 - EL ESPINO-BOYACA",null,null,null,null,null,null,null,"19760 - SOTARA-CAUCA",null,null,null,null,null,null,null,"25297 - GACHETA-CUNDINAMARCA",null,null,null,null,null,"41801 - TERUEL-HUILA",null,null,null,null,null,null,null,"52405 - LEIVA-NARIÑO",null,"54720 - SARDINATA-NORTE DE SANTANDER",null,null,null,null,null,null,null,null,null,"68296 - GALAN-SANTANDER",null,null,null,"73563 - PRADO-TOLIMA",null,"76823 - TORO-VALLE DEL CAUCA",null,null,null,null,null,null,null,"119 - BUTAN"]
[null,null,null,null,null,"A0321 - Acuicultura marítima",null,null,null,null,null,null,null,null,null,null,null,null,null,"05154 - CAUCASIA-ANTIOQUIA",null,null,null,null,null,null,null,null,null,null,null,null,"05154 - CAUCASIA-ANTIOQUIA",null,null,null,null,null,null,null,"13673 - SANTA CATALINA-BOLIVAR",null,"15272 - FIRAVITOBA-BOYACA",null,null,null,null,null,null,null,"19780 - SUAREZ-CAUCA",null,null,null,null,null,null,null,"25299 - GAMA-CUNDINAMARCA",null,null,null,null,null,"41807 - TIMANA-HUILA",null,null,null,null,null,null,null,"52411 - LINARES-NARIÑO",null,"54743 - SILOS-NORTE DE SANTANDER",null,null,null,null,null,null,null,null,null,"68298 - GAMBITA-SANTANDER",null,null,null,"73585 - PURIFICACION-TOLIMA",null,"76828 - TRUJILLO-VALLE DEL CAUCA",null,null,null,null,null,null,null,"127 - CABO VERDE"]
[null,null,null,null,null,"A0322 - Acuicultura de agua dulce",null,null,null,null,null,null,null,null,null,null,null,null,null,"05172 - CHIGORODO-ANTIOQUIA",null,null,null,null,null,null,null,null,null,null,null,null,"05172 - CHIGORODO-ANTIOQUIA",null,null,null,null,null,null,null,"13683 - SANTA ROSA-BOLIVAR",null,"15276 - FLORESTA-BOYACA",null,null,null,null,null,null,null,"19785 - SUCRE-CAUCA",null,null,null,null,null,null,null,"25307 - GIRARDOT-CUNDINAMARCA",null,null,null,null,null,"41872 - VILLAVIEJA-HUILA",null,null,null,null,null,null,null,"52418 - LOS ANDES-NARIÑO",null,"54800 - TEORAMA-NORTE DE SANTANDER",null,null,null,null,null,null,null,null,null,"68307 - GIRON-SANTANDER",null,null,null,"73616 - RIOBLANCO-TOLIMA",null,"76834 - TULUA-VALLE DEL CAUCA",null,null,null,null,null,null,null,"137 - CAIMAN - ISLAS"]
[null,null,null,null,null,"B0510 - Extracción de hulla (carbón de piedra)",null,null,null,null,null,null,null,null,null,null,null,null,null,"05190 - CISNEROS-ANTIOQUIA",null,null,null,null,null,null,null,null,null,null,null,null,"05190 - CISNEROS-ANTIOQUIA",null,null,null,null,null,null,null,"13688 - SANTA ROSA DEL SUR-BOLIVAR",null,"15293 - GACHANTIVA-BOYACA",null,null,null,null,null,null,null,"19807 - TIMBIO-CAUCA",null,null,null,null,null,null,null,"25312 - GRANADA-CUNDINAMARCA",null,null,null,null,null,"41885 - YAGUARA-HUILA",null,null,null,null,null,null,null,"52427 - MAGÜI-NARIÑO",null,"54810 - TIBU-NORTE DE SANTANDER",null,null,null,null,null,null,null,null,null,"68318 - GUACA-SANTANDER",null,null,null,"73622 - RONCESVALLES-TOLIMA",null,"76845 - ULLOA-VALLE DEL CAUCA",null,null,null,null,null,null,null,"141 - CAMBOYA (KAMPUCHEA)"]
[null,null,null,null,null,"B0520 - Extracción de carbón lignito",null,null,null,null,null,null,null,null,null,null,null,null,null,"05197 - COCORNA-ANTIOQUIA",null,null,null,null,null,null,null,null,null,null,null,null,"05197 - COCORNA-ANTIOQUIA",null,null,null,null,null,null,null,"13744 - SIMITI-BOLIVAR",null,"15296 - GAMEZA-BOYACA",null,null,null,null,null,null,null,"19809 - TIMBIQUI-CAUCA",null,null,null,null,null,null,null,"25317 - GUACHETA-CUNDINAMARCA",null,null,null,null,null,null,null,null,null,null,null,null,null,"52435 - MALLAMA-NARIÑO",null,"54820 - TOLEDO-NORTE DE SANTANDER",null,null,null,null,null,null,null,null,null,"68320 - GUADALUPE-SANTANDER",null,null,null,"73624 - ROVIRA-TOLIMA",null,"76863 - VERSALLES-VALLE DEL CAUCA",null,null,null,null,null,null,null,"145 - CAMERUN - REPUBLICA UNIDA DEL"]
[null,null,null,null,null,"B0610 - Extracción de petróleo crudo",null,null,null,null,null,null,null,null,null,null,null,null,null,"05206 - CONCEPCION-ANTIOQUIA",null,null,null,null,null,null,null,null,null,null,null,null,"05206 - CONCEPCION-ANTIOQUIA",null,null,null,null,null,null,null,"13760 - SOPLAVIENTO-BOLIVAR",null,"15299 - GARAGOA-BOYACA",null,null,null,null,null,null,null,"19821 - TORIBIO-CAUCA",null,null,null,null,null,null,null,"25320 - GUADUAS-CUNDINAMARCA",null,null,null,null,null,null,null,null,null,null,null,null,null,"52473 - MOSQUERA-NARIÑO",null,"54871 - VILLA CARO-NORTE DE SANTANDER",null,null,null,null,null,null,null,null,null,"68322 - GUAPOTA-SANTANDER",null,null,null,"73671 - SALDAÑA-TOLIMA",null,"76869 - VIJES-VALLE DEL CAUCA",null,null,null,null,null,null,null,"149 - CANADA"]
[null,null,null,null,null,"B0620 - Extracción de gas natural",null,null,null,null,null,null,null,null,null,null,null,null,null,"05209 - CONCORDIA-ANTIOQUIA",null,null,null,null,null,null,null,null,null,null,null,null,"05209 - CONCORDIA-ANTIOQUIA",null,null,null,null,null,null,null,"13780 - TALAIGUA NUEVO-BOLIVAR",null,"15317 - GUACAMAYAS-BOYACA",null,null,null,null,null,null,null,"19824 - TOTORO-CAUCA",null,null,null,null,null,null,null,"25322 - GUASCA-CUNDINAMARCA",null,null,null,null,null,null,null,null,null,null,null,null,null,"52480 - NARIÑO-NARIÑO",null,"54874 - VILLA DEL ROSARIO-NORTE DE SANTANDER",null,null,null,null,null,null,null,null,null,"68324 - GUAVATA-SANTANDER",null,null,null,"73675 - SAN ANTONIO-TOLIMA",null,"76890 - YOTOCO-VALLE DEL CAUCA",null,null,null,null,null,null,null,"159 - SANTA SEDE"]
[null,null,null,null,null,"B0710 - Extracción de minerales de hierro",null,null,null,null,null,null,null,null,null,null,null,null,null,"05212 - COPACABANA-ANTIOQUIA",null,null,null,null,null,null,null,null,null,null,null,null,"05212 - COPACABANA-ANTIOQUIA",null,null,null,null,null,null,null,"13810 - TIQUISIO-BOLIVAR",null,"15322 - GUATEQUE-BOYACA",null,null,null,null,null,null,null,"19835 - TUMACO-CAUCA",null,null,null,null,null,null,null,"25324 - GUATAQUI-CUNDINAMARCA",null,null,null,null,null,null,null,null,null,null,null,null,null,"52490 - OLAYA HERRERA-NARIÑO",null,null,null,null,null,null,null,null,null,null,null,"68327 - GÜEPSA-SANTANDER",null,null,null,"73678 - SAN LUIS-TOLIMA",null,"76892 - YUMBO-VALLE DEL CAUCA",null,null,null,null,null,null,null,"165 - COCOS (KEELING) - ISLAS"]
[null,null,null,null,null,"B0721 - Extracción de minerales de uranio y de torio",null,null,null,null,null,null,null,null,null,null,null,null,null,"05234 - DABEIBA-ANTIOQUIA",null,null,null,null,null,null,null,null,null,null,null,null,"05234 - DABEIBA-ANTIOQUIA",null,null,null,null,null,null,null,"13836 - TURBACO-BOLIVAR",null,"15325 - GUAYATA-BOYACA",null,null,null,null,null,null,null,"19845 - VILLA RICA-CAUCA",null,null,null,null,null,null,null,"25326 - GUATAVITA-CUNDINAMARCA",null,null,null,null,null,null,null,null,null,null,null,null,null,"52506 - OSPINA-NARIÑO",null,null,null,null,null,null,null,null,null,null,null,"68344 - HATO-SANTANDER",null,null,null,"73686 - SANTA ISABEL-TOLIMA",null,"76895 - ZARZAL-VALLE DEL CAUCA",null,null,null,null,null,null,null,"169 - COLOMBIA"]
[null,null,null,null,null,"B0722 - Extracción de oro y otros metales preciosos",null,null,null,null,null,null,null,null,null,null,null,null,null,"05237 - DON MATIAS-ANTIOQUIA",null,null,null,null,null,null,null,null,null,null,null,null,"05237 - DON MATIAS-ANTIOQUIA",null,null,null,null,null,null,null,"13838 - TURBANA-BOLIVAR",null,"15332 - GÜICAN-BOYACA",null,null,null,null,null,null,null,null,null,null,null,null,null,null,null,"25328 - GUAYABAL DE SIQUIMA-CUNDINAMARCA",null,null,null,null,null,null,null,null,null,null,null,null,null,"52520 - FRANCISCO PIZARRO-NARIÑO",null,null,null,null,null,null,null,null,null,null,null,"68368 - JESUS MARIA-SANTANDER",null,null,null,"73770 - SUAREZ-TOLIMA",null,null,null,null,null,null,null,null,null,"173 - COMORAS"]
[null,null,null,null,null,"B0723 - Extracción de minerales de níquel",null,null,null,null,null,null,null,null,null,null,null,null,null,"05240 - EBEJICO-ANTIOQUIA",null,null,null,null,null,null,null,null,null,null,null,null,"05240 - EBEJICO-ANTIOQUIA",null,null,null,null,null,null,null,"13873 - VILLANUEVA-BOLIVAR",null,"15362 - IZA-BOYACA",null,null,null,null,null,null,null,null,null,null,null,null,null,null,null,"25335 - GUAYABETAL-CUNDINAMARCA",null,null,null,null,null,null,null,null,null,null,null,null,null,"52540 - POLICARPA-NARIÑO",null,null,null,null,null,null,null,null,null,null,null,"68370 - JORDAN-SANTANDER",null,null,null,"73854 - VALLE DE SAN JUAN-TOLIMA",null,null,null,null,null,null,null,null,null,"177 - CONGO"]
[null,null,null,null,null,"B0729 - Extracción de otros minerales metalíferos no ferrosos n.c.p.",null,null,null,null,null,null,null,null,null,null,null,null,null,"05250 - EL BAGRE-ANTIOQUIA",null,null,null,null,null,null,null,null,null,null,null,null,"05250 - EL BAGRE-ANTIOQUIA",null,null,null,null,null,null,null,"13894 - ZAMBRANO-BOLIVAR",null,"15367 - JENESANO-BOYACA",null,null,null,null,null,null,null,null,null,null,null,null,null,null,null,"25339 - GUTIERREZ-CUNDINAMARCA",null,null,null,null,null,null,null,null,null,null,null,null,null,"52560 - POTOSI-NARIÑO",null,null,null,null,null,null,null,null,null,null,null,"68377 - LA BELLEZA-SANTANDER",null,null,null,"73861 - VENADILLO-TOLIMA",null,null,null,null,null,null,null,null,null,"183 - COOK - ISLAS"]
[null,null,null,null,null,"B0811 - Extracción de piedra, arena, arcillas comunes, yeso y anhidrita",null,null,null,null,null,null,null,null,null,null,null,null,null,"05264 - ENTRERRIOS-ANTIOQUIA",null,null,null,null,null,null,null,null,null,null,null,null,"05264 - ENTRERRIOS-ANTIOQUIA",null,null,null,null,null,null,null,null,null,"15368 - JERICO-BOYACA",null,null,null,null,null,null,null,null,null,null,null,null,null,null,null,"25368 - JERUSALEN-CUNDINAMARCA",null,null,null,null,null,null,null,null,null,null,null,null,null,"52565 - PROVIDENCIA-NARIÑO",null,null,null,null,null,null,null,null,null,null,null,"68385 - LANDAZURI-SANTANDER",null,null,null,"73870 - VILLAHERMOSA-TOLIMA",null,null,null,null,null,null,null,null,null,"187 - COREA (NORTE) - REPUBLICA POPULAR DEMOCRATICA DE"]
[null,null,null,null,null,"B0812 - Extracción de arcillas de uso industrial, caliza, caolín y bentonitas",null,null,null,null,null,null,null,null,null,null,null,null,null,"05266 - ENVIGADO-ANTIOQUIA",null,null,null,null,null,null,null,null,null,null,null,null,"05266 - ENVIGADO-ANTIOQUIA",null,null,null,null,null,null,null,null,null,"15377 - LABRANZAGRANDE-BOYACA",null,null,null,null,null,null,null,null,null,null,null,null,null,null,null,"25372 - JUNIN-CUNDINAMARCA",null,null,null,null,null,null,null,null,null,null,null,null,null,"52573 - PUERRES-NARIÑO",null,null,null,null,null,null,null,null,null,null,null,"68397 - LA PAZ-SANTANDER",null,null,null,"73873 - VILLARRICA-TOLIMA",null,null,null,null,null,null,null,null,null,"190 - COREA (SUR) - REPUBLICA DE"]
[null,null,null,null,null,"B0820 - Extracción de esmeraldas, piedras preciosas y semipreciosas",null,null,null,null,null,null,null,null,null,null,null,null,null,"05282 - FREDONIA-ANTIOQUIA",null,null,null,null,null,null,null,null,null,null,null,null,"05282 - FREDONIA-ANTIOQUIA",null,null,null,null,null,null,null,null,null,"15380 - LA CAPILLA-BOYACA",null,null,null,null,null,null,null,null,null,null,null,null,null,null,null,"25377 - LA CALERA-CUNDINAMARCA",null,null,null,null,null,null,null,null,null,null,null,null,null,"52585 - PUPIALES-NARIÑO",null,null,null,null,null,null,null,null,null,null,null,"68406 - LEBRIJA-SANTANDER",null,null,null,null,null,null,null,null,null,null,null,null,null,"193 - COSTA DE MARFIL"]
[null,null,null,null,null,"B0891 - Extracción de minerales para la fabricación de abonos y productos químicos",null,null,null,null,null,null,null,null,null,null,null,null,null,"05284 - FRONTINO-ANTIOQUIA",null,null,null,null,null,null,null,null,null,null,null,null,"05284 - FRONTINO-ANTIOQUIA",null,null,null,null,null,null,null,null,null,"15401 - LA VICTORIA-BOYACA",null,null,null,null,null,null,null,null,null,null,null,null,null,null,null,"25386 - LA MESA-CUNDINAMARCA",null,null,null,null,null,null,null,null,null,null,null,null,null,"52612 - RICAURTE-NARIÑO",null,null,null,null,null,null,null,null,null,null,null,"68418 - LOS SANTOS-SANTANDER",null,null,null,null,null,null,null,null,null,null,null,null,null,"196 - COSTA RICA"]
[null,null,null,null,null,"B0892 - Extracción de halita (sal)",null,null,null,null,null,null,null,null,null,null,null,null,null,"05306 - GIRALDO-ANTIOQUIA",null,null,null,null,null,null,null,null,null,null,null,null,"05306 - GIRALDO-ANTIOQUIA",null,null,null,null,null,null,null,null,null,"15403 - LA UVITA-BOYACA",null,null,null,null,null,null,null,null,null,null,null,null,null,null,null,"25394 - LA PALMA-CUNDINAMARCA",null,null,null,null,null,null,null,null,null,null,null,null,null,"52621 - ROBERTO PAYAN-NARIÑO",null,null,null,null,null,null,null,null,null,null,null,"68425 - MACARAVITA-SANTANDER",null,null,null,null,null,null,null,null,null,null,null,null,null,"198 - CROACIA"]
[null,null,null,null,null,"B0899 - Extracción de otros minerales no metálicos n.c.p.",null,null,null,null,null,null,null,null,null,null,null,null,null,"05308 - GIRARDOTA-ANTIOQUIA",null,null,null,null,null,null,null,null,null,null,null,null,"05308 - GIRARDOTA-ANTIOQUIA",null,null,null,null,null,null,null,null,null,"15407 - VILLA DE LEYVA-BOYACA",null,null,null,null,null,null,null,null,null,null,null,null,null,null,null,"25398 - LA PEÑA-CUNDINAMARCA",null,null,null,null,null,null,null,null,null,null,null,null,null,"52678 - SAMANIEGO-NARIÑO",null,null,null,null,null,null,null,null,null,null,null,"68432 - MALAGA-SANTANDER",null,null,null,null,null,null,null,null,null,null,null,null,null,"199 - CUBA"]
[null,null,null,null,null,"B0910 - Actividades de apoyo para la extracción de petróleo y de gas natural",null,null,null,null,null,null,null,null,null,null,null,null,null,"05310 - GOMEZ PLATA-ANTIOQUIA",null,null,null,null,null,null,null,null,null,null,null,null,"05310 - GOMEZ PLATA-ANTIOQUIA",null,null,null,null,null,null,null,null,null,"15425 - MACANAL-BOYACA",null,null,null,null,null,null,null,null,null,null,null,null,null,null,null,"25402 - LA VEGA-CUNDINAMARCA",null,null,null,null,null,null,null,null,null,null,null,null,null,"52683 - SANDONA-NARIÑO",null,null,null,null,null,null,null,null,null,null,null,"68444 - MATANZA-SANTANDER",null,null,null,null,null,null,null,null,null,null,null,null,null,"203 - CHAD"]
[null,null,null,null,null,"B0990 - Actividades de apoyo para otras actividades de explotación de minas y canteras",null,null,null,null,null,null,null,null,null,null,null,null,null,"05313 - GRANADA-ANTIOQUIA",null,null,null,null,null,null,null,null,null,null,null,null,"05313 - GRANADA-ANTIOQUIA",null,null,null,null,null,null,null,null,null,"15442 - MARIPI-BOYACA",null,null,null,null,null,null,null,null,null,null,null,null,null,null,null,"25407 - LENGUAZAQUE-CUNDINAMARCA",null,null,null,null,null,null,null,null,null,null,null,null,null,"52685 - SAN BERNARDO-NARIÑO",null,null,null,null,null,null,null,null,null,null,null,"68464 - MOGOTES-SANTANDER",null,null,null,null,null,null,null,null,null,null,null,null,null,"211 - CHILE"]
[null,null,null,null,null,"C1011 - Procesamiento y conservación de carne y productos cárnicos",null,null,null,null,null,null,null,null,null,null,null,null,null,"05315 - GUADALUPE-ANTIOQUIA",null,null,null,null,null,null,null,null,null,null,null,null,"05315 - GUADALUPE-ANTIOQUIA",null,null,null,null,null,null,null,null,null,"15455 - MIRAFLORES-BOYACA",null,null,null,null,null,null,null,null,null,null,null,null,null,null,null,"25426 - MACHETA-CUNDINAMARCA",null,null,null,null,null,null,null,null,null,null,null,null,null,"52687 - SAN LORENZO-NARIÑO",null,null,null,null,null,null,null,null,null,null,null,"68468 - MOLAGAVITA-SANTANDER",null,null,null,null,null,null,null,null,null,null,null,null,null,"215 - CHINA"]
[null,null,null,null,null,"C1012 - Procesamiento y conservación de pescados, crustáceos y moluscos",null,null,null,null,null,null,null,null,null,null,null,null,null,"05318 - GUARNE-ANTIOQUIA",null,null,null,null,null,null,null,null,null,null,null,null,"05318 - GUARNE-ANTIOQUIA",null,null,null,null,null,null,null,null,null,"15464 - MONGUA-BOYACA",null,null,null,null,null,null,null,null,null,null,null,null,null,null,null,"25430 - MADRID-CUNDINAMARCA",null,null,null,null,null,null,null,null,null,null,null,null,null,"52693 - SAN PABLO-NARIÑO",null,null,null,null,null,null,null,null,null,null,null,"68498 - OCAMONTE-SANTANDER",null,null,null,null,null,null,null,null,null,null,null,null,null,"218 - TAIWAN (FORMOSA)"]
[null,null,null,null,null,"C1020 - Procesamiento y conservación de frutas, legumbres, hortalizas y tubérculos",null,null,null,null,null,null,null,null,null,null,null,null,null,"05321 - GUATAPE-ANTIOQUIA",null,null,null,null,null,null,null,null,null,null,null,null,"05321 - GUATAPE-ANTIOQUIA",null,null,null,null,null,null,null,null,null,"15466 - MONGUI-BOYACA",null,null,null,null,null,null,null,null,null,null,null,null,null,null,null,"25436 - MANTA-CUNDINAMARCA",null,null,null,null,null,null,null,null,null,null,null,null,null,"52694 - SAN PEDRO DE CARTAGO-NARIÑO",null,null,null,null,null,null,null,null,null,null,null,"68500 - OIBA-SANTANDER",null,null,null,null,null,null,null,null,null,null,null,null,null,"221 - CHIPRE"]
[null,null,null,null,null,"C1030 - Elaboración de aceites y grasas de origen vegetal y animal",null,null,null,null,null,null,null,null,null,null,null,null,null,"05347 - HELICONIA-ANTIOQUIA",null,null,null,null,null,null,null,null,null,null,null,null,"05347 - HELICONIA-ANTIOQUIA",null,null,null,null,null,null,null,null,null,"15469 - MONIQUIRA-BOYACA",null,null,null,null,null,null,null,null,null,null,null,null,null,null,null,"25438 - MEDINA-CUNDINAMARCA",null,null,null,null,null,null,null,null,null,null,null,null,null,"52696 - SANTA BARBARA-NARIÑO",null,null,null,null,null,null,null,null,null,null,null,"68502 - ONZAGA-SANTANDER",null,null,null,null,null,null,null,null,null,null,null,null,null,"229 - BENIN"]
[null,null,null,null,null,"C1040 - Elaboración de productos lácteos",null,null,null,null,null,null,null,null,null,null,null,null,null,"05353 - HISPANIA-ANTIOQUIA",null,null,null,null,null,null,null,null,null,null,null,null,"05353 - HISPANIA-ANTIOQUIA",null,null,null,null,null,null,null,null,null,"15476 - MOTAVITA-BOYACA",null,null,null,null,null,null,null,null,null,null,null,null,null,null,null,"25473 - MOSQUERA-CUNDINAMARCA",null,null,null,null,null,null,null,null,null,null,null,null,null,"52699 - SANTACRUZ-NARIÑO",null,null,null,null,null,null,null,null,null,null,null,"68522 - PALMAR-SANTANDER",null,null,null,null,null,null,null,null,null,null,null,null,null,"232 - DINAMARCA"]
[null,null,null,null,null,"C1051 - Elaboración de productos de molinería",null,null,null,null,null,null,null,null,null,null,null,null,null,"05360 - ITAGÜI-ANTIOQUIA",null,null,null,null,null,null,null,null,null,null,null,null,"05360 - ITAGÜI-ANTIOQUIA",null,null,null,null,null,null,null,null,null,"15480 - MUZO-BOYACA",null,null,null,null,null,null,null,null,null,null,null,null,null,null,null,"25483 - NARIÑO-CUNDINAMARCA",null,null,null,null,null,null,null,null,null,null,null,null,null,"52720 - SAPUYES-NARIÑO",null,null,null,null,null,null,null,null,null,null,null,"68524 - PALMAS DEL SOCORRO-SANTANDER",null,null,null,null,null,null,null,null,null,null,null,null,null,"235 - DOMINICA"]
[null,null,null,null,null,"C1052 - Elaboración de almidones y productos derivados del almidón",null,null,null,null,null,null,null,null,null,null,null,null,null,"05361 - ITUANGO-ANTIOQUIA",null,null,null,null,null,null,null,null,null,null,null,null,"05361 - ITUANGO-ANTIOQUIA",null,null,null,null,null,null,null,null,null,"15491 - NOBSA-BOYACA",null,null,null,null,null,null,null,null,null,null,null,null,null,null,null,"25486 - NEMOCON-CUNDINAMARCA",null,null,null,null,null,null,null,null,null,null,null,null,null,"52786 - TAMINANGO-NARIÑO",null,null,null,null,null,null,null,null,null,null,null,"68533 - PARAMO-SANTANDER",null,null,null,null,null,null,null,null,null,null,null,null,null,"239 - ECUADOR"]
[null,null,null,null,null,"C1061 - Trilla de café",null,null,null,null,null,null,null,null,null,null,null,null,null,"05364 - JARDIN-ANTIOQUIA",null,null,null,null,null,null,null,null,null,null,null,null,"05364 - JARDIN-ANTIOQUIA",null,null,null,null,null,null,null,null,null,"15494 - NUEVO COLON-BOYACA",null,null,null,null,null,null,null,null,null,null,null,null,null,null,null,"25488 - NILO-CUNDINAMARCA",null,null,null,null,null,null,null,null,null,null,null,null,null,"52788 - TANGUA-NARIÑO",null,null,null,null,null,null,null,null,null,null,null,"68547 - PIEDECUESTA-SANTANDER",null,null,null,null,null,null,null,null,null,null,null,null,null,"240 - EGIPTO"]
[null,null,null,null,null,"C1062 - Descafeinado, tostión y molienda del café",null,null,null,null,null,null,null,null,null,null,null,null,null,"05368 - JERICO-ANTIOQUIA",null,null,null,null,null,null,null,null,null,null,null,null,"05368 - JERICO-ANTIOQUIA",null,null,null,null,null,null,null,null,null,"15500 - OICATA-BOYACA",null,null,null,null,null,null,null,null,null,null,null,null,null,null,null,"25489 - NIMAIMA-CUNDINAMARCA",null,null,null,null,null,null,null,null,null,null,null,null,null,"52835 - SAN ANDRES DE TUMACO-NARIÑO",null,null,null,null,null,null,null,null,null,null,null,"68549 - PINCHOTE-SANTANDER",null,null,null,null,null,null,null,null,null,null,null,null,null,"242 - EL SALVADOR"]
[null,null,null,null,null,"C1063 - Otros derivados del café",null,null,null,null,null,null,null,null,null,null,null,null,null,"05376 - LA CEJA-ANTIOQUIA",null,null,null,null,null,null,null,null,null,null,null,null,"05376 - LA CEJA-ANTIOQUIA",null,null,null,null,null,null,null,null,null,"15507 - OTANCHE-BOYACA",null,null,null,null,null,null,null,null,null,null,null,null,null,null,null,"25491 - NOCAIMA-CUNDINAMARCA",null,null,null,null,null,null,null,null,null,null,null,null,null,"52838 - TUQUERRES-NARIÑO",null,null,null,null,null,null,null,null,null,null,null,"68572 - PUENTE NACIONAL-SANTANDER",null,null,null,null,null,null,null,null,null,null,null,null,null,"243 - ERITREA"]
[null,null,null,null,null,"C1071 - Elaboración y refinación de azúcar",null,null,null,null,null,null,null,null,null,null,null,null,null,"05380 - LA ESTRELLA-ANTIOQUIA",null,null,null,null,null,null,null,null,null,null,null,null,"05380 - LA ESTRELLA-ANTIOQUIA",null,null,null,null,null,null,null,null,null,"15511 - PACHAVITA-BOYACA",null,null,null,null,null,null,null,null,null,null,null,null,null,null,null,"25506 - VENECIA-CUNDINAMARCA",null,null,null,null,null,null,null,null,null,null,null,null,null,"52885 - YACUANQUER-NARIÑO",null,null,null,null,null,null,null,null,null,null,null,"68573 - PUERTO PARRA-SANTANDER",null,null,null,null,null,null,null,null,null,null,null,null,null,"244 - EMIRATOS ARABES UNIDOS"]
[null,null,null,null,null,"C1072 - Elaboración de panela",null,null,null,null,null,null,null,null,null,null,null,null,null,"05390 - LA PINTADA-ANTIOQUIA",null,null,null,null,null,null,null,null,null,null,null,null,"05390 - LA PINTADA-ANTIOQUIA",null,null,null,null,null,null,null,null,null,"15514 - PAEZ-BOYACA",null,null,null,null,null,null,null,null,null,null,null,null,null,null,null,"25513 - PACHO-CUNDINAMARCA",null,null,null,null,null,null,null,null,null,null,null,null,null,null,null,null,null,null,null,null,null,null,null,null,null,"68575 - PUERTO WILCHES-SANTANDER",null,null,null,null,null,null,null,null,null,null,null,null,null,"245 - ESPAÑA"]
[null,null,null,null,null,"C1081 - Elaboración de productos de panadería",null,null,null,null,null,null,null,null,null,null,null,null,null,"05400 - LA UNION-ANTIOQUIA",null,null,null,null,null,null,null,null,null,null,null,null,"05400 - LA UNION-ANTIOQUIA",null,null,null,null,null,null,null,null,null,"15516 - PAIPA-BOYACA",null,null,null,null,null,null,null,null,null,null,null,null,null,null,null,"25518 - PAIME-CUNDINAMARCA",null,null,null,null,null,null,null,null,null,null,null,null,null,null,null,null,null,null,null,null,null,null,null,null,null,"68615 - RIONEGRO-SANTANDER",null,null,null,null,null,null,null,null,null,null,null,null,null,"246 - ESLOVAQUIA"]
[null,null,null,null,null,"C1082 - Elaboración de cacao, chocolate y productos de confitería",null,null,null,null,null,null,null,null,null,null,null,null,null,"05411 - LIBORINA-ANTIOQUIA",null,null,null,null,null,null,null,null,null,null,null,null,"05411 - LIBORINA-ANTIOQUIA",null,null,null,null,null,null,null,null,null,"15518 - PAJARITO-BOYACA",null,null,null,null,null,null,null,null,null,null,null,null,null,null,null,"25524 - PANDI-CUNDINAMARCA",null,null,null,null,null,null,null,null,null,null,null,null,null,null,null,null,null,null,null,null,null,null,null,null,null,"68655 - SABANA DE TORRES-SANTANDER",null,null,null,null,null,null,null,null,null,null,null,null,null,"247 - ESLOVENIA"]
[null,null,null,null,null,"C1083 - Elaboración de macarrones, fideos, alcuzcuz y productos farináceos similares",null,null,null,null,null,null,null,null,null,null,null,null,null,"05425 - MACEO-ANTIOQUIA",null,null,null,null,null,null,null,null,null,null,null,null,"05425 - MACEO-ANTIOQUIA",null,null,null,null,null,null,null,null,null,"15522 - PANQUEBA-BOYACA",null,null,null,null,null,null,null,null,null,null,null,null,null,null,null,"25530 - PARATEBUENO-CUNDINAMARCA",null,null,null,null,null,null,null,null,null,null,null,null,null,null,null,null,null,null,null,null,null,null,null,null,null,"68669 - SAN ANDRES-SANTANDER",null,null,null,null,null,null,null,null,null,null,null,null,null,"249 - ESTADOS UNIDOS"]
[null,null,null,null,null,"C1084 - Elaboración de comidas y platos preparados",null,null,null,null,null,null,null,null,null,null,null,null,null,"05440 - MARINILLA-ANTIOQUIA",null,null,null,null,null,null,null,null,null,null,null,null,"05440 - MARINILLA-ANTIOQUIA",null,null,null,null,null,null,null,null,null,"15531 - PAUNA-BOYACA",null,null,null,null,null,null,null,null,null,null,null,null,null,null,null,"25535 - PASCA-CUNDINAMARCA",null,null,null,null,null,null,null,null,null,null,null,null,null,null,null,null,null,null,null,null,null,null,null,null,null,"68673 - SAN BENITO-SANTANDER",null,null,null,null,null,null,null,null,null,null,null,null,null,"251- ESTONIA"]
[null,null,null,null,null,"C1089 - Elaboración de otros productos alimenticios n.c.p.",null,null,null,null,null,null,null,null,null,null,null,null,null,"05467 - MONTEBELLO-ANTIOQUIA",null,null,null,null,null,null,null,null,null,null,null,null,"05467 - MONTEBELLO-ANTIOQUIA",null,null,null,null,null,null,null,null,null,"15533 - PAYA-BOYACA",null,null,null,null,null,null,null,null,null,null,null,null,null,null,null,"25572 - PUERTO SALGAR-CUNDINAMARCA",null,null,null,null,null,null,null,null,null,null,null,null,null,null,null,null,null,null,null,null,null,null,null,null,null,"68679 - SAN GIL-SANTANDER",null,null,null,null,null,null,null,null,null,null,null,null,null,"253 - ETIOPIA"]
[null,null,null,null,null,"C1090 - Elaboración de alimentos preparados para animales",null,null,null,null,null,null,null,null,null,null,null,null,null,"05475 - MURINDO-ANTIOQUIA",null,null,null,null,null,null,null,null,null,null,null,null,"05475 - MURINDO-ANTIOQUIA",null,null,null,null,null,null,null,null,null,"15537 - PAZ DE RIO-BOYACA",null,null,null,null,null,null,null,null,null,null,null,null,null,null,null,"25580 - PULI-CUNDINAMARCA",null,null,null,null,null,null,null,null,null,null,null,null,null,null,null,null,null,null,null,null,null,null,null,null,null,"68682 - SAN JOAQUIN-SANTANDER",null,null,null,null,null,null,null,null,null,null,null,null,null,"259 - FEROE - ISLAS"]
[null,null,null,null,null,"C1101 - Destilación, rectificación y mezcla de bebidas alcohólicas",null,null,null,null,null,null,null,null,null,null,null,null,null,"05480 - MUTATA-ANTIOQUIA",null,null,null,null,null,null,null,null,null,null,null,null,"05480 - MUTATA-ANTIOQUIA",null,null,null,null,null,null,null,null,null,"15542 - PESCA-BOYACA",null,null,null,null,null,null,null,null,null,null,null,null,null,null,null,"25592 - QUEBRADANEGRA-CUNDINAMARCA",null,null,null,null,null,null,null,null,null,null,null,null,null,null,null,null,null,null,null,null,null,null,null,null,null,"68684 - SAN JOSE DE MIRANDA-SANTANDER",null,null,null,null,null,null,null,null,null,null,null,null,null,"267 - FILIPINAS"]
[null,null,null,null,null,"C1102 - Elaboración de bebidas fermentadas no destiladas",null,null,null,null,null,null,null,null,null,null,null,null,null,"05483 - NARIÑO-ANTIOQUIA",null,null,null,null,null,null,null,null,null,null,null,null,"05483 - NARIÑO-ANTIOQUIA",null,null,null,null,null,null,null,null,null,"15550 - PISBA-BOYACA",null,null,null,null,null,null,null,null,null,null,null,null,null,null,null,"25594 - QUETAME-CUNDINAMARCA",null,null,null,null,null,null,null,null,null,null,null,null,null,null,null,null,null,null,null,null,null,null,null,null,null,"68686 - SAN MIGUEL-SANTANDER",null,null,null,null,null,null,null,null,null,null,null,null,null,"271 - FINLANDIA"]
[null,null,null,null,null,"C1103 - Producción de malta, elaboración de cervezas y otras bebidas malteadas",null,null,null,null,null,null,null,null,null,null,null,null,null,"05490 - NECOCLI-ANTIOQUIA",null,null,null,null,null,null,null,null,null,null,null,null,"05490 - NECOCLI-ANTIOQUIA",null,null,null,null,null,null,null,null,null,"15572 - PUERTO BOYACA-BOYACA",null,null,null,null,null,null,null,null,null,null,null,null,null,null,null,"25596 - QUIPILE-CUNDINAMARCA",null,null,null,null,null,null,null,null,null,null,null,null,null,null,null,null,null,null,null,null,null,null,null,null,null,"68689 - SAN VICENTE DE CHUCURI-SANTANDER",null,null,null,null,null,null,null,null,null,null,null,null,null,"275 - FRANCIA"]
[null,null,null,null,null,"C1104 - Elaboración de bebidas no alcohólicas, producción de aguas minerales y de otras aguas embotelladas",null,null,null,null,null,null,null,null,null,null,null,null,null,"05495 - NECHI-ANTIOQUIA",null,null,null,null,null,null,null,null,null,null,null,null,"05495 - NECHI-ANTIOQUIA",null,null,null,null,null,null,null,null,null,"15580 - QUIPAMA-BOYACA",null,null,null,null,null,null,null,null,null,null,null,null,null,null,null,"25599 - APULO-CUNDINAMARCA",null,null,null,null,null,null,null,null,null,null,null,null,null,null,null,null,null,null,null,null,null,null,null,null,null,"68705 - SANTA BARBARA-SANTANDER",null,null,null,null,null,null,null,null,null,null,null,null,null,"281 - GABON"]
[null,null,null,null,null,"C1200 - Elaboración de productos de tabaco",null,null,null,null,null,null,null,null,null,null,null,null,null,"05501 - OLAYA-ANTIOQUIA",null,null,null,null,null,null,null,null,null,null,null,null,"05501 - OLAYA-ANTIOQUIA",null,null,null,null,null,null,null,null,null,"15599 - RAMIRIQUI-BOYACA",null,null,null,null,null,null,null,null,null,null,null,null,null,null,null,"25612 - RICAURTE-CUNDINAMARCA",null,null,null,null,null,null,null,null,null,null,null,null,null,null,null,null,null,null,null,null,null,null,null,null,null,"68720 - SANTA HELENA DEL OPON-SANTANDER",null,null,null,null,null,null,null,null,null,null,null,null,null,"285 - GAMBIA"]
[null,null,null,null,null,"C1311 - Preparación e hilatura de fibras textiles",null,null,null,null,null,null,null,null,null,null,null,null,null,"05541 - PEÑOL-ANTIOQUIA",null,null,null,null,null,null,null,null,null,null,null,null,"05541 - PEÑOL-ANTIOQUIA",null,null,null,null,null,null,null,null,null,"15600 - RAQUIRA-BOYACA",null,null,null,null,null,null,null,null,null,null,null,null,null,null,null,"25645 - SAN ANTONIO DEL TEQUENDAMA-CUNDINAMARCA",null,null,null,null,null,null,null,null,null,null,null,null,null,null,null,null,null,null,null,null,null,null,null,null,null,"68745 - SIMACOTA-SANTANDER",null,null,null,null,null,null,null,null,null,null,null,null,null,"287 - GEORGIA"]
[null,null,null,null,null,"C1312 - Tejeduría de productos textiles",null,null,null,null,null,null,null,null,null,null,null,null,null,"05543 - PEQUE-ANTIOQUIA",null,null,null,null,null,null,null,null,null,null,null,null,"05543 - PEQUE-ANTIOQUIA",null,null,null,null,null,null,null,null,null,"15621 - RONDON-BOYACA",null,null,null,null,null,null,null,null,null,null,null,null,null,null,null,"25649 - SAN BERNARDO-CUNDINAMARCA",null,null,null,null,null,null,null,null,null,null,null,null,null,null,null,null,null,null,null,null,null,null,null,null,null,"68755 - SOCORRO-SANTANDER",null,null,null,null,null,null,null,null,null,null,null,null,null,"289 - GHANA"]
[null,null,null,null,null,"C1313 - Acabado de productos textiles",null,null,null,null,null,null,null,null,null,null,null,null,null,"05576 - PUEBLORRICO-ANTIOQUIA",null,null,null,null,null,null,null,null,null,null,null,null,"05576 - PUEBLORRICO-ANTIOQUIA",null,null,null,null,null,null,null,null,null,"15632 - SABOYA-BOYACA",null,null,null,null,null,null,null,null,null,null,null,null,null,null,null,"25653 - SAN CAYETANO-CUNDINAMARCA",null,null,null,null,null,null,null,null,null,null,null,null,null,null,null,null,null,null,null,null,null,null,null,null,null,"68770 - SUAITA-SANTANDER",null,null,null,null,null,null,null,null,null,null,null,null,null,"293 - GIBRALTAR"]
[null,null,null,null,null,"C1391 - Fabricación de tejidos de punto y ganchillo",null,null,null,null,null,null,null,null,null,null,null,null,null,"05579 - PUERTO BERRIO-ANTIOQUIA",null,null,null,null,null,null,null,null,null,null,null,null,"05579 - PUERTO BERRIO-ANTIOQUIA",null,null,null,null,null,null,null,null,null,"15638 - SACHICA-BOYACA",null,null,null,null,null,null,null,null,null,null,null,null,null,null,null,"25658 - SAN FRANCISCO-CUNDINAMARCA",null,null,null,null,null,null,null,null,null,null,null,null,null,null,null,null,null,null,null,null,null,null,null,null,null,"68773 - SUCRE-SANTANDER",null,null,null,null,null,null,null,null,null,null,null,null,null,"297 - GRANADA"]
[null,null,null,null,null,"C1392 - Confección de artículos con materiales textiles, excepto prendas de vestir",null,null,null,null,null,null,null,null,null,null,null,null,null,"05585 - PUERTO NARE-ANTIOQUIA",null,null,null,null,null,null,null,null,null,null,null,null,"05585 - PUERTO NARE-ANTIOQUIA",null,null,null,null,null,null,null,null,null,"15646 - SAMACA-BOYACA",null,null,null,null,null,null,null,null,null,null,null,null,null,null,null,"25662 - SAN JUAN DE RIO SECO-CUNDINAMARCA",null,null,null,null,null,null,null,null,null,null,null,null,null,null,null,null,null,null,null,null,null,null,null,null,null,"68780 - SURATA-SANTANDER",null,null,null,null,null,null,null,null,null,null,null,null,null,"301 - GRECIA"]
[null,null,null,null,null,"C1393 - Fabricación de tapetes y alfombras para pisos",null,null,null,null,null,null,null,null,null,null,null,null,null,"05591 - PUERTO TRIUNFO-ANTIOQUIA",null,null,null,null,null,null,null,null,null,null,null,null,"05591 - PUERTO TRIUNFO-ANTIOQUIA",null,null,null,null,null,null,null,null,null,"15660 - SAN EDUARDO-BOYACA",null,null,null,null,null,null,null,null,null,null,null,null,null,null,null,"25718 - SASAIMA-CUNDINAMARCA",null,null,null,null,null,null,null,null,null,null,null,null,null,null,null,null,null,null,null,null,null,null,null,null,null,"68820 - TONA-SANTANDER",null,null,null,null,null,null,null,null,null,null,null,null,null,"305 - GROENLANDIA"]
[null,null,null,null,null,"C1394 - Fabricación de cuerdas, cordeles, cables, bramantes y redes",null,null,null,null,null,null,null,null,null,null,null,null,null,"05604 - REMEDIOS-ANTIOQUIA",null,null,null,null,null,null,null,null,null,null,null,null,"05604 - REMEDIOS-ANTIOQUIA",null,null,null,null,null,null,null,null,null,"15664 - SAN JOSE DE PARE-BOYACA",null,null,null,null,null,null,null,null,null,null,null,null,null,null,null,"25736 - SESQUILE-CUNDINAMARCA",null,null,null,null,null,null,null,null,null,null,null,null,null,null,null,null,null,null,null,null,null,null,null,null,null,"68855 - VALLE DE SAN JOSE-SANTANDER",null,null,null,null,null,null,null,null,null,null,null,null,null,"309 - GUADALUPE"]
[null,null,null,null,null,"C1399 - Fabricación de otros artículos textiles n.c.p.",null,null,null,null,null,null,null,null,null,null,null,null,null,"05607 - RETIRO-ANTIOQUIA",null,null,null,null,null,null,null,null,null,null,null,null,"05607 - RETIRO-ANTIOQUIA",null,null,null,null,null,null,null,null,null,"15667 - SAN LUIS DE GACENO-BOYACA",null,null,null,null,null,null,null,null,null,null,null,null,null,null,null,"25740 - SIBATE-CUNDINAMARCA",null,null,null,null,null,null,null,null,null,null,null,null,null,null,null,null,null,null,null,null,null,null,null,null,null,"68861 - VELEZ-SANTANDER",null,null,null,null,null,null,null,null,null,null,null,null,null,"313 - GUAM"]
[null,null,null,null,null,"C1410 - Confección de prendas de vestir, excepto prendas de piel",null,null,null,null,null,null,null,null,null,null,null,null,null,"05615 - RIONEGRO-ANTIOQUIA",null,null,null,null,null,null,null,null,null,null,null,null,"05615 - RIONEGRO-ANTIOQUIA",null,null,null,null,null,null,null,null,null,"15673 - SAN MATEO-BOYACA",null,null,null,null,null,null,null,null,null,null,null,null,null,null,null,"25743 - SILVANIA-CUNDINAMARCA",null,null,null,null,null,null,null,null,null,null,null,null,null,null,null,null,null,null,null,null,null,null,null,null,null,"68867 - VETAS-SANTANDER",null,null,null,null,null,null,null,null,null,null,null,null,null,"317 - GUATEMALA"]
[null,null,null,null,null,"C1420 - Fabricación de artículos de piel",null,null,null,null,null,null,null,null,null,null,null,null,null,"05628 - SABANALARGA-ANTIOQUIA",null,null,null,null,null,null,null,null,null,null,null,null,"05628 - SABANALARGA-ANTIOQUIA",null,null,null,null,null,null,null,null,null,"15676 - SAN MIGUEL DE SEMA-BOYACA",null,null,null,null,null,null,null,null,null,null,null,null,null,null,null,"25745 - SIMIJACA-CUNDINAMARCA",null,null,null,null,null,null,null,null,null,null,null,null,null,null,null,null,null,null,null,null,null,null,null,null,null,"68872 - VILLANUEVA-SANTANDER",null,null,null,null,null,null,null,null,null,null,null,null,null,"325 - GUAYANA FRANCESA"]
[null,null,null,null,null,"C1430 - Fabricación de artículos de punto y ganchillo",null,null,null,null,null,null,null,null,null,null,null,null,null,"05631 - SABANETA-ANTIOQUIA",null,null,null,null,null,null,null,null,null,null,null,null,"05631 - SABANETA-ANTIOQUIA",null,null,null,null,null,null,null,null,null,"15681 - SAN PABLO DE BORBUR-BOYACA",null,null,null,null,null,null,null,null,null,null,null,null,null,null,null,"25754 - SOACHA-CUNDINAMARCA",null,null,null,null,null,null,null,null,null,null,null,null,null,null,null,null,null,null,null,null,null,null,null,null,null,"68895 - ZAPATOCA-SANTANDER",null,null,null,null,null,null,null,null,null,null,null,null,null,"329 - GUINEA"]
[null,null,null,null,null,"C1511 - Curtido y recurtido de cueros; recurtido y teñido de pieles",null,null,null,null,null,null,null,null,null,null,null,null,null,"05642 - SALGAR-ANTIOQUIA",null,null,null,null,null,null,null,null,null,null,null,null,"05642 - SALGAR-ANTIOQUIA",null,null,null,null,null,null,null,null,null,"15686 - SANTANA-BOYACA",null,null,null,null,null,null,null,null,null,null,null,null,null,null,null,"25758 - SOPO-CUNDINAMARCA",null,null,null,null,null,null,null,null,null,null,null,null,null,null,null,null,null,null,null,null,null,null,null,null,null,null,null,null,null,null,null,null,null,null,null,null,null,null,null,"331- GUINEA ECUATORIAL"]
[null,null,null,null,null,"C1512 - Fabricación de artículos de viaje, bolsos de mano y artículos similares elaborados en cuero, y fabricación de artículos de talabartería y guarnicionería",null,null,null,null,null,null,null,null,null,null,null,null,null,"05647 - SAN ANDRES  DE CUERQUIA-ANTIOQUIA",null,null,null,null,null,null,null,null,null,null,null,null,"05647 - SAN ANDRES  DE CUERQUIA-ANTIOQUIA",null,null,null,null,null,null,null,null,null,"15690 - SANTA MARIA-BOYACA",null,null,null,null,null,null,null,null,null,null,null,null,null,null,null,"25769 - SUBACHOQUE-CUNDINAMARCA",null,null,null,null,null,null,null,null,null,null,null,null,null,null,null,null,null,null,null,null,null,null,null,null,null,null,null,null,null,null,null,null,null,null,null,null,null,null,null,"334 - GUINEA"]
[null,null,null,null,null,"C1513 - Fabricación de artículos de viaje, bolsos de mano y artículos similares; artículos de talabartería y guarnicionería elaborados en otros materiales",null,null,null,null,null,null,null,null,null,null,null,null,null,"05649 - SAN CARLOS-ANTIOQUIA",null,null,null,null,null,null,null,null,null,null,null,null,"05649 - SAN CARLOS-ANTIOQUIA",null,null,null,null,null,null,null,null,null,"15693 - SANTA ROSA DE VITERBO-BOYACA",null,null,null,null,null,null,null,null,null,null,null,null,null,null,null,"25772 - SUESCA-CUNDINAMARCA",null,null,null,null,null,null,null,null,null,null,null,null,null,null,null,null,null,null,null,null,null,null,null,null,null,null,null,null,null,null,null,null,null,null,null,null,null,null,null,"337 - GUYANA"]
[null,null,null,null,null,"C1521 - Fabricación de calzado de cuero y piel, con cualquier tipo de suela",null,null,null,null,null,null,null,null,null,null,null,null,null,"05652 - SAN FRANCISCO-ANTIOQUIA",null,null,null,null,null,null,null,null,null,null,null,null,"05652 - SAN FRANCISCO-ANTIOQUIA",null,null,null,null,null,null,null,null,null,"15696 - SANTA SOFIA-BOYACA",null,null,null,null,null,null,null,null,null,null,null,null,null,null,null,"25777 - SUPATA-CUNDINAMARCA",null,null,null,null,null,null,null,null,null,null,null,null,null,null,null,null,null,null,null,null,null,null,null,null,null,null,null,null,null,null,null,null,null,null,null,null,null,null,null,"341 - HAITI"]
[null,null,null,null,null,"C1522 - Fabricación de otros tipos de calzado, excepto calzado de cuero y piel",null,null,null,null,null,null,null,null,null,null,null,null,null,"05656 - SAN JERONIMO-ANTIOQUIA",null,null,null,null,null,null,null,null,null,null,null,null,"05656 - SAN JERONIMO-ANTIOQUIA",null,null,null,null,null,null,null,null,null,"15720 - SATIVANORTE-BOYACA",null,null,null,null,null,null,null,null,null,null,null,null,null,null,null,"25779 - SUSA-CUNDINAMARCA",null,null,null,null,null,null,null,null,null,null,null,null,null,null,null,null,null,null,null,null,null,null,null,null,null,null,null,null,null,null,null,null,null,null,null,null,null,null,null,"345 - HONDURAS"]
[null,null,null,null,null,"C1523 - Fabricación de partes del calzado",null,null,null,null,null,null,null,null,null,null,null,null,null,"05658 - SAN JOSE DE LA MONTAÑA-ANTIOQUIA",null,null,null,null,null,null,null,null,null,null,null,null,"05658 - SAN JOSE DE LA MONTAÑA-ANTIOQUIA",null,null,null,null,null,null,null,null,null,"15723 - SATIVASUR-BOYACA",null,null,null,null,null,null,null,null,null,null,null,null,null,null,null,"25781 - SUTATAUSA-CUNDINAMARCA",null,null,null,null,null,null,null,null,null,null,null,null,null,null,null,null,null,null,null,null,null,null,null,null,null,null,null,null,null,null,null,null,null,null,null,null,null,null,null,"351 - HONG KONG"]
[null,null,null,null,null,"C1610 - Aserrado, acepillado e impregnación de la madera",null,null,null,null,null,null,null,null,null,null,null,null,null,"05659 - SAN JUAN DE URABA-ANTIOQUIA",null,null,null,null,null,null,null,null,null,null,null,null,"05659 - SAN JUAN DE URABA-ANTIOQUIA",null,null,null,null,null,null,null,null,null,"15740 - SIACHOQUE-BOYACA",null,null,null,null,null,null,null,null,null,null,null,null,null,null,null,"25785 - TABIO-CUNDINAMARCA",null,null,null,null,null,null,null,null,null,null,null,null,null,null,null,null,null,null,null,null,null,null,null,null,null,null,null,null,null,null,null,null,null,null,null,null,null,null,null,"355 - HUNGRIA"]
[null,null,null,null,null,"C1620 - Fabricación de hojas de madera para enchapado; fabricación de tableros contrachapados, tableros laminados, tableros de partículas y otros tableros y paneles",null,null,null,null,null,null,null,null,null,null,null,null,null,"05660 - SAN LUIS-ANTIOQUIA",null,null,null,null,null,null,null,null,null,null,null,null,"05660 - SAN LUIS-ANTIOQUIA",null,null,null,null,null,null,null,null,null,"15753 - SOATA-BOYACA",null,null,null,null,null,null,null,null,null,null,null,null,null,null,null,"25793 - TAUSA-CUNDINAMARCA",null,null,null,null,null,null,null,null,null,null,null,null,null,null,null,null,null,null,null,null,null,null,null,null,null,null,null,null,null,null,null,null,null,null,null,null,null,null,null,"361 - INDIA"]
[null,null,null,null,null,"C1630 - Fabricación de partes y piezas de madera, de carpintería y ebanistería para la construcción",null,null,null,null,null,null,null,null,null,null,null,null,null,"05664 - SAN PEDRO DE LOS MILAGROS-ANTIOQUIA",null,null,null,null,null,null,null,null,null,null,null,null,"05664 - SAN PEDRO DE LOS MILAGROS-ANTIOQUIA",null,null,null,null,null,null,null,null,null,"15755 - SOCOTA-BOYACA",null,null,null,null,null,null,null,null,null,null,null,null,null,null,null,"25797 - TENA-CUNDINAMARCA",null,null,null,null,null,null,null,null,null,null,null,null,null,null,null,null,null,null,null,null,null,null,null,null,null,null,null,null,null,null,null,null,null,null,null,null,null,null,null,"365 - INDONESIA"]
[null,null,null,null,null,"C1640 - Fabricación de recipientes de madera",null,null,null,null,null,null,null,null,null,null,null,null,null,"05665 - SAN PEDRO DE URABA-ANTIOQUIA",null,null,null,null,null,null,null,null,null,null,null,null,"05665 - SAN PEDRO DE URABA-ANTIOQUIA",null,null,null,null,null,null,null,null,null,"15757 - SOCHA-BOYACA",null,null,null,null,null,null,null,null,null,null,null,null,null,null,null,"25799 - TENJO-CUNDINAMARCA",null,null,null,null,null,null,null,null,null,null,null,null,null,null,null,null,null,null,null,null,null,null,null,null,null,null,null,null,null,null,null,null,null,null,null,null,null,null,null,"369 - IRAK"]
[null,null,null,null,null,"C1690 - Fabricación de otros productos de madera; fabricación de artículos de corcho, cestería y espartería",null,null,null,null,null,null,null,null,null,null,null,null,null,"05667 - SAN RAFAEL-ANTIOQUIA",null,null,null,null,null,null,null,null,null,null,null,null,"05667 - SAN RAFAEL-ANTIOQUIA",null,null,null,null,null,null,null,null,null,"15759 - SOGAMOSO-BOYACA",null,null,null,null,null,null,null,null,null,null,null,null,null,null,null,"25805 - TIBACUY-CUNDINAMARCA",null,null,null,null,null,null,null,null,null,null,null,null,null,null,null,null,null,null,null,null,null,null,null,null,null,null,null,null,null,null,null,null,null,null,null,null,null,null,null,"372 - IRAN - REPUBLICA ISLAMICA DEL"]
[null,null,null,null,null,"C1701 - Fabricación de pulpas (pastas) celulósicas; papel y cartón",null,null,null,null,null,null,null,null,null,null,null,null,null,"05670 - SAN ROQUE-ANTIOQUIA",null,null,null,null,null,null,null,null,null,null,null,null,"05670 - SAN ROQUE-ANTIOQUIA",null,null,null,null,null,null,null,null,null,"15761 - SOMONDOCO-BOYACA",null,null,null,null,null,null,null,null,null,null,null,null,null,null,null,"25807 - TIBIRITA-CUNDINAMARCA",null,null,null,null,null,null,null,null,null,null,null,null,null,null,null,null,null,null,null,null,null,null,null,null,null,null,null,null,null,null,null,null,null,null,null,null,null,null,null,"375 - IRLANDA (EIRE)"]
[null,null,null,null,null,"C1702 - Fabricación de papel y cartón ondulado (corrugado); fabricación de envases, empaques y de embalajes de papel y cartón",null,null,null,null,null,null,null,null,null,null,null,null,null,"05674 - SAN VICENTE-ANTIOQUIA",null,null,null,null,null,null,null,null,null,null,null,null,"05674 - SAN VICENTE-ANTIOQUIA",null,null,null,null,null,null,null,null,null,"15762 - SORA-BOYACA",null,null,null,null,null,null,null,null,null,null,null,null,null,null,null,"25815 - TOCAIMA-CUNDINAMARCA",null,null,null,null,null,null,null,null,null,null,null,null,null,null,null,null,null,null,null,null,null,null,null,null,null,null,null,null,null,null,null,null,null,null,null,null,null,null,null,"379 - ISLANDIA"]
[null,null,null,null,null,"C1709 - Fabricación de otros artículos de papel y cartón",null,null,null,null,null,null,null,null,null,null,null,null,null,"05679 - SANTA BARBARA-ANTIOQUIA",null,null,null,null,null,null,null,null,null,null,null,null,"05679 - SANTA BARBARA-ANTIOQUIA",null,null,null,null,null,null,null,null,null,"15763 - SOTAQUIRA-BOYACA",null,null,null,null,null,null,null,null,null,null,null,null,null,null,null,"25817 - TOCANCIPA-CUNDINAMARCA",null,null,null,null,null,null,null,null,null,null,null,null,null,null,null,null,null,null,null,null,null,null,null,null,null,null,null,null,null,null,null,null,null,null,null,null,null,null,null,"383 - ISRAEL"]
[null,null,null,null,null,"C1811 - Actividades de impresión",null,null,null,null,null,null,null,null,null,null,null,null,null,"05686 - SANTA ROSA DE OSOS-ANTIOQUIA",null,null,null,null,null,null,null,null,null,null,null,null,"05686 - SANTA ROSA DE OSOS-ANTIOQUIA",null,null,null,null,null,null,null,null,null,"15764 - SORACA-BOYACA",null,null,null,null,null,null,null,null,null,null,null,null,null,null,null,"25823 - TOPAIPI-CUNDINAMARCA",null,null,null,null,null,null,null,null,null,null,null,null,null,null,null,null,null,null,null,null,null,null,null,null,null,null,null,null,null,null,null,null,null,null,null,null,null,null,null,"386 - ITALIA"]
[null,null,null,null,null,"C1812 - Actividades de servicios relacionados con la impresión",null,null,null,null,null,null,null,null,null,null,null,null,null,"05690 - SANTO DOMINGO-ANTIOQUIA",null,null,null,null,null,null,null,null,null,null,null,null,"05690 - SANTO DOMINGO-ANTIOQUIA",null,null,null,null,null,null,null,null,null,"15774 - SUSACON-BOYACA",null,null,null,null,null,null,null,null,null,null,null,null,null,null,null,"25839 - UBALA-CUNDINAMARCA",null,null,null,null,null,null,null,null,null,null,null,null,null,null,null,null,null,null,null,null,null,null,null,null,null,null,null,null,null,null,null,null,null,null,null,null,null,null,null,"391 - JAMAICA"]
[null,null,null,null,null,"C1820 - Producción de copias a partir de grabaciones originales",null,null,null,null,null,null,null,null,null,null,null,null,null,"05697 - EL SANTUARIO-ANTIOQUIA",null,null,null,null,null,null,null,null,null,null,null,null,"05697 - EL SANTUARIO-ANTIOQUIA",null,null,null,null,null,null,null,null,null,"15776 - SUTAMARCHAN-BOYACA",null,null,null,null,null,null,null,null,null,null,null,null,null,null,null,"25841 - UBAQUE-CUNDINAMARCA",null,null,null,null,null,null,null,null,null,null,null,null,null,null,null,null,null,null,null,null,null,null,null,null,null,null,null,null,null,null,null,null,null,null,null,null,null,null,null,"399 - JAPON"]
[null,null,null,null,null,"C1910 - Fabricación de productos de hornos de coque",null,null,null,null,null,null,null,null,null,null,null,null,null,"05736 - SEGOVIA-ANTIOQUIA",null,null,null,null,null,null,null,null,null,null,null,null,"05736 - SEGOVIA-ANTIOQUIA",null,null,null,null,null,null,null,null,null,"15778 - SUTATENZA-BOYACA",null,null,null,null,null,null,null,null,null,null,null,null,null,null,null,"25843 - VILLA DE SAN DIEGO DE UBATE-CUNDINAMARCA",null,null,null,null,null,null,null,null,null,null,null,null,null,null,null,null,null,null,null,null,null,null,null,null,null,null,null,null,null,null,null,null,null,null,null,null,null,null,null,"403 - JORDANIA"]
[null,null,null,null,null,"C1921 - Fabricación de productos de la refinación del petróleo",null,null,null,null,null,null,null,null,null,null,null,null,null,"05756 - SONSON-ANTIOQUIA",null,null,null,null,null,null,null,null,null,null,null,null,"05756 - SONSON-ANTIOQUIA",null,null,null,null,null,null,null,null,null,"15790 - TASCO-BOYACA",null,null,null,null,null,null,null,null,null,null,null,null,null,null,null,"25845 - UNE-CUNDINAMARCA",null,null,null,null,null,null,null,null,null,null,null,null,null,null,null,null,null,null,null,null,null,null,null,null,null,null,null,null,null,null,null,null,null,null,null,null,null,null,null,"406 - KAZAJSTAN"]
[null,null,null,null,null,"C1922 - Actividad de mezcla de combustibles",null,null,null,null,null,null,null,null,null,null,null,null,null,"05761 - SOPETRAN-ANTIOQUIA",null,null,null,null,null,null,null,null,null,null,null,null,"05761 - SOPETRAN-ANTIOQUIA",null,null,null,null,null,null,null,null,null,"15798 - TENZA-BOYACA",null,null,null,null,null,null,null,null,null,null,null,null,null,null,null,"25851 - UTICA-CUNDINAMARCA",null,null,null,null,null,null,null,null,null,null,null,null,null,null,null,null,null,null,null,null,null,null,null,null,null,null,null,null,null,null,null,null,null,null,null,null,null,null,null,"410 - KENIA"]
[null,null,null,null,null,"C2011 - Fabricación de sustancias y productos químicos básicos",null,null,null,null,null,null,null,null,null,null,null,null,null,"05789 - TAMESIS-ANTIOQUIA",null,null,null,null,null,null,null,null,null,null,null,null,"05789 - TAMESIS-ANTIOQUIA",null,null,null,null,null,null,null,null,null,"15804 - TIBANA-BOYACA",null,null,null,null,null,null,null,null,null,null,null,null,null,null,null,"25862 - VERGARA-CUNDINAMARCA",null,null,null,null,null,null,null,null,null,null,null,null,null,null,null,null,null,null,null,null,null,null,null,null,null,null,null,null,null,null,null,null,null,null,null,null,null,null,null,"411 - KIRIBATI"]
[null,null,null,null,null,"C2012 - Fabricación de abonos y compuestos inorgánicos nitrogenados",null,null,null,null,null,null,null,null,null,null,null,null,null,"05790 - TARAZA-ANTIOQUIA",null,null,null,null,null,null,null,null,null,null,null,null,"05790 - TARAZA-ANTIOQUIA",null,null,null,null,null,null,null,null,null,"15806 - TIBASOSA-BOYACA",null,null,null,null,null,null,null,null,null,null,null,null,null,null,null,"25867 - VIANI-CUNDINAMARCA",null,null,null,null,null,null,null,null,null,null,null,null,null,null,null,null,null,null,null,null,null,null,null,null,null,null,null,null,null,null,null,null,null,null,null,null,null,null,null,"412 - KIRGUIZISTAN"]
[null,null,null,null,null,"C2013 - Fabricación de plásticos en formas primarias",null,null,null,null,null,null,null,null,null,null,null,null,null,"05792 - TARSO-ANTIOQUIA",null,null,null,null,null,null,null,null,null,null,null,null,"05792 - TARSO-ANTIOQUIA",null,null,null,null,null,null,null,null,null,"15808 - TINJACA-BOYACA",null,null,null,null,null,null,null,null,null,null,null,null,null,null,null,"25871 - VILLAGOMEZ-CUNDINAMARCA",null,null,null,null,null,null,null,null,null,null,null,null,null,null,null,null,null,null,null,null,null,null,null,null,null,null,null,null,null,null,null,null,null,null,null,null,null,null,null,"413 - KUWAIT"]
[null,null,null,null,null,"C2014 - Fabricación de caucho sintético en formas primarias",null,null,null,null,null,null,null,null,null,null,null,null,null,"05809 - TITIRIBI-ANTIOQUIA",null,null,null,null,null,null,null,null,null,null,null,null,"05809 - TITIRIBI-ANTIOQUIA",null,null,null,null,null,null,null,null,null,"15810 - TIPACOQUE-BOYACA",null,null,null,null,null,null,null,null,null,null,null,null,null,null,null,"25873 - VILLAPINZON-CUNDINAMARCA",null,null,null,null,null,null,null,null,null,null,null,null,null,null,null,null,null,null,null,null,null,null,null,null,null,null,null,null,null,null,null,null,null,null,null,null,null,null,null,"420 - LAOS - REPUBLICA POPULAR DEMOCRATICA DE"]
[null,null,null,null,null,"C2021 - Fabricación de plaguicidas y otros productos químicos de uso agropecuario",null,null,null,null,null,null,null,null,null,null,null,null,null,"05819 - TOLEDO-ANTIOQUIA",null,null,null,null,null,null,null,null,null,null,null,null,"05819 - TOLEDO-ANTIOQUIA",null,null,null,null,null,null,null,null,null,"15814 - TOCA-BOYACA",null,null,null,null,null,null,null,null,null,null,null,null,null,null,null,"25875 - VILLETA-CUNDINAMARCA",null,null,null,null,null,null,null,null,null,null,null,null,null,null,null,null,null,null,null,null,null,null,null,null,null,null,null,null,null,null,null,null,null,null,null,null,null,null,null,"426 - LESOTHO"]
[null,null,null,null,null,"C2022 - Fabricación de pinturas, barnices y revestimientos similares, tintas para impresión y masillas",null,null,null,null,null,null,null,null,null,null,null,null,null,"05837 - TURBO-ANTIOQUIA",null,null,null,null,null,null,null,null,null,null,null,null,"05837 - TURBO-ANTIOQUIA",null,null,null,null,null,null,null,null,null,"15816 - TOGÜI-BOYACA",null,null,null,null,null,null,null,null,null,null,null,null,null,null,null,"25878 - VIOTA-CUNDINAMARCA",null,null,null,null,null,null,null,null,null,null,null,null,null,null,null,null,null,null,null,null,null,null,null,null,null,null,null,null,null,null,null,null,null,null,null,null,null,null,null,"429 - LETONIA"]
[null,null,null,null,null,"C2023 - Fabricación de jabones y detergentes, preparados para limpiar y pulir; perfumes y preparados de tocador",null,null,null,null,null,null,null,null,null,null,null,null,null,"05842 - URAMITA-ANTIOQUIA",null,null,null,null,null,null,null,null,null,null,null,null,"05842 - URAMITA-ANTIOQUIA",null,null,null,null,null,null,null,null,null,"15820 - TOPAGA-BOYACA",null,null,null,null,null,null,null,null,null,null,null,null,null,null,null,"25885 - YACOPI-CUNDINAMARCA",null,null,null,null,null,null,null,null,null,null,null,null,null,null,null,null,null,null,null,null,null,null,null,null,null,null,null,null,null,null,null,null,null,null,null,null,null,null,null,"431 - LIBANO"]
[null,null,null,null,null,"C2029 - Fabricación de otros productos químicos n.c.p.",null,null,null,null,null,null,null,null,null,null,null,null,null,"05847 - URRAO-ANTIOQUIA",null,null,null,null,null,null,null,null,null,null,null,null,"05847 - URRAO-ANTIOQUIA",null,null,null,null,null,null,null,null,null,"15822 - TOTA-BOYACA",null,null,null,null,null,null,null,null,null,null,null,null,null,null,null,"25898 - ZIPACON-CUNDINAMARCA",null,null,null,null,null,null,null,null,null,null,null,null,null,null,null,null,null,null,null,null,null,null,null,null,null,null,null,null,null,null,null,null,null,null,null,null,null,null,null,"434 - LIBERIA"]
[null,null,null,null,null,"C2030 - Fabricación de fibras sintéticas y artificiales",null,null,null,null,null,null,null,null,null,null,null,null,null,"05854 - VALDIVIA-ANTIOQUIA",null,null,null,null,null,null,null,null,null,null,null,null,"05854 - VALDIVIA-ANTIOQUIA",null,null,null,null,null,null,null,null,null,"15832 - TUNUNGUA-BOYACA",null,null,null,null,null,null,null,null,null,null,null,null,null,null,null,"25899 - ZIPAQUIRA-CUNDINAMARCA",null,null,null,null,null,null,null,null,null,null,null,null,null,null,null,null,null,null,null,null,null,null,null,null,null,null,null,null,null,null,null,null,null,null,null,null,null,null,null,"438 - LIBIA (INCLUYE FEZZAN)"]
[null,null,null,null,null,"C2100 - Fabricación de productos farmacéuticos, sustancias químicas medicinales y productos botánicos de uso farmacéutico",null,null,null,null,null,null,null,null,null,null,null,null,null,"05856 - VALPARAISO-ANTIOQUIA",null,null,null,null,null,null,null,null,null,null,null,null,"05856 - VALPARAISO-ANTIOQUIA",null,null,null,null,null,null,null,null,null,"15835 - TURMEQUE-BOYACA",null,null,null,null,null,null,null,null,null,null,null,null,null,null,null,null,null,null,null,null,null,null,null,null,null,null,null,null,null,null,null,null,null,null,null,null,null,null,null,null,null,null,null,null,null,null,null,null,null,null,null,null,null,null,null,"440 - LIECHTENSTEIN"]
[null,null,null,null,null,"C2211 - Fabricación de llantas y neumáticos de caucho",null,null,null,null,null,null,null,null,null,null,null,null,null,"05858 - VEGACHI-ANTIOQUIA",null,null,null,null,null,null,null,null,null,null,null,null,"05858 - VEGACHI-ANTIOQUIA",null,null,null,null,null,null,null,null,null,"15837 - TUTA-BOYACA",null,null,null,null,null,null,null,null,null,null,null,null,null,null,null,null,null,null,null,null,null,null,null,null,null,null,null,null,null,null,null,null,null,null,null,null,null,null,null,null,null,null,null,null,null,null,null,null,null,null,null,null,null,null,null,"443 - LITUANIA"]
[null,null,null,null,null,"C2212 - Reencauche de llantas usadas",null,null,null,null,null,null,null,null,null,null,null,null,null,"05861 - VENECIA-ANTIOQUIA",null,null,null,null,null,null,null,null,null,null,null,null,"05861 - VENECIA-ANTIOQUIA",null,null,null,null,null,null,null,null,null,"15839 - TUTAZA-BOYACA",null,null,null,null,null,null,null,null,null,null,null,null,null,null,null,null,null,null,null,null,null,null,null,null,null,null,null,null,null,null,null,null,null,null,null,null,null,null,null,null,null,null,null,null,null,null,null,null,null,null,null,null,null,null,null,"445 - LUXEMBURGO"]
[null,null,null,null,null,"C2219 - Fabricación de formas básicas de caucho y otros productos de caucho n.c.p.",null,null,null,null,null,null,null,null,null,null,null,null,null,"05873 - VIGIA DEL FUERTE-ANTIOQUIA",null,null,null,null,null,null,null,null,null,null,null,null,"05873 - VIGIA DEL FUERTE-ANTIOQUIA",null,null,null,null,null,null,null,null,null,"15842 - UMBITA-BOYACA",null,null,null,null,null,null,null,null,null,null,null,null,null,null,null,null,null,null,null,null,null,null,null,null,null,null,null,null,null,null,null,null,null,null,null,null,null,null,null,null,null,null,null,null,null,null,null,null,null,null,null,null,null,null,null,"447 - MACAO"]
[null,null,null,null,null,"C2221 - Fabricación de formas básicas de plástico",null,null,null,null,null,null,null,null,null,null,null,null,null,"05885 - YALI-ANTIOQUIA",null,null,null,null,null,null,null,null,null,null,null,null,"05885 - YALI-ANTIOQUIA",null,null,null,null,null,null,null,null,null,"15861 - VENTAQUEMADA-BOYACA",null,null,null,null,null,null,null,null,null,null,null,null,null,null,null,null,null,null,null,null,null,null,null,null,null,null,null,null,null,null,null,null,null,null,null,null,null,null,null,null,null,null,null,null,null,null,null,null,null,null,null,null,null,null,null,"448 - MACEDONIA"]
[null,null,null,null,null,"C2229 - Fabricación de artículos de plástico n.c.p.",null,null,null,null,null,null,null,null,null,null,null,null,null,"05887 - YARUMAL-ANTIOQUIA",null,null,null,null,null,null,null,null,null,null,null,null,"05887 - YARUMAL-ANTIOQUIA",null,null,null,null,null,null,null,null,null,"15879 - VIRACACHA-BOYACA",null,null,null,null,null,null,null,null,null,null,null,null,null,null,null,null,null,null,null,null,null,null,null,null,null,null,null,null,null,null,null,null,null,null,null,null,null,null,null,null,null,null,null,null,null,null,null,null,null,null,null,null,null,null,null,"450 - MADAGASCAR"]
[null,null,null,null,null,"C2310 - Fabricación de vidrio y productos de vidrio",null,null,null,null,null,null,null,null,null,null,null,null,null,"05890 - YOLOMBO-ANTIOQUIA",null,null,null,null,null,null,null,null,null,null,null,null,"05890 - YOLOMBO-ANTIOQUIA",null,null,null,null,null,null,null,null,null,"15897 - ZETAQUIRA-BOYACA",null,null,null,null,null,null,null,null,null,null,null,null,null,null,null,null,null,null,null,null,null,null,null,null,null,null,null,null,null,null,null,null,null,null,null,null,null,null,null,null,null,null,null,null,null,null,null,null,null,null,null,null,null,null,null,"455 - MALAYSIA"]
[null,null,null,null,null,"C2391 - Fabricación de productos refractarios",null,null,null,null,null,null,null,null,null,null,null,null,null,"05893 - YONDO-ANTIOQUIA",null,null,null,null,null,null,null,null,null,null,null,null,"05893 - YONDO-ANTIOQUIA",null,null,null,null,null,null,null,null,null,null,null,null,null,null,null,null,null,null,null,null,null,null,null,null,null,null,null,null,null,null,null,null,null,null,null,null,null,null,null,null,null,null,null,null,null,null,null,null,null,null,null,null,null,null,null,null,null,null,null,null,null,null,null,null,null,"458 - MALAWI"]
[null,null,null,null,null,"C2392 - Fabricación de materiales de arcilla para la construcción",null,null,null,null,null,null,null,null,null,null,null,null,null,"05895 - ZARAGOZA-ANTIOQUIA",null,null,null,null,null,null,null,null,null,null,null,null,"05895 - ZARAGOZA-ANTIOQUIA",null,null,null,null,null,null,null,null,null,null,null,null,null,null,null,null,null,null,null,null,null,null,null,null,null,null,null,null,null,null,null,null,null,null,null,null,null,null,null,null,null,null,null,null,null,null,null,null,null,null,null,null,null,null,null,null,null,null,null,null,null,null,null,null,null,"461 - MALDIVAS"]
[null,null,null,null,null,"C2393 - Fabricación de otros productos de cerámica y porcelana",null,null,null,null,null,null,null,null,null,null,null,null,null,null,null,null,null,null,null,null,null,null,null,null,null,null,null,null,null,null,null,null,null,null,null,null,null,null,null,null,null,null,null,null,null,null,null,null,null,null,null,null,null,null,null,null,null,null,null,null,null,null,null,null,null,null,null,null,null,null,null,null,null,null,null,null,null,null,null,null,null,null,null,null,null,null,null,null,null,null,null,null,"464 - MALI"]
[null,null,null,null,null,"C2394 - Fabricación de cemento, cal y yeso",null,null,null,null,null,null,null,null,null,null,null,null,null,null,null,null,null,null,null,null,null,null,null,null,null,null,null,null,null,null,null,null,null,null,null,null,null,null,null,null,null,null,null,null,null,null,null,null,null,null,null,null,null,null,null,null,null,null,null,null,null,null,null,null,null,null,null,null,null,null,null,null,null,null,null,null,null,null,null,null,null,null,null,null,null,null,null,null,null,null,null,null,"467 - MALTA"]
[null,null,null,null,null,"C2395 - Fabricación de artículos de hormigón, cemento y yeso",null,null,null,null,null,null,null,null,null,null,null,null,null,null,null,null,null,null,null,null,null,null,null,null,null,null,null,null,null,null,null,null,null,null,null,null,null,null,null,null,null,null,null,null,null,null,null,null,null,null,null,null,null,null,null,null,null,null,null,null,null,null,null,null,null,null,null,null,null,null,null,null,null,null,null,null,null,null,null,null,null,null,null,null,null,null,null,null,null,null,null,null,"469 - MARIANAS DEL NORTE - ISLAS"]
[null,null,null,null,null,"C2396 - Corte, tallado y acabado de la piedra",null,null,null,null,null,null,null,null,null,null,null,null,null,null,null,null,null,null,null,null,null,null,null,null,null,null,null,null,null,null,null,null,null,null,null,null,null,null,null,null,null,null,null,null,null,null,null,null,null,null,null,null,null,null,null,null,null,null,null,null,null,null,null,null,null,null,null,null,null,null,null,null,null,null,null,null,null,null,null,null,null,null,null,null,null,null,null,null,null,null,null,null,"472 - MARSHALL - ISLAS"]
[null,null,null,null,null,"C2399 - Fabricación de otros productos minerales no metálicos n.c.p.",null,null,null,null,null,null,null,null,null,null,null,null,null,null,null,null,null,null,null,null,null,null,null,null,null,null,null,null,null,null,null,null,null,null,null,null,null,null,null,null,null,null,null,null,null,null,null,null,null,null,null,null,null,null,null,null,null,null,null,null,null,null,null,null,null,null,null,null,null,null,null,null,null,null,null,null,null,null,null,null,null,null,null,null,null,null,null,null,null,null,null,null,"474 - MARRUECOS"]
[null,null,null,null,null,"C2410 - Industrias básicas de hierro y de acero",null,null,null,null,null,null,null,null,null,null,null,null,null,null,null,null,null,null,null,null,null,null,null,null,null,null,null,null,null,null,null,null,null,null,null,null,null,null,null,null,null,null,null,null,null,null,null,null,null,null,null,null,null,null,null,null,null,null,null,null,null,null,null,null,null,null,null,null,null,null,null,null,null,null,null,null,null,null,null,null,null,null,null,null,null,null,null,null,null,null,null,null,"477 - MARTINICA"]
[null,null,null,null,null,"C2421 - Industrias básicas de metales preciosos",null,null,null,null,null,null,null,null,null,null,null,null,null,null,null,null,null,null,null,null,null,null,null,null,null,null,null,null,null,null,null,null,null,null,null,null,null,null,null,null,null,null,null,null,null,null,null,null,null,null,null,null,null,null,null,null,null,null,null,null,null,null,null,null,null,null,null,null,null,null,null,null,null,null,null,null,null,null,null,null,null,null,null,null,null,null,null,null,null,null,null,null,"485 - MAURICIO"]
[null,null,null,null,null,"C2429 - Industrias básicas de otros metales no ferrosos",null,null,null,null,null,null,null,null,null,null,null,null,null,null,null,null,null,null,null,null,null,null,null,null,null,null,null,null,null,null,null,null,null,null,null,null,null,null,null,null,null,null,null,null,null,null,null,null,null,null,null,null,null,null,null,null,null,null,null,null,null,null,null,null,null,null,null,null,null,null,null,null,null,null,null,null,null,null,null,null,null,null,null,null,null,null,null,null,null,null,null,null,"488 - MAURITANIA"]
[null,null,null,null,null,"C2431 - Fundición de hierro y de acero",null,null,null,null,null,null,null,null,null,null,null,null,null,null,null,null,null,null,null,null,null,null,null,null,null,null,null,null,null,null,null,null,null,null,null,null,null,null,null,null,null,null,null,null,null,null,null,null,null,null,null,null,null,null,null,null,null,null,null,null,null,null,null,null,null,null,null,null,null,null,null,null,null,null,null,null,null,null,null,null,null,null,null,null,null,null,null,null,null,null,null,null,"493 - MEXICO"]
[null,null,null,null,null,"C2432 - Fundición de metales no ferrosos",null,null,null,null,null,null,null,null,null,null,null,null,null,null,null,null,null,null,null,null,null,null,null,null,null,null,null,null,null,null,null,null,null,null,null,null,null,null,null,null,null,null,null,null,null,null,null,null,null,null,null,null,null,null,null,null,null,null,null,null,null,null,null,null,null,null,null,null,null,null,null,null,null,null,null,null,null,null,null,null,null,null,null,null,null,null,null,null,null,null,null,null,"494 - MICRONESIA - ESTADOS FEDERADOS DE"]
[null,null,null,null,null,"C2511 - Fabricación de productos metálicos para uso estructural",null,null,null,null,null,null,null,null,null,null,null,null,null,null,null,null,null,null,null,null,null,null,null,null,null,null,null,null,null,null,null,null,null,null,null,null,null,null,null,null,null,null,null,null,null,null,null,null,null,null,null,null,null,null,null,null,null,null,null,null,null,null,null,null,null,null,null,null,null,null,null,null,null,null,null,null,null,null,null,null,null,null,null,null,null,null,null,null,null,null,null,null,"496 - MOLDAVIA"]
[null,null,null,null,null,"C2512 - Fabricación de tanques, depósitos y recipientes de metal, excepto los utilizados para el envase o transporte de mercancías",null,null,null,null,null,null,null,null,null,null,null,null,null,null,null,null,null,null,null,null,null,null,null,null,null,null,null,null,null,null,null,null,null,null,null,null,null,null,null,null,null,null,null,null,null,null,null,null,null,null,null,null,null,null,null,null,null,null,null,null,null,null,null,null,null,null,null,null,null,null,null,null,null,null,null,null,null,null,null,null,null,null,null,null,null,null,null,null,null,null,null,null,"497 - MONGOLIA"]
[null,null,null,null,null,"C2513 - Fabricación de generadores de vapor, excepto calderas de agua caliente para calefacción central",null,null,null,null,null,null,null,null,null,null,null,null,null,null,null,null,null,null,null,null,null,null,null,null,null,null,null,null,null,null,null,null,null,null,null,null,null,null,null,null,null,null,null,null,null,null,null,null,null,null,null,null,null,null,null,null,null,null,null,null,null,null,null,null,null,null,null,null,null,null,null,null,null,null,null,null,null,null,null,null,null,null,null,null,null,null,null,null,null,null,null,null,"498 -MONACO"]
[null,null,null,null,null,"C2520 - Fabricación de armas y municiones",null,null,null,null,null,null,null,null,null,null,null,null,null,null,null,null,null,null,null,null,null,null,null,null,null,null,null,null,null,null,null,null,null,null,null,null,null,null,null,null,null,null,null,null,null,null,null,null,null,null,null,null,null,null,null,null,null,null,null,null,null,null,null,null,null,null,null,null,null,null,null,null,null,null,null,null,null,null,null,null,null,null,null,null,null,null,null,null,null,null,null,null,"501 - MONSERRAT - ISLA"]
[null,null,null,null,null,"C2591 - Forja, prensado, estampado y laminado de metal; pulvimetalurgia",null,null,null,null,null,null,null,null,null,null,null,null,null,null,null,null,null,null,null,null,null,null,null,null,null,null,null,null,null,null,null,null,null,null,null,null,null,null,null,null,null,null,null,null,null,null,null,null,null,null,null,null,null,null,null,null,null,null,null,null,null,null,null,null,null,null,null,null,null,null,null,null,null,null,null,null,null,null,null,null,null,null,null,null,null,null,null,null,null,null,null,null,"505 - MOZAMBIQUE"]
[null,null,null,null,null,"C2592 - Tratamiento y revestimiento de metales; mecanizado",null,null,null,null,null,null,null,null,null,null,null,null,null,null,null,null,null,null,null,null,null,null,null,null,null,null,null,null,null,null,null,null,null,null,null,null,null,null,null,null,null,null,null,null,null,null,null,null,null,null,null,null,null,null,null,null,null,null,null,null,null,null,null,null,null,null,null,null,null,null,null,null,null,null,null,null,null,null,null,null,null,null,null,null,null,null,null,null,null,null,null,null,"507- NAMIBIA"]
[null,null,null,null,null,"C2593 - Fabricación de artículos de cuchillería, herramientas de mano y artículos de ferretería",null,null,null,null,null,null,null,null,null,null,null,null,null,null,null,null,null,null,null,null,null,null,null,null,null,null,null,null,null,null,null,null,null,null,null,null,null,null,null,null,null,null,null,null,null,null,null,null,null,null,null,null,null,null,null,null,null,null,null,null,null,null,null,null,null,null,null,null,null,null,null,null,null,null,null,null,null,null,null,null,null,null,null,null,null,null,null,null,null,null,null,null,"508 - NAURU"]
[null,null,null,null,null,"C2599 - Fabricación de otros productos elaborados de metal n.c.p.",null,null,null,null,null,null,null,null,null,null,null,null,null,null,null,null,null,null,null,null,null,null,null,null,null,null,null,null,null,null,null,null,null,null,null,null,null,null,null,null,null,null,null,null,null,null,null,null,null,null,null,null,null,null,null,null,null,null,null,null,null,null,null,null,null,null,null,null,null,null,null,null,null,null,null,null,null,null,null,null,null,null,null,null,null,null,null,null,null,null,null,null,"511 - NAVIDAD (CHRISTMAS) - ISLAS"]
[null,null,null,null,null,"C2610 - Fabricación de componentes y tableros electrónicos",null,null,null,null,null,null,null,null,null,null,null,null,null,null,null,null,null,null,null,null,null,null,null,null,null,null,null,null,null,null,null,null,null,null,null,null,null,null,null,null,null,null,null,null,null,null,null,null,null,null,null,null,null,null,null,null,null,null,null,null,null,null,null,null,null,null,null,null,null,null,null,null,null,null,null,null,null,null,null,null,null,null,null,null,null,null,null,null,null,null,null,null,"517 - NEPAL"]
[null,null,null,null,null,"C2620 - Fabricación de computadoras y de equipo periférico",null,null,null,null,null,null,null,null,null,null,null,null,null,null,null,null,null,null,null,null,null,null,null,null,null,null,null,null,null,null,null,null,null,null,null,null,null,null,null,null,null,null,null,null,null,null,null,null,null,null,null,null,null,null,null,null,null,null,null,null,null,null,null,null,null,null,null,null,null,null,null,null,null,null,null,null,null,null,null,null,null,null,null,null,null,null,null,null,null,null,null,null,"521 - NICARAGUA"]
[null,null,null,null,null,"C2630 - Fabricación de equipos de comunicación",null,null,null,null,null,null,null,null,null,null,null,null,null,null,null,null,null,null,null,null,null,null,null,null,null,null,null,null,null,null,null,null,null,null,null,null,null,null,null,null,null,null,null,null,null,null,null,null,null,null,null,null,null,null,null,null,null,null,null,null,null,null,null,null,null,null,null,null,null,null,null,null,null,null,null,null,null,null,null,null,null,null,null,null,null,null,null,null,null,null,null,null,"525 - NIGER"]
[null,null,null,null,null,"C2640 - Fabricación de aparatos electrónicos de consumo",null,null,null,null,null,null,null,null,null,null,null,null,null,null,null,null,null,null,null,null,null,null,null,null,null,null,null,null,null,null,null,null,null,null,null,null,null,null,null,null,null,null,null,null,null,null,null,null,null,null,null,null,null,null,null,null,null,null,null,null,null,null,null,null,null,null,null,null,null,null,null,null,null,null,null,null,null,null,null,null,null,null,null,null,null,null,null,null,null,null,null,null,"528 - NIGERIA"]
[null,null,null,null,null,"C2651 - Fabricación de equipo de medición, prueba, navegación y control",null,null,null,null,null,null,null,null,null,null,null,null,null,null,null,null,null,null,null,null,null,null,null,null,null,null,null,null,null,null,null,null,null,null,null,null,null,null,null,null,null,null,null,null,null,null,null,null,null,null,null,null,null,null,null,null,null,null,null,null,null,null,null,null,null,null,null,null,null,null,null,null,null,null,null,null,null,null,null,null,null,null,null,null,null,null,null,null,null,null,null,null,"531 - NIUE - ISLA"]
[null,null,null,null,null,"C2652 - Fabricación de relojes",null,null,null,null,null,null,null,null,null,null,null,null,null,null,null,null,null,null,null,null,null,null,null,null,null,null,null,null,null,null,null,null,null,null,null,null,null,null,null,null,null,null,null,null,null,null,null,null,null,null,null,null,null,null,null,null,null,null,null,null,null,null,null,null,null,null,null,null,null,null,null,null,null,null,null,null,null,null,null,null,null,null,null,null,null,null,null,null,null,null,null,null,"535 - NORFOLK - ISLA"]
[null,null,null,null,null,"C2660 - Fabricación de equipo de irradiación y equipo electrónico de uso médico y terapéutico",null,null,null,null,null,null,null,null,null,null,null,null,null,null,null,null,null,null,null,null,null,null,null,null,null,null,null,null,null,null,null,null,null,null,null,null,null,null,null,null,null,null,null,null,null,null,null,null,null,null,null,null,null,null,null,null,null,null,null,null,null,null,null,null,null,null,null,null,null,null,null,null,null,null,null,null,null,null,null,null,null,null,null,null,null,null,null,null,null,null,null,null,"538 - NORUEGA"]
[null,null,null,null,null,"C2670 - Fabricación de instrumentos ópticos y equipo fotográfico",null,null,null,null,null,null,null,null,null,null,null,null,null,null,null,null,null,null,null,null,null,null,null,null,null,null,null,null,null,null,null,null,null,null,null,null,null,null,null,null,null,null,null,null,null,null,null,null,null,null,null,null,null,null,null,null,null,null,null,null,null,null,null,null,null,null,null,null,null,null,null,null,null,null,null,null,null,null,null,null,null,null,null,null,null,null,null,null,null,null,null,null,"542 - NUEVA CALEDONIA"]
[null,null,null,null,null,"C2680 - Fabricación de medios magnéticos y ópticos para almacenamiento de datos",null,null,null,null,null,null,null,null,null,null,null,null,null,null,null,null,null,null,null,null,null,null,null,null,null,null,null,null,null,null,null,null,null,null,null,null,null,null,null,null,null,null,null,null,null,null,null,null,null,null,null,null,null,null,null,null,null,null,null,null,null,null,null,null,null,null,null,null,null,null,null,null,null,null,null,null,null,null,null,null,null,null,null,null,null,null,null,null,null,null,null,null,"545 - PAPUASIA NUEVA GUINEA"]
[null,null,null,null,null,"C2711 - Fabricación de motores, generadores y transformadores eléctricos",null,null,null,null,null,null,null,null,null,null,null,null,null,null,null,null,null,null,null,null,null,null,null,null,null,null,null,null,null,null,null,null,null,null,null,null,null,null,null,null,null,null,null,null,null,null,null,null,null,null,null,null,null,null,null,null,null,null,null,null,null,null,null,null,null,null,null,null,null,null,null,null,null,null,null,null,null,null,null,null,null,null,null,null,null,null,null,null,null,null,null,null,"548 - NUEVA ZELANDIA"]
[null,null,null,null,null,"C2712 - Fabricación de aparatos de distribución y control de la energía eléctrica",null,null,null,null,null,null,null,null,null,null,null,null,null,null,null,null,null,null,null,null,null,null,null,null,null,null,null,null,null,null,null,null,null,null,null,null,null,null,null,null,null,null,null,null,null,null,null,null,null,null,null,null,null,null,null,null,null,null,null,null,null,null,null,null,null,null,null,null,null,null,null,null,null,null,null,null,null,null,null,null,null,null,null,null,null,null,null,null,null,null,null,null,"551 - VANUATU"]
[null,null,null,null,null,"C2720 - Fabricación de pilas, baterías y acumuladores eléctricos",null,null,null,null,null,null,null,null,null,null,null,null,null,null,null,null,null,null,null,null,null,null,null,null,null,null,null,null,null,null,null,null,null,null,null,null,null,null,null,null,null,null,null,null,null,null,null,null,null,null,null,null,null,null,null,null,null,null,null,null,null,null,null,null,null,null,null,null,null,null,null,null,null,null,null,null,null,null,null,null,null,null,null,null,null,null,null,null,null,null,null,null,"556 - OMAN"]
[null,null,null,null,null,"C2731 - Fabricación de hilos y cables eléctricos y de fibra óptica",null,null,null,null,null,null,null,null,null,null,null,null,null,null,null,null,null,null,null,null,null,null,null,null,null,null,null,null,null,null,null,null,null,null,null,null,null,null,null,null,null,null,null,null,null,null,null,null,null,null,null,null,null,null,null,null,null,null,null,null,null,null,null,null,null,null,null,null,null,null,null,null,null,null,null,null,null,null,null,null,null,null,null,null,null,null,null,null,null,null,null,null,"566 - PACIFICO - ISLAS (USA)"]
[null,null,null,null,null,"C2732 - Fabricación de dispositivos de cableado",null,null,null,null,null,null,null,null,null,null,null,null,null,null,null,null,null,null,null,null,null,null,null,null,null,null,null,null,null,null,null,null,null,null,null,null,null,null,null,null,null,null,null,null,null,null,null,null,null,null,null,null,null,null,null,null,null,null,null,null,null,null,null,null,null,null,null,null,null,null,null,null,null,null,null,null,null,null,null,null,null,null,null,null,null,null,null,null,null,null,null,null,"573 - PAISES BAJOS (HOLANDA)"]
[null,null,null,null,null,"C2740 - Fabricación de equipos eléctricos de iluminación",null,null,null,null,null,null,null,null,null,null,null,null,null,null,null,null,null,null,null,null,null,null,null,null,null,null,null,null,null,null,null,null,null,null,null,null,null,null,null,null,null,null,null,null,null,null,null,null,null,null,null,null,null,null,null,null,null,null,null,null,null,null,null,null,null,null,null,null,null,null,null,null,null,null,null,null,null,null,null,null,null,null,null,null,null,null,null,null,null,null,null,null,"576 - PAKISTAN"]
[null,null,null,null,null,"C2750 - Fabricación de aparatos de uso doméstico",null,null,null,null,null,null,null,null,null,null,null,null,null,null,null,null,null,null,null,null,null,null,null,null,null,null,null,null,null,null,null,null,null,null,null,null,null,null,null,null,null,null,null,null,null,null,null,null,null,null,null,null,null,null,null,null,null,null,null,null,null,null,null,null,null,null,null,null,null,null,null,null,null,null,null,null,null,null,null,null,null,null,null,null,null,null,null,null,null,null,null,null,"578 - PALAU - ISLAS"]
[null,null,null,null,null,"C2790 - Fabricación de otros tipos de equipo eléctrico n.c.p.",null,null,null,null,null,null,null,null,null,null,null,null,null,null,null,null,null,null,null,null,null,null,null,null,null,null,null,null,null,null,null,null,null,null,null,null,null,null,null,null,null,null,null,null,null,null,null,null,null,null,null,null,null,null,null,null,null,null,null,null,null,null,null,null,null,null,null,null,null,null,null,null,null,null,null,null,null,null,null,null,null,null,null,null,null,null,null,null,null,null,null,null,"580 - PANAMA"]
[null,null,null,null,null,"C2811 - Fabricación de motores, turbinas, y partes para motores de combustión interna",null,null,null,null,null,null,null,null,null,null,null,null,null,null,null,null,null,null,null,null,null,null,null,null,null,null,null,null,null,null,null,null,null,null,null,null,null,null,null,null,null,null,null,null,null,null,null,null,null,null,null,null,null,null,null,null,null,null,null,null,null,null,null,null,null,null,null,null,null,null,null,null,null,null,null,null,null,null,null,null,null,null,null,null,null,null,null,null,null,null,null,null,"586 - PARAGUAY"]
[null,null,null,null,null,"C2812 - Fabricación de equipos de potencia hidráulica y neumática",null,null,null,null,null,null,null,null,null,null,null,null,null,null,null,null,null,null,null,null,null,null,null,null,null,null,null,null,null,null,null,null,null,null,null,null,null,null,null,null,null,null,null,null,null,null,null,null,null,null,null,null,null,null,null,null,null,null,null,null,null,null,null,null,null,null,null,null,null,null,null,null,null,null,null,null,null,null,null,null,null,null,null,null,null,null,null,null,null,null,null,null,"589 - PERU"]
[null,null,null,null,null,"C2813 - Fabricación de otras bombas, compresores, grifos y válvulas",null,null,null,null,null,null,null,null,null,null,null,null,null,null,null,null,null,null,null,null,null,null,null,null,null,null,null,null,null,null,null,null,null,null,null,null,null,null,null,null,null,null,null,null,null,null,null,null,null,null,null,null,null,null,null,null,null,null,null,null,null,null,null,null,null,null,null,null,null,null,null,null,null,null,null,null,null,null,null,null,null,null,null,null,null,null,null,null,null,null,null,null,"593 - PITCAIRN - ISLA"]
[null,null,null,null,null,"C2814 - Fabricación de cojinetes, engranajes, trenes de engranajes y piezas de transmisión",null,null,null,null,null,null,null,null,null,null,null,null,null,null,null,null,null,null,null,null,null,null,null,null,null,null,null,null,null,null,null,null,null,null,null,null,null,null,null,null,null,null,null,null,null,null,null,null,null,null,null,null,null,null,null,null,null,null,null,null,null,null,null,null,null,null,null,null,null,null,null,null,null,null,null,null,null,null,null,null,null,null,null,null,null,null,null,null,null,null,null,null,"599 - POLINESIA FRANCESA"]
[null,null,null,null,null,"C2815 - Fabricación de hornos, hogares y quemadores industriales",null,null,null,null,null,null,null,null,null,null,null,null,null,null,null,null,null,null,null,null,null,null,null,null,null,null,null,null,null,null,null,null,null,null,null,null,null,null,null,null,null,null,null,null,null,null,null,null,null,null,null,null,null,null,null,null,null,null,null,null,null,null,null,null,null,null,null,null,null,null,null,null,null,null,null,null,null,null,null,null,null,null,null,null,null,null,null,null,null,null,null,null,"603 - POLONIA"]
[null,null,null,null,null,"C2816 - Fabricación de equipo de elevación y manipulación",null,null,null,null,null,null,null,null,null,null,null,null,null,null,null,null,null,null,null,null,null,null,null,null,null,null,null,null,null,null,null,null,null,null,null,null,null,null,null,null,null,null,null,null,null,null,null,null,null,null,null,null,null,null,null,null,null,null,null,null,null,null,null,null,null,null,null,null,null,null,null,null,null,null,null,null,null,null,null,null,null,null,null,null,null,null,null,null,null,null,null,null,"607 - PORTUGAL"]
[null,null,null,null,null,"C2817 - Fabricación de maquinaria y equipo de oficina (excepto computadoras y equipo periférico)",null,null,null,null,null,null,null,null,null,null,null,null,null,null,null,null,null,null,null,null,null,null,null,null,null,null,null,null,null,null,null,null,null,null,null,null,null,null,null,null,null,null,null,null,null,null,null,null,null,null,null,null,null,null,null,null,null,null,null,null,null,null,null,null,null,null,null,null,null,null,null,null,null,null,null,null,null,null,null,null,null,null,null,null,null,null,null,null,null,null,null,null,"611 - PUERTO RICO"]
[null,null,null,null,null,"C2818 - Fabricación de herramientas manuales con motor",null,null,null,null,null,null,null,null,null,null,null,null,null,null,null,null,null,null,null,null,null,null,null,null,null,null,null,null,null,null,null,null,null,null,null,null,null,null,null,null,null,null,null,null,null,null,null,null,null,null,null,null,null,null,null,null,null,null,null,null,null,null,null,null,null,null,null,null,null,null,null,null,null,null,null,null,null,null,null,null,null,null,null,null,null,null,null,null,null,null,null,null,"618 - QATAR"]
[null,null,null,null,null,"C2819 - Fabricación de otros tipos de maquinaria y equipo de uso general n.c.p.",null,null,null,null,null,null,null,null,null,null,null,null,null,null,null,null,null,null,null,null,null,null,null,null,null,null,null,null,null,null,null,null,null,null,null,null,null,null,null,null,null,null,null,null,null,null,null,null,null,null,null,null,null,null,null,null,null,null,null,null,null,null,null,null,null,null,null,null,null,null,null,null,null,null,null,null,null,null,null,null,null,null,null,null,null,null,null,null,null,null,null,null,"628 - REINO UNIDO"]
[null,null,null,null,null,"C2821 - Fabricación de maquinaria agropecuaria y forestal",null,null,null,null,null,null,null,null,null,null,null,null,null,null,null,null,null,null,null,null,null,null,null,null,null,null,null,null,null,null,null,null,null,null,null,null,null,null,null,null,null,null,null,null,null,null,null,null,null,null,null,null,null,null,null,null,null,null,null,null,null,null,null,null,null,null,null,null,null,null,null,null,null,null,null,null,null,null,null,null,null,null,null,null,null,null,null,null,null,null,null,null,"640 - REPUBLICA CENTROAFRICANA"]
[null,null,null,null,null,"C2822 - Fabricación de máquinas formadoras de metal y de máquinas herramienta",null,null,null,null,null,null,null,null,null,null,null,null,null,null,null,null,null,null,null,null,null,null,null,null,null,null,null,null,null,null,null,null,null,null,null,null,null,null,null,null,null,null,null,null,null,null,null,null,null,null,null,null,null,null,null,null,null,null,null,null,null,null,null,null,null,null,null,null,null,null,null,null,null,null,null,null,null,null,null,null,null,null,null,null,null,null,null,null,null,null,null,null,"644 - REPUBLICA CHECA"]
[null,null,null,null,null,"C2823 - Fabricación de maquinaria para la metalurgia",null,null,null,null,null,null,null,null,null,null,null,null,null,null,null,null,null,null,null,null,null,null,null,null,null,null,null,null,null,null,null,null,null,null,null,null,null,null,null,null,null,null,null,null,null,null,null,null,null,null,null,null,null,null,null,null,null,null,null,null,null,null,null,null,null,null,null,null,null,null,null,null,null,null,null,null,null,null,null,null,null,null,null,null,null,null,null,null,null,null,null,null,"647 - REPUBLICA DOMINICANA"]
[null,null,null,null,null,"C2824 - Fabricación de maquinaria para explotación de minas y canteras y para obras de construcción",null,null,null,null,null,null,null,null,null,null,null,null,null,null,null,null,null,null,null,null,null,null,null,null,null,null,null,null,null,null,null,null,null,null,null,null,null,null,null,null,null,null,null,null,null,null,null,null,null,null,null,null,null,null,null,null,null,null,null,null,null,null,null,null,null,null,null,null,null,null,null,null,null,null,null,null,null,null,null,null,null,null,null,null,null,null,null,null,null,null,null,null,"660 - REUNION"]
[null,null,null,null,null,"C2825 - Fabricación de maquinaria para la elaboración de alimentos, bebidas y tabaco",null,null,null,null,null,null,null,null,null,null,null,null,null,null,null,null,null,null,null,null,null,null,null,null,null,null,null,null,null,null,null,null,null,null,null,null,null,null,null,null,null,null,null,null,null,null,null,null,null,null,null,null,null,null,null,null,null,null,null,null,null,null,null,null,null,null,null,null,null,null,null,null,null,null,null,null,null,null,null,null,null,null,null,null,null,null,null,null,null,null,null,null,"665 - ZIMBABWE"]
[null,null,null,null,null,"C2826 - Fabricación de maquinaria para la elaboración de productos textiles, prendas de vestir y cueros",null,null,null,null,null,null,null,null,null,null,null,null,null,null,null,null,null,null,null,null,null,null,null,null,null,null,null,null,null,null,null,null,null,null,null,null,null,null,null,null,null,null,null,null,null,null,null,null,null,null,null,null,null,null,null,null,null,null,null,null,null,null,null,null,null,null,null,null,null,null,null,null,null,null,null,null,null,null,null,null,null,null,null,null,null,null,null,null,null,null,null,null,"670 - RUMANIA"]
[null,null,null,null,null,"C2829 - Fabricación de otros tipos de maquinaria y equipo de uso especial n.c.p.",null,null,null,null,null,null,null,null,null,null,null,null,null,null,null,null,null,null,null,null,null,null,null,null,null,null,null,null,null,null,null,null,null,null,null,null,null,null,null,null,null,null,null,null,null,null,null,null,null,null,null,null,null,null,null,null,null,null,null,null,null,null,null,null,null,null,null,null,null,null,null,null,null,null,null,null,null,null,null,null,null,null,null,null,null,null,null,null,null,null,null,null,"675 - RUANDA"]
[null,null,null,null,null,"C2910 - Fabricación de vehículos automotores y sus motores",null,null,null,null,null,null,null,null,null,null,null,null,null,null,null,null,null,null,null,null,null,null,null,null,null,null,null,null,null,null,null,null,null,null,null,null,null,null,null,null,null,null,null,null,null,null,null,null,null,null,null,null,null,null,null,null,null,null,null,null,null,null,null,null,null,null,null,null,null,null,null,null,null,null,null,null,null,null,null,null,null,null,null,null,null,null,null,null,null,null,null,null,"676 - RUSIA"]
[null,null,null,null,null,"C2920 - Fabricación de carrocerías para vehículos automotores; fabricación de remolques y semirremolques",null,null,null,null,null,null,null,null,null,null,null,null,null,null,null,null,null,null,null,null,null,null,null,null,null,null,null,null,null,null,null,null,null,null,null,null,null,null,null,null,null,null,null,null,null,null,null,null,null,null,null,null,null,null,null,null,null,null,null,null,null,null,null,null,null,null,null,null,null,null,null,null,null,null,null,null,null,null,null,null,null,null,null,null,null,null,null,null,null,null,null,null,"677 - SALOMON - ISLAS"]
[null,null,null,null,null,"C2930 - Fabricación de partes, piezas (autopartes) y accesorios (lujos) para vehículos automotores",null,null,null,null,null,null,null,null,null,null,null,null,null,null,null,null,null,null,null,null,null,null,null,null,null,null,null,null,null,null,null,null,null,null,null,null,null,null,null,null,null,null,null,null,null,null,null,null,null,null,null,null,null,null,null,null,null,null,null,null,null,null,null,null,null,null,null,null,null,null,null,null,null,null,null,null,null,null,null,null,null,null,null,null,null,null,null,null,null,null,null,null,"685 - SAHARA OCCIDENTAL"]
[null,null,null,null,null,"C3011 - Construcción de barcos y de estructuras flotantes",null,null,null,null,null,null,null,null,null,null,null,null,null,null,null,null,null,null,null,null,null,null,null,null,null,null,null,null,null,null,null,null,null,null,null,null,null,null,null,null,null,null,null,null,null,null,null,null,null,null,null,null,null,null,null,null,null,null,null,null,null,null,null,null,null,null,null,null,null,null,null,null,null,null,null,null,null,null,null,null,null,null,null,null,null,null,null,null,null,null,null,null,"687 - SAMOA"]
[null,null,null,null,null,"C3012 - Construcción de embarcaciones de recreo y deporte",null,null,null,null,null,null,null,null,null,null,null,null,null,null,null,null,null,null,null,null,null,null,null,null,null,null,null,null,null,null,null,null,null,null,null,null,null,null,null,null,null,null,null,null,null,null,null,null,null,null,null,null,null,null,null,null,null,null,null,null,null,null,null,null,null,null,null,null,null,null,null,null,null,null,null,null,null,null,null,null,null,null,null,null,null,null,null,null,null,null,null,null,"690 - SAMOA NORTEAMERICANA"]
[null,null,null,null,null,"C3020 - Fabricación de locomotoras y de material rodante para ferrocarriles",null,null,null,null,null,null,null,null,null,null,null,null,null,null,null,null,null,null,null,null,null,null,null,null,null,null,null,null,null,null,null,null,null,null,null,null,null,null,null,null,null,null,null,null,null,null,null,null,null,null,null,null,null,null,null,null,null,null,null,null,null,null,null,null,null,null,null,null,null,null,null,null,null,null,null,null,null,null,null,null,null,null,null,null,null,null,null,null,null,null,null,null,"695 - SAN CRISTOBAL Y NIEVES"]
[null,null,null,null,null,"C3030 - Fabricación de aeronaves, naves espaciales y de maquinaria conexa",null,null,null,null,null,null,null,null,null,null,null,null,null,null,null,null,null,null,null,null,null,null,null,null,null,null,null,null,null,null,null,null,null,null,null,null,null,null,null,null,null,null,null,null,null,null,null,null,null,null,null,null,null,null,null,null,null,null,null,null,null,null,null,null,null,null,null,null,null,null,null,null,null,null,null,null,null,null,null,null,null,null,null,null,null,null,null,null,null,null,null,null,"697 - SAN MARINO"]
[null,null,null,null,null,"C3040 - Fabricación de vehículos militares de combate",null,null,null,null,null,null,null,null,null,null,null,null,null,null,null,null,null,null,null,null,null,null,null,null,null,null,null,null,null,null,null,null,null,null,null,null,null,null,null,null,null,null,null,null,null,null,null,null,null,null,null,null,null,null,null,null,null,null,null,null,null,null,null,null,null,null,null,null,null,null,null,null,null,null,null,null,null,null,null,null,null,null,null,null,null,null,null,null,null,null,null,null,"700 - SAN PEDRO Y MIGUELON"]
[null,null,null,null,null,"C3091 - Fabricación de motocicletas",null,null,null,null,null,null,null,null,null,null,null,null,null,null,null,null,null,null,null,null,null,null,null,null,null,null,null,null,null,null,null,null,null,null,null,null,null,null,null,null,null,null,null,null,null,null,null,null,null,null,null,null,null,null,null,null,null,null,null,null,null,null,null,null,null,null,null,null,null,null,null,null,null,null,null,null,null,null,null,null,null,null,null,null,null,null,null,null,null,null,null,null,"705 - SAN VICENTE Y LAS GRANADINAS"]
[null,null,null,null,null,"C3092 - Fabricación de bicicletas y de sillas de ruedas para personas con discapacidad",null,null,null,null,null,null,null,null,null,null,null,null,null,null,null,null,null,null,null,null,null,null,null,null,null,null,null,null,null,null,null,null,null,null,null,null,null,null,null,null,null,null,null,null,null,null,null,null,null,null,null,null,null,null,null,null,null,null,null,null,null,null,null,null,null,null,null,null,null,null,null,null,null,null,null,null,null,null,null,null,null,null,null,null,null,null,null,null,null,null,null,null,"710 - SANTA ELENA"]
[null,null,null,null,null,"C3099 - Fabricación de otros tipos de equipo de transporte n.c.p.",null,null,null,null,null,null,null,null,null,null,null,null,null,null,null,null,null,null,null,null,null,null,null,null,null,null,null,null,null,null,null,null,null,null,null,null,null,null,null,null,null,null,null,null,null,null,null,null,null,null,null,null,null,null,null,null,null,null,null,null,null,null,null,null,null,null,null,null,null,null,null,null,null,null,null,null,null,null,null,null,null,null,null,null,null,null,null,null,null,null,null,null,"715 - SANTA LUCIA"]
[null,null,null,null,null,"C3110 - Fabricación de muebles",null,null,null,null,null,null,null,null,null,null,null,null,null,null,null,null,null,null,null,null,null,null,null,null,null,null,null,null,null,null,null,null,null,null,null,null,null,null,null,null,null,null,null,null,null,null,null,null,null,null,null,null,null,null,null,null,null,null,null,null,null,null,null,null,null,null,null,null,null,null,null,null,null,null,null,null,null,null,null,null,null,null,null,null,null,null,null,null,null,null,null,null,"720 - SANTO TOME Y PRINCIPE"]
[null,null,null,null,null,"C3120 - Fabricación de colchones y somieres",null,null,null,null,null,null,null,null,null,null,null,null,null,null,null,null,null,null,null,null,null,null,null,null,null,null,null,null,null,null,null,null,null,null,null,null,null,null,null,null,null,null,null,null,null,null,null,null,null,null,null,null,null,null,null,null,null,null,null,null,null,null,null,null,null,null,null,null,null,null,null,null,null,null,null,null,null,null,null,null,null,null,null,null,null,null,null,null,null,null,null,null,"728 - SENEGAL"]
[null,null,null,null,null,"C3210 - Fabricación de joyas, bisutería y artículos conexos",null,null,null,null,null,null,null,null,null,null,null,null,null,null,null,null,null,null,null,null,null,null,null,null,null,null,null,null,null,null,null,null,null,null,null,null,null,null,null,null,null,null,null,null,null,null,null,null,null,null,null,null,null,null,null,null,null,null,null,null,null,null,null,null,null,null,null,null,null,null,null,null,null,null,null,null,null,null,null,null,null,null,null,null,null,null,null,null,null,null,null,null,"731 - SEYCHELLES"]
[null,null,null,null,null,"C3220 - Fabricación de instrumentos musicales",null,null,null,null,null,null,null,null,null,null,null,null,null,null,null,null,null,null,null,null,null,null,null,null,null,null,null,null,null,null,null,null,null,null,null,null,null,null,null,null,null,null,null,null,null,null,null,null,null,null,null,null,null,null,null,null,null,null,null,null,null,null,null,null,null,null,null,null,null,null,null,null,null,null,null,null,null,null,null,null,null,null,null,null,null,null,null,null,null,null,null,null,"735 - SIERRA LEONA"]
[null,null,null,null,null,"C3230 - Fabricación de artículos y equipo para la práctica del deporte",null,null,null,null,null,null,null,null,null,null,null,null,null,null,null,null,null,null,null,null,null,null,null,null,null,null,null,null,null,null,null,null,null,null,null,null,null,null,null,null,null,null,null,null,null,null,null,null,null,null,null,null,null,null,null,null,null,null,null,null,null,null,null,null,null,null,null,null,null,null,null,null,null,null,null,null,null,null,null,null,null,null,null,null,null,null,null,null,null,null,null,null,"741- SINGAPUR"]
[null,null,null,null,null,"C3240 - Fabricación de juegos, juguetes y rompecabezas",null,null,null,null,null,null,null,null,null,null,null,null,null,null,null,null,null,null,null,null,null,null,null,null,null,null,null,null,null,null,null,null,null,null,null,null,null,null,null,null,null,null,null,null,null,null,null,null,null,null,null,null,null,null,null,null,null,null,null,null,null,null,null,null,null,null,null,null,null,null,null,null,null,null,null,null,null,null,null,null,null,null,null,null,null,null,null,null,null,null,null,null,"744 - SIRIA - REPUBLICA ARABE DE"]
[null,null,null,null,null,"C3250 - Fabricación de instrumentos, aparatos y materiales médicos y odontológicos (incluido mobiliario)",null,null,null,null,null,null,null,null,null,null,null,null,null,null,null,null,null,null,null,null,null,null,null,null,null,null,null,null,null,null,null,null,null,null,null,null,null,null,null,null,null,null,null,null,null,null,null,null,null,null,null,null,null,null,null,null,null,null,null,null,null,null,null,null,null,null,null,null,null,null,null,null,null,null,null,null,null,null,null,null,null,null,null,null,null,null,null,null,null,null,null,null,"748 - SOMALIA"]
[null,null,null,null,null,"C3290 - Otras industrias manufactureras n.c.p.",null,null,null,null,null,null,null,null,null,null,null,null,null,null,null,null,null,null,null,null,null,null,null,null,null,null,null,null,null,null,null,null,null,null,null,null,null,null,null,null,null,null,null,null,null,null,null,null,null,null,null,null,null,null,null,null,null,null,null,null,null,null,null,null,null,null,null,null,null,null,null,null,null,null,null,null,null,null,null,null,null,null,null,null,null,null,null,null,null,null,null,null,"750 - SRI LANKA"]
[null,null,null,null,null,"C3311 - Mantenimiento y reparación especializado de productos elaborados en metal",null,null,null,null,null,null,null,null,null,null,null,null,null,null,null,null,null,null,null,null,null,null,null,null,null,null,null,null,null,null,null,null,null,null,null,null,null,null,null,null,null,null,null,null,null,null,null,null,null,null,null,null,null,null,null,null,null,null,null,null,null,null,null,null,null,null,null,null,null,null,null,null,null,null,null,null,null,null,null,null,null,null,null,null,null,null,null,null,null,null,null,null,"756 - SUDAFRICA - REPUBLICA DE"]
[null,null,null,null,null,"C3312 - Mantenimiento y reparación especializado de maquinaria y equipo",null,null,null,null,null,null,null,null,null,null,null,null,null,null,null,null,null,null,null,null,null,null,null,null,null,null,null,null,null,null,null,null,null,null,null,null,null,null,null,null,null,null,null,null,null,null,null,null,null,null,null,null,null,null,null,null,null,null,null,null,null,null,null,null,null,null,null,null,null,null,null,null,null,null,null,null,null,null,null,null,null,null,null,null,null,null,null,null,null,null,null,null,"759 - SUDAN"]
[null,null,null,null,null,"C3313 - Mantenimiento y reparación especializado de equipo electrónico y óptico",null,null,null,null,null,null,null,null,null,null,null,null,null,null,null,null,null,null,null,null,null,null,null,null,null,null,null,null,null,null,null,null,null,null,null,null,null,null,null,null,null,null,null,null,null,null,null,null,null,null,null,null,null,null,null,null,null,null,null,null,null,null,null,null,null,null,null,null,null,null,null,null,null,null,null,null,null,null,null,null,null,null,null,null,null,null,null,null,null,null,null,null,"764 - SUECIA"]
[null,null,null,null,null,"C3314 - Mantenimiento y reparación especializado de equipo eléctrico",null,null,null,null,null,null,null,null,null,null,null,null,null,null,null,null,null,null,null,null,null,null,null,null,null,null,null,null,null,null,null,null,null,null,null,null,null,null,null,null,null,null,null,null,null,null,null,null,null,null,null,null,null,null,null,null,null,null,null,null,null,null,null,null,null,null,null,null,null,null,null,null,null,null,null,null,null,null,null,null,null,null,null,null,null,null,null,null,null,null,null,null,"767 - SUIZA"]
[null,null,null,null,null,"C3315 - Mantenimiento y reparación especializado de equipo de transporte, excepto los vehículos automotores, motocicletas y bicicletas",null,null,null,null,null,null,null,null,null,null,null,null,null,null,null,null,null,null,null,null,null,null,null,null,null,null,null,null,null,null,null,null,null,null,null,null,null,null,null,null,null,null,null,null,null,null,null,null,null,null,null,null,null,null,null,null,null,null,null,null,null,null,null,null,null,null,null,null,null,null,null,null,null,null,null,null,null,null,null,null,null,null,null,null,null,null,null,null,null,null,null,null,"770 - SURINAM"]
[null,null,null,null,null,"C3319 - Mantenimiento y reparación de otros tipos de equipos y sus componentes n.c.p.",null,null,null,null,null,null,null,null,null,null,null,null,null,null,null,null,null,null,null,null,null,null,null,null,null,null,null,null,null,null,null,null,null,null,null,null,null,null,null,null,null,null,null,null,null,null,null,null,null,null,null,null,null,null,null,null,null,null,null,null,null,null,null,null,null,null,null,null,null,null,null,null,null,null,null,null,null,null,null,null,null,null,null,null,null,null,null,null,null,null,null,null,"773 - SWAZILANDIA"]
[null,null,null,null,null,"C3320 - Instalación especializada de maquinaria y equipo industrial",null,null,null,null,null,null,null,null,null,null,null,null,null,null,null,null,null,null,null,null,null,null,null,null,null,null,null,null,null,null,null,null,null,null,null,null,null,null,null,null,null,null,null,null,null,null,null,null,null,null,null,null,null,null,null,null,null,null,null,null,null,null,null,null,null,null,null,null,null,null,null,null,null,null,null,null,null,null,null,null,null,null,null,null,null,null,null,null,null,null,null,null,"774 - TADJIKISTAN"]
[null,null,null,null,null,"D3511 - Generación de energía eléctrica",null,null,null,null,null,null,null,null,null,null,null,null,null,null,null,null,null,null,null,null,null,null,null,null,null,null,null,null,null,null,null,null,null,null,null,null,null,null,null,null,null,null,null,null,null,null,null,null,null,null,null,null,null,null,null,null,null,null,null,null,null,null,null,null,null,null,null,null,null,null,null,null,null,null,null,null,null,null,null,null,null,null,null,null,null,null,null,null,null,null,null,null,"776 - TAILANDIA"]
[null,null,null,null,null,"D3512 - Transmisión de energía eléctrica",null,null,null,null,null,null,null,null,null,null,null,null,null,null,null,null,null,null,null,null,null,null,null,null,null,null,null,null,null,null,null,null,null,null,null,null,null,null,null,null,null,null,null,null,null,null,null,null,null,null,null,null,null,null,null,null,null,null,null,null,null,null,null,null,null,null,null,null,null,null,null,null,null,null,null,null,null,null,null,null,null,null,null,null,null,null,null,null,null,null,null,null,"780 - TANZANIA - REPUBLICA UNIDA DE"]
[null,null,null,null,null,"D3513 - Distribución de energía eléctrica",null,null,null,null,null,null,null,null,null,null,null,null,null,null,null,null,null,null,null,null,null,null,null,null,null,null,null,null,null,null,null,null,null,null,null,null,null,null,null,null,null,null,null,null,null,null,null,null,null,null,null,null,null,null,null,null,null,null,null,null,null,null,null,null,null,null,null,null,null,null,null,null,null,null,null,null,null,null,null,null,null,null,null,null,null,null,null,null,null,null,null,null,"783- DJIBOUTI"]
[null,null,null,null,null,"D3514 - Comercialización de energía eléctrica",null,null,null,null,null,null,null,null,null,null,null,null,null,null,null,null,null,null,null,null,null,null,null,null,null,null,null,null,null,null,null,null,null,null,null,null,null,null,null,null,null,null,null,null,null,null,null,null,null,null,null,null,null,null,null,null,null,null,null,null,null,null,null,null,null,null,null,null,null,null,null,null,null,null,null,null,null,null,null,null,null,null,null,null,null,null,null,null,null,null,null,null,"787 - TERRITORIO BRITANICO DEL OCEANO INDICO"]
[null,null,null,null,null,"D3520 - Producción de gas; distribución de combustibles gaseosos por tuberías",null,null,null,null,null,null,null,null,null,null,null,null,null,null,null,null,null,null,null,null,null,null,null,null,null,null,null,null,null,null,null,null,null,null,null,null,null,null,null,null,null,null,null,null,null,null,null,null,null,null,null,null,null,null,null,null,null,null,null,null,null,null,null,null,null,null,null,null,null,null,null,null,null,null,null,null,null,null,null,null,null,null,null,null,null,null,null,null,null,null,null,null,"788 - TIMOR DEL ESTE"]
[null,null,null,null,null,"D3530 - Suministro de vapor y aire acondicionado",null,null,null,null,null,null,null,null,null,null,null,null,null,null,null,null,null,null,null,null,null,null,null,null,null,null,null,null,null,null,null,null,null,null,null,null,null,null,null,null,null,null,null,null,null,null,null,null,null,null,null,null,null,null,null,null,null,null,null,null,null,null,null,null,null,null,null,null,null,null,null,null,null,null,null,null,null,null,null,null,null,null,null,null,null,null,null,null,null,null,null,null,"800 - TOGO"]
[null,null,null,null,null,"E3600 - Captación, tratamiento y distribución de agua",null,null,null,null,null,null,null,null,null,null,null,null,null,null,null,null,null,null,null,null,null,null,null,null,null,null,null,null,null,null,null,null,null,null,null,null,null,null,null,null,null,null,null,null,null,null,null,null,null,null,null,null,null,null,null,null,null,null,null,null,null,null,null,null,null,null,null,null,null,null,null,null,null,null,null,null,null,null,null,null,null,null,null,null,null,null,null,null,null,null,null,null,"805 - TOKELAU"]
[null,null,null,null,null,"E3700 - Evacuación y tratamiento de aguas residuales",null,null,null,null,null,null,null,null,null,null,null,null,null,null,null,null,null,null,null,null,null,null,null,null,null,null,null,null,null,null,null,null,null,null,null,null,null,null,null,null,null,null,null,null,null,null,null,null,null,null,null,null,null,null,null,null,null,null,null,null,null,null,null,null,null,null,null,null,null,null,null,null,null,null,null,null,null,null,null,null,null,null,null,null,null,null,null,null,null,null,null,null,"810 - TONGA"]
[null,null,null,null,null,"E3811 - Recolección de desechos no peligrosos",null,null,null,null,null,null,null,null,null,null,null,null,null,null,null,null,null,null,null,null,null,null,null,null,null,null,null,null,null,null,null,null,null,null,null,null,null,null,null,null,null,null,null,null,null,null,null,null,null,null,null,null,null,null,null,null,null,null,null,null,null,null,null,null,null,null,null,null,null,null,null,null,null,null,null,null,null,null,null,null,null,null,null,null,null,null,null,null,null,null,null,null,"815 - TRINIDAD Y TOBAGO"]
[null,null,null,null,null,"E3812 - Recolección de desechos peligrosos",null,null,null,null,null,null,null,null,null,null,null,null,null,null,null,null,null,null,null,null,null,null,null,null,null,null,null,null,null,null,null,null,null,null,null,null,null,null,null,null,null,null,null,null,null,null,null,null,null,null,null,null,null,null,null,null,null,null,null,null,null,null,null,null,null,null,null,null,null,null,null,null,null,null,null,null,null,null,null,null,null,null,null,null,null,null,null,null,null,null,null,null,"820 - TUNICIA"]
[null,null,null,null,null,"E3821 - Tratamiento y disposición de desechos no peligrosos",null,null,null,null,null,null,null,null,null,null,null,null,null,null,null,null,null,null,null,null,null,null,null,null,null,null,null,null,null,null,null,null,null,null,null,null,null,null,null,null,null,null,null,null,null,null,null,null,null,null,null,null,null,null,null,null,null,null,null,null,null,null,null,null,null,null,null,null,null,null,null,null,null,null,null,null,null,null,null,null,null,null,null,null,null,null,null,null,null,null,null,null,"823 - TURCAS Y CAICOS - ISLAS"]
[null,null,null,null,null,"E3822 - Tratamiento y disposición de desechos peligrosos",null,null,null,null,null,null,null,null,null,null,null,null,null,null,null,null,null,null,null,null,null,null,null,null,null,null,null,null,null,null,null,null,null,null,null,null,null,null,null,null,null,null,null,null,null,null,null,null,null,null,null,null,null,null,null,null,null,null,null,null,null,null,null,null,null,null,null,null,null,null,null,null,null,null,null,null,null,null,null,null,null,null,null,null,null,null,null,null,null,null,null,null,"825 - TURKMENISTAN"]
[null,null,null,null,null,"E3830 - Recuperación de materiales",null,null,null,null,null,null,null,null,null,null,null,null,null,null,null,null,null,null,null,null,null,null,null,null,null,null,null,null,null,null,null,null,null,null,null,null,null,null,null,null,null,null,null,null,null,null,null,null,null,null,null,null,null,null,null,null,null,null,null,null,null,null,null,null,null,null,null,null,null,null,null,null,null,null,null,null,null,null,null,null,null,null,null,null,null,null,null,null,null,null,null,null,"827 - TURQUIA"]
[null,null,null,null,null,"E3900 - Actividades de saneamiento ambiental y otros servicios de gestión de desechos",null,null,null,null,null,null,null,null,null,null,null,null,null,null,null,null,null,null,null,null,null,null,null,null,null,null,null,null,null,null,null,null,null,null,null,null,null,null,null,null,null,null,null,null,null,null,null,null,null,null,null,null,null,null,null,null,null,null,null,null,null,null,null,null,null,null,null,null,null,null,null,null,null,null,null,null,null,null,null,null,null,null,null,null,null,null,null,null,null,null,null,null,"828 - TUVALU"]
[null,null,null,null,null,"F4111 - Construcción de edificios residenciales",null,null,null,null,null,null,null,null,null,null,null,null,null,null,null,null,null,null,null,null,null,null,null,null,null,null,null,null,null,null,null,null,null,null,null,null,null,null,null,null,null,null,null,null,null,null,null,null,null,null,null,null,null,null,null,null,null,null,null,null,null,null,null,null,null,null,null,null,null,null,null,null,null,null,null,null,null,null,null,null,null,null,null,null,null,null,null,null,null,null,null,null,"830 - UCRANIA"]
[null,null,null,null,null,"F4112 - Construcción de edificios no residenciales",null,null,null,null,null,null,null,null,null,null,null,null,null,null,null,null,null,null,null,null,null,null,null,null,null,null,null,null,null,null,null,null,null,null,null,null,null,null,null,null,null,null,null,null,null,null,null,null,null,null,null,null,null,null,null,null,null,null,null,null,null,null,null,null,null,null,null,null,null,null,null,null,null,null,null,null,null,null,null,null,null,null,null,null,null,null,null,null,null,null,null,null,"833 - UGANDA"]
[null,null,null,null,null,"F4210 - Construcción de carreteras y vías de ferrocarril",null,null,null,null,null,null,null,null,null,null,null,null,null,null,null,null,null,null,null,null,null,null,null,null,null,null,null,null,null,null,null,null,null,null,null,null,null,null,null,null,null,null,null,null,null,null,null,null,null,null,null,null,null,null,null,null,null,null,null,null,null,null,null,null,null,null,null,null,null,null,null,null,null,null,null,null,null,null,null,null,null,null,null,null,null,null,null,null,null,null,null,null,"845 - URUGUAY"]
[null,null,null,null,null,"F4220 - Construcción de proyectos de servicio público",null,null,null,null,null,null,null,null,null,null,null,null,null,null,null,null,null,null,null,null,null,null,null,null,null,null,null,null,null,null,null,null,null,null,null,null,null,null,null,null,null,null,null,null,null,null,null,null,null,null,null,null,null,null,null,null,null,null,null,null,null,null,null,null,null,null,null,null,null,null,null,null,null,null,null,null,null,null,null,null,null,null,null,null,null,null,null,null,null,null,null,null,"847 - UZBEKISTAN"]
[null,null,null,null,null,"F4290 - Construcción de otras obras de ingeniería civil",null,null,null,null,null,null,null,null,null,null,null,null,null,null,null,null,null,null,null,null,null,null,null,null,null,null,null,null,null,null,null,null,null,null,null,null,null,null,null,null,null,null,null,null,null,null,null,null,null,null,null,null,null,null,null,null,null,null,null,null,null,null,null,null,null,null,null,null,null,null,null,null,null,null,null,null,null,null,null,null,null,null,null,null,null,null,null,null,null,null,null,null,"850 - VENEZUELA"]
[null,null,null,null,null,"F4311 - Demolición",null,null,null,null,null,null,null,null,null,null,null,null,null,null,null,null,null,null,null,null,null,null,null,null,null,null,null,null,null,null,null,null,null,null,null,null,null,null,null,null,null,null,null,null,null,null,null,null,null,null,null,null,null,null,null,null,null,null,null,null,null,null,null,null,null,null,null,null,null,null,null,null,null,null,null,null,null,null,null,null,null,null,null,null,null,null,null,null,null,null,null,null,"855 - VIET NAM"]
[null,null,null,null,null,"F4312 - Preparación del terreno",null,null,null,null,null,null,null,null,null,null,null,null,null,null,null,null,null,null,null,null,null,null,null,null,null,null,null,null,null,null,null,null,null,null,null,null,null,null,null,null,null,null,null,null,null,null,null,null,null,null,null,null,null,null,null,null,null,null,null,null,null,null,null,null,null,null,null,null,null,null,null,null,null,null,null,null,null,null,null,null,null,null,null,null,null,null,null,null,null,null,null,null,"863 - VIRGENES - ISLAS (BRITANICAS)"]
[null,null,null,null,null,"F4321 - Instalaciones eléctricas",null,null,null,null,null,null,null,null,null,null,null,null,null,null,null,null,null,null,null,null,null,null,null,null,null,null,null,null,null,null,null,null,null,null,null,null,null,null,null,null,null,null,null,null,null,null,null,null,null,null,null,null,null,null,null,null,null,null,null,null,null,null,null,null,null,null,null,null,null,null,null,null,null,null,null,null,null,null,null,null,null,null,null,null,null,null,null,null,null,null,null,null,"866 - VIRGENES - ISLAS (NORTEAMERICANAS)"]
[null,null,null,null,null,"F4322 - Instalaciones de fontanería, calefacción y aire acondicionado",null,null,null,null,null,null,null,null,null,null,null,null,null,null,null,null,null,null,null,null,null,null,null,null,null,null,null,null,null,null,null,null,null,null,null,null,null,null,null,null,null,null,null,null,null,null,null,null,null,null,null,null,null,null,null,null,null,null,null,null,null,null,null,null,null,null,null,null,null,null,null,null,null,null,null,null,null,null,null,null,null,null,null,null,null,null,null,null,null,null,null,null,"870 - FIJI"]
[null,null,null,null,null,"F4329 - Otras instalaciones especializadas",null,null,null,null,null,null,null,null,null,null,null,null,null,null,null,null,null,null,null,null,null,null,null,null,null,null,null,null,null,null,null,null,null,null,null,null,null,null,null,null,null,null,null,null,null,null,null,null,null,null,null,null,null,null,null,null,null,null,null,null,null,null,null,null,null,null,null,null,null,null,null,null,null,null,null,null,null,null,null,null,null,null,null,null,null,null,null,null,null,null,null,null,"875 - WALLIS Y FORTUNA - ISLAS"]
[null,null,null,null,null,"F4330 - Terminación y acabado de edificios y obras de ingeniería civil",null,null,null,null,null,null,null,null,null,null,null,null,null,null,null,null,null,null,null,null,null,null,null,null,null,null,null,null,null,null,null,null,null,null,null,null,null,null,null,null,null,null,null,null,null,null,null,null,null,null,null,null,null,null,null,null,null,null,null,null,null,null,null,null,null,null,null,null,null,null,null,null,null,null,null,null,null,null,null,null,null,null,null,null,null,null,null,null,null,null,null,null,"880 - YEMEN"]
[null,null,null,null,null,"F4390 - Otras actividades especializadas para la construcción de edificios y obras de ingeniería civil",null,null,null,null,null,null,null,null,null,null,null,null,null,null,null,null,null,null,null,null,null,null,null,null,null,null,null,null,null,null,null,null,null,null,null,null,null,null,null,null,null,null,null,null,null,null,null,null,null,null,null,null,null,null,null,null,null,null,null,null,null,null,null,null,null,null,null,null,null,null,null,null,null,null,null,null,null,null,null,null,null,null,null,null,null,null,null,null,null,null,null,null,"885 - YUGOSLAVIA"]
[null,null,null,null,null,"G4511 - Comercio de vehículos automotores nuevos",null,null,null,null,null,null,null,null,null,null,null,null,null,null,null,null,null,null,null,null,null,null,null,null,null,null,null,null,null,null,null,null,null,null,null,null,null,null,null,null,null,null,null,null,null,null,null,null,null,null,null,null,null,null,null,null,null,null,null,null,null,null,null,null,null,null,null,null,null,null,null,null,null,null,null,null,null,null,null,null,null,null,null,null,null,null,null,null,null,null,null,null,"888 - ZAIRE"]
[null,null,null,null,null,"G4512 - Comercio de vehículos automotores usados",null,null,null,null,null,null,null,null,null,null,null,null,null,null,null,null,null,null,null,null,null,null,null,null,null,null,null,null,null,null,null,null,null,null,null,null,null,null,null,null,null,null,null,null,null,null,null,null,null,null,null,null,null,null,null,null,null,null,null,null,null,null,null,null,null,null,null,null,null,null,null,null,null,null,null,null,null,null,null,null,null,null,null,null,null,null,null,null,null,null,null,null,"890 - ZAMBIA"]
[null,null,null,null,null,"G4520 - Mantenimiento y reparación de vehículos automotores",null,null,null,null,null,null,null,null,null,null,null,null,null,null,null,null,null,null,null,null,null,null,null,null,null,null,null,null,null,null,null,null,null,null,null,null,null,null,null,null,null,null,null,null,null,null,null,null,null,null,null,null,null,null,null,null,null,null,null,null,null,null,null,null,null,null,null,null,null,null,null,null,null,null,null,null,null,null,null,null,null,null,null,null,null,null,null,null,null,null,null,null,"897 - ZONA NEUTRAL PALESTINA"]
[null,null,null,null,null,"G4530 - Comercio de partes, piezas (autopartes) y accesorios (lujos) para vehículos automotores"]
[null,null,null,null,null,"G4541 - Comercio de motocicletas y de sus partes, piezas y accesorios"]
[null,null,null,null,null,"G4542 - Mantenimiento y reparación de motocicletas y de sus partes y piezas"]
[null,null,null,null,null,"G4610 - Comercio al por mayor a cambio de una retribución o por contrata"]
[null,null,null,null,null,"G4620 - Comercio al por mayor de materias primas agropecuarias; animales vivos"]
[null,null,null,null,null,"G4631 - Comercio al por mayor de productos alimenticios"]
[null,null,null,null,null,"G4632 - Comercio al por mayor de bebidas y tabaco"]
[null,null,null,null,null,"G4641 - Comercio al por mayor de productos textiles, productos confeccionados para uso doméstico"]
[null,null,null,null,null,"G4642 - Comercio al por mayor de prendas de vestir"]
[null,null,null,null,null,"G4643 - Comercio al por mayor de calzado"]
[null,null,null,null,null,"G4644 - Comercio al por mayor de aparatos y equipo de uso doméstico"]
[null,null,null,null,null,"G4645 - Comercio al por mayor de productos farmacéuticos, medicinales, cosméticos y de tocador"]
[null,null,null,null,null,"G4649 - Comercio al por mayor de otros utensilios domésticos n.c.p."]
[null,null,null,null,null,"G4651 - Comercio al por mayor de computadores, equipo periférico y programas de informática"]
[null,null,null,null,null,"G4652 - Comercio al por mayor de equipo, partes y piezas electrónicos y de telecomunicaciones"]
[null,null,null,null,null,"G4653 - Comercio al por mayor de maquinaria y equipo agropecuarios"]
[null,null,null,null,null,"G4659 - Comercio al por mayor de otros tipos de maquinaria y equipo n.c.p."]
[null,null,null,null,null,"G4661 - Comercio al por mayor de combustibles sólidos, líquidos, gaseosos y productos conexos"]
[null,null,null,null,null,"G4662 - Comercio al por mayor de metales y productos metalíferos"]
[null,null,null,null,null,"G4663 - Comercio al por mayor de materiales de construcción, artículos de ferretería, pinturas, productos de vidrio, equipo y materiales de fontanería y calefacción"]
[null,null,null,null,null,"G4664 - Comercio al por mayor de productos químicos básicos, cauchos y plásticos en formas primarias y productos químicos de uso agropecuario"]
[null,null,null,null,null,"G4665 - Comercio al por mayor de desperdicios, desechos y chatarra"]
[null,null,null,null,null,"G4669 - Comercio al por mayor de otros productos n.c.p."]
[null,null,null,null,null,"G4690 - Comercio al por mayor no especializado"]
[null,null,null,null,null,"G4711 - Comercio al por menor en establecimientos no especializados con surtido compuesto principalmente por alimentos, bebidas o tabaco"]
[null,null,null,null,null,"G4719 - Comercio al por menor en establecimientos no especializados, con surtido compuesto principalmente por productos diferentes de alimentos (víveres en general), bebidas y tabaco"]
[null,null,null,null,null,"G4721 - Comercio al por menor de productos agrícolas para el consumo en establecimientos especializados"]
[null,null,null,null,null,"G4722 - Comercio al por menor de leche, productos lácteos y huevos, en establecimientos especializados"]
[null,null,null,null,null,"G4723 - Comercio al por menor de carnes (incluye aves de corral), productos cárnicos, pescados y productos de mar, en establecimientos especializados"]
[null,null,null,null,null,"G4724 - Comercio al por menor de bebidas y productos del tabaco, en establecimientos especializados"]
[null,null,null,null,null,"G4729 - Comercio al por menor de otros productos alimenticios n.c.p., en establecimientos especializados"]
[null,null,null,null,null,"G4731 - Comercio al por menor de combustible para automotores"]
[null,null,null,null,null,"G4732 - Comercio al por menor de lubricantes (aceites, grasas), aditivos y productos de limpieza para vehículos automotores"]
[null,null,null,null,null,"G4741 - Comercio al por menor de computadores, equipos periféricos, programas de informática y equipos de telecomunicaciones en establecimientos especializados"]
[null,null,null,null,null,"G4742 - Comercio al por menor de equipos y aparatos de sonido y de video, en establecimientos especializados"]
[null,null,null,null,null,"G4751 - Comercio al por menor de productos textiles en establecimientos especializados"]
[null,null,null,null,null,"G4752 - Comercio al por menor de artículos de ferretería, pinturas y productos de vidrio en establecimientos especializados"]
[null,null,null,null,null,"G4753 - Comercio al por menor de tapices, alfombras y cubrimientos para paredes y pisos en establecimientos especializados"]
[null,null,null,null,null,"G4754 - Comercio al por menor de electrodomésticos y gasodomésticos de uso doméstico, muebles y equipos de iluminación"]
[null,null,null,null,null,"G4755 - Comercio al por menor de artículos y utensilios de uso doméstico"]
[null,null,null,null,null,"G4759 - Comercio al por menor de otros artículos domésticos en establecimientos especializados"]
[null,null,null,null,null,"G4761 - Comercio al por menor de libros, periódicos, materiales y artículos de papelería y escritorio, en establecimientos especializados"]
[null,null,null,null,null,"G4762 - Comercio al por menor de artículos deportivos, en establecimientos especializados"]
[null,null,null,null,null,"G4769 - Comercio al por menor de otros artículos culturales y de entretenimiento n.c.p. en establecimientos especializados"]
[null,null,null,null,null,"G4771 - Comercio al por menor de prendas de vestir y sus accesorios (incluye artículos de piel) en establecimientos especializados"]
[null,null,null,null,null,"G4772 - Comercio al por menor de todo tipo de calzado y artículos de cuero y sucedáneos del cuero en establecimientos especializados"]
[null,null,null,null,null,"G4773 - Comercio al por menor de productos farmacéuticos y medicinales, cosméticos y artículos de tocador en establecimientos especializados"]
[null,null,null,null,null,"G4774 - Comercio al por menor de otros productos nuevos en establecimientos especializados"]
[null,null,null,null,null,"G4775 - Comercio al por menor de artículos de segunda mano"]
[null,null,null,null,null,"G4781 - Comercio al por menor de alimentos, bebidas y tabaco, en puestos de venta móviles"]
[null,null,null,null,null,"G4782 - Comercio al por menor de productos textiles, prendas de vestir y calzado, en puestos de venta móviles"]
[null,null,null,null,null,"G4789 - Comercio al por menor de otros productos en puestos de venta móviles"]
[null,null,null,null,null,"G4791 - Comercio al por menor realizado a través de internet"]
[null,null,null,null,null,"G4792 - Comercio al por menor realizado a través de casas de venta o por correo"]
[null,null,null,null,null,"G4799 - Otros tipos de comercio al por menor no realizado en establecimientos, puestos de venta o mercados"]
[null,null,null,null,null,"H4911 - Transporte férreo de pasajeros"]
[null,null,null,null,null,"H4912 - Transporte férreo de carga"]
[null,null,null,null,null,"H4921 - Transporte de pasajeros"]
[null,null,null,null,null,"H4922 - Transporte mixto"]
[null,null,null,null,null,"H4923 - Transporte de carga por carretera"]
[null,null,null,null,null,"H4930 - Transporte por tuberías"]
[null,null,null,null,null,"H5011 - Transporte de pasajeros marítimo y de cabotaje"]
[null,null,null,null,null,"H5012 - Transporte de carga marítimo y de cabotaje"]
[null,null,null,null,null,"H5021 - Transporte fluvial de pasajeros"]
[null,null,null,null,null,"H5022 - Transporte fluvial de carga"]
[null,null,null,null,null,"H5111 - Transporte aéreo nacional de pasajeros"]
[null,null,null,null,null,"H5112 - Transporte aéreo internacional de pasajeros"]
[null,null,null,null,null,"H5121 - Transporte aéreo nacional de carga"]
[null,null,null,null,null,"H5122 - Transporte aéreo internacional de carga"]
[null,null,null,null,null,"H5210 - Almacenamiento y depósito"]
[null,null,null,null,null,"H5221 - Actividades de estaciones, vías y servicios complementarios para el transporte terrestre"]
[null,null,null,null,null,"H5222 - Actividades de puertos y servicios complementarios para el transporte acuático"]
[null,null,null,null,null,"H5223 - Actividades de aeropuertos, servicios de navegación aérea y demás actividades conexas al transporte aéreo"]
[null,null,null,null,null,"H5224 - Manipulación de carga"]
[null,null,null,null,null,"H5229 - Otras actividades complementarias al transporte"]
[null,null,null,null,null,"H5310 - Actividades postales nacionales"]
[null,null,null,null,null,"H5320 - Actividades de mensajería"]
[null,null,null,null,null,"I5511 - Alojamiento en hoteles"]
[null,null,null,null,null,"I5512 - Alojamiento en apartahoteles"]
[null,null,null,null,null,"I5513 - Alojamiento en centros vacacionales"]
[null,null,null,null,null,"I5514 - Alojamiento rural"]
[null,null,null,null,null,"I5519 - Otros tipos de alojamientos para visitantes"]
[null,null,null,null,null,"I5520 - Actividades de zonas de camping y parques para vehículos recreacionales"]
[null,null,null,null,null,"I5530 - Servicio por horas"]
[null,null,null,null,null,"I5590 - Otros tipos de alojamiento n.c.p."]
[null,null,null,null,null,"I5611 - Expendio a la mesa de comidas preparadas"]
[null,null,null,null,null,"I5612 - Expendio por autoservicio de comidas preparadas"]
[null,null,null,null,null,"I5613 - Expendio de comidas preparadas en cafeterías"]
[null,null,null,null,null,"I5619 - Otros tipos de expendio de comidas preparadas n.c.p."]
[null,null,null,null,null,"I5621 - Catering para eventos"]
[null,null,null,null,null,"I5629 - Actividades de otros servicios de comidas"]
[null,null,null,null,null,"I5630 - Expendio de bebidas alcohólicas para el consumo dentro del establecimiento"]
[null,null,null,null,null,"J5811 - Edición de libros"]
[null,null,null,null,null,"J5812 - Edición de directorios y listas de correo"]
[null,null,null,null,null,"J5813 - Edición de periódicos, revistas y otras publicaciones periódicas"]
[null,null,null,null,null,"J5819 - Otros trabajos de edición"]
[null,null,null,null,null,"J5820 - Edición de programas de informática (software)"]
[null,null,null,null,null,"J5911 - Actividades de producción de películas cinematográficas, videos, programas, anuncios y comerciales de televisión"]
[null,null,null,null,null,"J5912 - Actividades de posproducción de películas cinematográficas, videos, programas, anuncios y comerciales de televisión"]
[null,null,null,null,null,"J5913 - Actividades de distribución de películas cinematográficas, videos, programas, anuncios y comerciales de televisión"]
[null,null,null,null,null,"J5914 - Actividades de exhibición de películas cinematográficas y videos"]
[null,null,null,null,null,"J5920 - Actividades de grabación de sonido y edición de música"]
[null,null,null,null,null,"J6010 - Actividades de programación y transmisión en el servicio de radiodifusión sonora"]
[null,null,null,null,null,"J6020 - Actividades de programación y transmisión de televisión"]
[null,null,null,null,null,"J6110 - Actividades de telecomunicaciones alámbricas"]
[null,null,null,null,null,"J6120 - Actividades de telecomunicaciones inalámbricas"]
[null,null,null,null,null,"J6130 - Actividades de telecomunicación satelital"]
[null,null,null,null,null,"J6190 - Otras actividades de telecomunicaciones"]
[null,null,null,null,null,"J6201 - Actividades de desarrollo de sistemas informáticos (planificación, análisis, diseño, programación, pruebas)"]
[null,null,null,null,null,"J6202 - Actividades de consultoría informática y actividades de administración de instalaciones informáticas"]
[null,null,null,null,null,"J6209 - Otras actividades de tecnologías de información y actividades de servicios informáticos"]
[null,null,null,null,null,"J6311 - Procesamiento de datos, alojamiento (hosting) y actividades relacionadas"]
[null,null,null,null,null,"J6312 - Portales web"]
[null,null,null,null,null,"J6391 - Actividades de agencias de noticias"]
[null,null,null,null,null,"J6399 - Otras actividades de servicio de información n.c.p."]
[null,null,null,null,null,"K6411 - Banco Central"]
[null,null,null,null,null,"K6412 - Bancos comerciales"]
[null,null,null,null,null,"K6421 - Actividades de las corporaciones financieras"]
[null,null,null,null,null,"K6422 - Actividades de las compañías de financiamiento"]
[null,null,null,null,null,"K6423 - Banca de segundo piso"]
[null,null,null,null,null,"K6424 - Actividades de las cooperativas financieras"]
[null,null,null,null,null,"K6431 - Fideicomisos, fondos y entidades financieras similares"]
[null,null,null,null,null,"K6432 - Fondos de cesantías"]
[null,null,null,null,null,"K6491 - Leasing financiero (arrendamiento financiero)"]
[null,null,null,null,null,"K6492 - Actividades financieras de fondos de empleados y otras formas asociativas del sector solidario"]
[null,null,null,null,null,"K6493 - Actividades de compra de cartera o factoring"]
[null,null,null,null,null,"K6494 - Otras actividades de distribución de fondos"]
[null,null,null,null,null,"K6495 - Instituciones especiales oficiales"]
[null,null,null,null,null,"K6499 - Otras actividades de servicio financiero, excepto las de seguros y pensiones n.c.p."]
[null,null,null,null,null,"K6511 - Seguros generales"]
[null,null,null,null,null,"K6512 - Seguros de vida"]
[null,null,null,null,null,"K6513 - Reaseguros"]
[null,null,null,null,null,"K6514 - Capitalización"]
[null,null,null,null,null,"K6521 - Servicios de seguros sociales de salud"]
[null,null,null,null,null,"K6522 - Servicios de seguros sociales de riesgos profesionales"]
[null,null,null,null,null,"K6531 - Régimen de prima media con prestación definida (RPM)"]
[null,null,null,null,null,"K6532 - Régimen de ahorro individual (RAI)"]
[null,null,null,null,null,"K6611 - Administración de mercados financieros"]
[null,null,null,null,null,"K6612 - Corretaje de valores y de contratos de productos básicos"]
[null,null,null,null,null,"K6613 - Otras actividades relacionadas con el mercado de valores"]
[null,null,null,null,null,"K6614 - Actividades de las casas de cambio"]
[null,null,null,null,null,"K6615 - Actividades de los profesionales de compra y venta de divisas"]
[null,null,null,null,null,"K6619 - Otras actividades auxiliares de las actividades de servicios financieros n.c.p."]
[null,null,null,null,null,"K6621 - Actividades de agentes y corredores de seguros"]
[null,null,null,null,null,"K6629 - Evaluación de riesgos y daños, y otras actividades de servicios auxiliares"]
[null,null,null,null,null,"K6630 - Actividades de administración de fondos"]
[null,null,null,null,null,"L6810 - Actividades inmobiliarias realizadas con bienes propios o arrendados"]
[null,null,null,null,null,"L6820 - Actividades inmobiliarias realizadas a cambio de una retribución o por contrata"]
[null,null,null,null,null,"M6910 - Actividades jurídicas"]
[null,null,null,null,null,"M6920 - Actividades de contabilidad, teneduría de libros, auditoría financiera y asesoría tributaria"]
[null,null,null,null,null,"M7010 - Actividades de administración empresarial"]
[null,null,null,null,null,"M7020 - Actividades de consultaría de gestión"]
[null,null,null,null,null,"M7110 - Actividades de arquitectura e ingeniería y otras actividades conexas de consultoría técnica"]
[null,null,null,null,null,"M7120 - Ensayos y análisis técnicos"]
[null,null,null,null,null,"M7210 - Investigaciones y desarrollo experimental en el campo de las ciencias naturales y la ingeniería"]
[null,null,null,null,null,"M7220 - Investigaciones y desarrollo experimental en el campo de las ciencias sociales y las humanidades"]
[null,null,null,null,null,"M7310 - Publicidad"]
[null,null,null,null,null,"M7320 - Estudios de mercado y realización de encuestas de opinión pública"]
[null,null,null,null,null,"M7410 - Actividades especializadas de diseño"]
[null,null,null,null,null,"M7420 - Actividades de fotografía"]
[null,null,null,null,null,"M7490 - Otras actividades profesionales, científicas y técnicas n.c.p."]
[null,null,null,null,null,"M7500 - Actividades veterinarias"]
[null,null,null,null,null,"N7710 - Alquiler y arrendamiento de vehículos automotores"]
[null,null,null,null,null,"N7721 - Alquiler y arrendamiento de equipo recreativo y deportivo"]
[null,null,null,null,null,"N7722 - Alquiler de videos y discos"]
[null,null,null,null,null,"N7729 - Alquiler y arrendamiento de otros efectos personales y enseres domésticos n.c.p."]
[null,null,null,null,null,"N7730 - Alquiler y arrendamiento de otros tipos de maquinaria, equipo y bienes tangibles n.c.p."]
[null,null,null,null,null,"N7740 - Arrendamiento de propiedad intelectual y productos similares, excepto obras protegidas por derechos de autor"]
[null,null,null,null,null,"N7810 - Actividades de agencias de empleo"]
[null,null,null,null,null,"N7820 - Actividades de agencias de empleo temporal"]
[null,null,null,null,null,"N7830 - Otras actividades de suministro de recurso humano"]
[null,null,null,null,null,"N7911 - Actividades de las agencias de viaje"]
[null,null,null,null,null,"N7912 - Actividades de operadores turísticos"]
[null,null,null,null,null,"N7990 - Otros servicios de reserva y actividades relacionadas"]
[null,null,null,null,null,"N8010 - Actividades de seguridad privada"]
[null,null,null,null,null,"N8020 - Actividades de servicios de sistemas de seguridad"]
[null,null,null,null,null,"N8030 - Actividades de detectives e investigadores privados"]
[null,null,null,null,null,"N8110 - Actividades combinadas de apoyo a instalaciones"]
[null,null,null,null,null,"N8121 - Limpieza general interior de edificios"]
[null,null,null,null,null,"N8129 - Otras actividades de limpieza de edificios e instalaciones industriales"]
[null,null,null,null,null,"N8130 - Actividades de paisajismo y servicios de mantenimiento conexos"]
[null,null,null,null,null,"N8211 - Actividades combinadas de servicios administrativos de oficina"]
[null,null,null,null,null,"N8219 - Fotocopiado, preparación de documentos y otras actividades especializadas de apoyo a oficina"]
[null,null,null,null,null,"N8220 - Actividades de centros de llamadas (Call center)"]
[null,null,null,null,null,"N8230 - Organización de convenciones y eventos comerciales"]
[null,null,null,null,null,"N8291 - Actividades de agencias de cobranza y oficinas de calificación crediticia"]
[null,null,null,null,null,"N8292 - Actividades de envase y empaque"]
[null,null,null,null,null,"N8299 - Otras actividades de servicio de apoyo a las empresas n.c.p."]
[null,null,null,null,null,"O8411 - Actividades legislativas de la administración pública"]
[null,null,null,null,null,"O8412 - Actividades ejecutivas de la administración pública"]
[null,null,null,null,null,"O8413 - Regulación de las actividades de organismos que prestan servicios de salud, educativos, culturales y otros servicios sociales, excepto servicios de seguridad social"]
[null,null,null,null,null,"O8414 - Actividades reguladoras y facilitadoras de la actividad económica"]
[null,null,null,null,null,"O8415 - Actividades de los otros órganos de control"]
[null,null,null,null,null,"O8421 - Relaciones exteriores"]
[null,null,null,null,null,"O8422 - Actividades de defensa"]
[null,null,null,null,null,"O8423 - Orden público y actividades de seguridad"]
[null,null,null,null,null,"O8424 - Administración de justicia"]
[null,null,null,null,null,"O8430 - Actividades de planes de seguridad social de afiliación obligatoria"]
[null,null,null,null,null,"P8511 - Educación de la primera infancia"]
[null,null,null,null,null,"P8512 - Educación preescolar"]
[null,null,null,null,null,"P8513 - Educación básica primaria"]
[null,null,null,null,null,"P8521 - Educación básica secundaria"]
[null,null,null,null,null,"P8522 - Educación media académica"]
[null,null,null,null,null,"P8523 - Educación media técnica y de formación laboral"]
[null,null,null,null,null,"P8530 - Establecimientos que combinan diferentes niveles de educación"]
[null,null,null,null,null,"P8541 - Educación técnica profesional"]
[null,null,null,null,null,"P8542 - Educación tecnológica"]
[null,null,null,null,null,"P8543 - Educación de instituciones universitarias o de escuelas tecnológicas"]
[null,null,null,null,null,"P8544 - Educación de universidades"]
[null,null,null,null,null,"P8551 - Formación académica no formal"]
[null,null,null,null,null,"P8552 - Enseñanza deportiva y recreativa"]
[null,null,null,null,null,"P8553 - Enseñanza cultural"]
[null,null,null,null,null,"P8559 - Otros tipos de educación n.c.p."]
[null,null,null,null,null,"P8560 - Actividades de apoyo a la educación"]
[null,null,null,null,null,"Q8610 - Actividades de hospitales y clínicas, con internación"]
[null,null,null,null,null,"Q8621 - Actividades de la práctica médica, sin internación"]
[null,null,null,null,null,"Q8622 - Actividades de la práctica odontológica"]
[null,null,null,null,null,"Q8691 - Actividades de apoyo diagnóstico"]
[null,null,null,null,null,"Q8692 - Actividades de apoyo terapéutico"]
[null,null,null,null,null,"Q8699 - Otras actividades de atención de la salud humana"]
[null,null,null,null,null,"Q8710 - Actividades de atención residencial medicalizada de tipo general"]
[null,null,null,null,null,"Q8720 - Actividades de atención residencial, para el cuidado de pacientes con retardo mental, enfermedad mental y consumo de sustancias psicoactivas"]
[null,null,null,null,null,"Q8730 - Actividades de atención en instituciones para el cuidado de personas mayores y/o discapacitadas"]
[null,null,null,null,null,"Q8790 - Otras actividades de atención en instituciones con alojamiento"]
[null,null,null,null,null,"Q8810 - Actividades de asistencia social sin alojamiento para personas mayores y discapacitadas"]
[null,null,null,null,null,"Q8890 - Otras actividades de asistencia social sin alojamiento"]
[null,null,null,null,null,"R9001 - Creación literaria"]
[null,null,null,null,null,"R9002 - Creación musical"]
[null,null,null,null,null,"R9003 - Creación teatral"]
[null,null,null,null,null,"R9004 - Creación audiovisual"]
[null,null,null,null,null,"R9005 - Artes plásticas y visuales"]
[null,null,null,null,null,"R9006 - Actividades teatrales"]
[null,null,null,null,null,"R9007 - Actividades de espectáculos musicales en vivo"]
[null,null,null,null,null,"R9008 - Otras actividades de espectáculos en vivo"]
[null,null,null,null,null,"R9101 - Actividades de bibliotecas y archivos"]
[null,null,null,null,null,"R9102 - Actividades y funcionamiento de museos, conservación de edificios y sitios históricos"]
[null,null,null,null,null,"R9103 - Actividades de jardines botánicos, zoológicos y reservas naturales"]
[null,null,null,null,null,"R9200 - Actividades de juegos de azar y apuestas"]
[null,null,null,null,null,"R9311 - Gestión de instalaciones deportivas"]
[null,null,null,null,null,"R9312 - Actividades de clubes deportivos"]
[null,null,null,null,null,"R9319 - Otras actividades deportivas"]
[null,null,null,null,null,"R9321 - Actividades de parques de atracciones y parques temáticos"]
[null,null,null,null,null,"R9329 - Otras actividades recreativas y de esparcimiento n.c.p."]
[null,null,null,null,null,"S9411 - Actividades de asociaciones empresariales y de empleadores"]
[null,null,null,null,null,"S9412 - Actividades de asociaciones profesionales"]
[null,null,null,null,null,"S9420 - Actividades de sindicatos de empleados"]
[null,null,null,null,null,"S9491 - Actividades de asociaciones religiosas"]
[null,null,null,null,null,"S9492 - Actividades de asociaciones políticas"]
[null,null,null,null,null,"S9499 - Actividades de otras asociaciones n.c.p."]
[null,null,null,null,null,"S9511 - Mantenimiento y reparación de computadores y de equipo periférico"]
[null,null,null,null,null,"S9512 - Mantenimiento y reparación de equipos de comunicación"]
[null,null,null,null,null,"S9521 - Mantenimiento y reparación de aparatos electrónicos de consumo"]
[null,null,null,null,null,"S9522 - Mantenimiento y reparación de aparatos y equipos domésticos y de jardinería"]
[null,null,null,null,null,"S9523 - Reparación de calzado y artículos de cuero"]
[null,null,null,null,null,"S9524 - Reparación de muebles y accesorios para el hogar"]
[null,null,null,null,null,"S9529 - Mantenimiento y reparación de otros efectos personales y enseres domésticos"]
[null,null,null,null,null,"S9601 - Lavado y limpieza, incluso la limpieza en seco, de productos textiles y de piel"]
[null,null,null,null,null,"S9602 - Peluquería y otros tratamientos de belleza"]
[null,null,null,null,null,"S9603 - Pompas fúnebres y actividades relacionadas"]
[null,null,null,null,null,"S9609 - Otras actividades de servicios personales n.c.p."]
[null,null,null,null,null,"T9700 - Actividades de los hogares individuales como empleadores de personal doméstico"]
[null,null,null,null,null,"T9810 - Actividades no diferenciadas de los hogares individuales como productores de bienes para uso propio"]
[null,null,null,null,null,"T9820 - Actividades no diferenciadas de los hogares individuales como productores de servicios para uso propio"]
[null,null,null,null,null,"U9900 - Actividades de organizaciones y entidades extraterritoriales"]

{"sheet":"210000 - Est. Situa. Financiera","index":9,"n_rows":76,"n_cols":14,"rows_kept":76,"cut":false,"hidden":false,"merged":[[7,4,7,10],[12,8,12,9]]}
[]
[]
[]
[]
[]
[]
[]
[null,null,null,null,"210000 - ESTADO DE SITUACIÓN FINANCIERA"]
[]
[]
[]
[null,null,null,null,null,1,2]
[null,null,null,null,null,{"$f":"Periodos!C4","v":"2020-12-31"},{"$f":"Periodos!D4","v":"2019-12-31"},null,{"$f":"IF(N13=0,\"Formulario 'Estado de Situación Financiera' Válido\",\"Formulario 'Estado de Situación Financiera' con \"&N13&\" inconsistencias\")","v":"Formulario 'Estado de Situación Financiera' con 5 inconsistencias"},null,null,null,null,{"$f":"SUM(M14:N72)","v":5}]
[null,null,1,"co-svsp-core-g3:EstadoDeSituacionFinancieraTitulo","Estado de situación financiera [resumen]",null,null,null,null,null,null,null,{"$f":"IF(F75=\"CORRECTO\",0,1)","v":1},{"$f":"IF(G75=\"CORRECTO\",0,1)","v":0}]
[null,null,1,"co-svsp-core-g3:ActivosTitulo","Activos [resumen]"]
[null,null,1,"co-svsp-core-g3:ActivosCorrientesTitulo","Activos corrientes [resumen]"]
[null,null,1,"co-svsp-core-g3:EfectivoYEquivalentesAlEfectivo","Efectivo y equivalentes al efectivo"]
[null,null,1,"co-svsp-core-g3:CuentasComercialesPorCobrarYOtrasCuentasPorCobrarCorrientes","Cuentas comerciales por cobrar y otras cuentas por cobrar corrientes"]
[null,null,1,"co-svsp-core-g3:InventariosCorrientes","Inventarios corrientes"]
[null,null,1,"co-svsp-core-g3:ActivosPorImpuestosCorrientesCorriente","Activos por impuestos corrientes, corriente"]
[null,null,1,"co-svsp-core-g3:InversionesCorrientes","Inversiones corrientes"]
[null,null,1,"co-svsp-core-g3:OtrosActivosCorrientes","Otros activos corrientes"]
[null,null,1,"co-svsp-core-g3:ActivosCorrientes","Activos corrientes totales",{"$f":"IF(SUM(F17:F22)=0,\"\",SUM(F17:F22))","v":""},{"$f":"IF(AND(G17=\"\",SUM(G17:G22)=0),\"\",SUM(G17:G22))","v":""}]
[null,null,1,"co-svsp-core-g3:ActivosNoCorrientesTitulo","Activos no corrientes [resumen]"]
[null,null,1,"co-svsp-core-g3:PropiedadesDeInversion","Propiedad de inversión"]
[null,null,1,"co-svsp-core-g3:PropiedadesPlantaYEquipo","Propiedades, planta y equipo"]
[null,null,1,"co-svsp-core-g3:Plusvalia","Plusvalía"]
[null,null,1,"co-svsp-core-g3:InversionesNoCorrientes","Inversiones no corrientes"]
[null,null,1,"co-svsp-core-g3:CuentasComercialesPorCobrarYOtrasCuentasPorCobrarNoCorrientes","Cuentas comerciales por cobrar y otras cuentas por cobrar no corrientes"]
[null,null,1,"co-svsp-core-g3:DeterioroCuentasPorCobrar","Deterioro cuentas por cobrar"]
[null,null,1,"co-svsp-core-g3:InventariosNoCorrientes","Inventarios no corrientes"]
[null,null,1,"co-svsp-core-g3:ActivosPorImpuestosDiferidos","Activos por impuestos diferidos"]
[null,null,1,"co-svsp-core-g3:ActivosPorImpuestosCorrientesNoCorriente","Activos por impuestos corrientes, no corriente"]
[null,null,1,"co-svsp-core-g3:OtrosActivosCorrientesNoCorrientes","Otros activos corrientes no corrientes"]
[null,null,1,"co-svsp-core-g3:ActivosNoCorrientes","Total de activos no corrientes",{"$f":"IF((SUM(F25:F29)-F30+SUM(F31:F34))=0,\"\",(SUM(F25:F29)-F30+SUM(F31:F34)))","v":""},{"$f":"IF((SUM(G25:G29)-G30+SUM(G31:G34))=0,\"\",(SUM(G25:G29)-G30+SUM(G31:G34)))","v":""}]
[null,null,1,"co-svsp-core-g3:Activos","Total de activos",{"$f":"IF((SUM(F17:F22)+SUM(F25:F29)-F30+SUM(F31:F34))=0,\"\",(SUM(F17:F22)+SUM(F25:F29)-F30+SUM(F31:F34)))","v":""},{"$f":"SUM(G17:G22)+SUM(G25:G29)-G30+SUM(G31:G34)","v":0},null,{"$f":"IF(F36<>\"\",\"CORRECTO\",\"Debe registrar información para '\"&E36&\"' en la columna correspondiente al periodo actual.\")","v":"Debe registrar información para 'Total de activos' en la columna correspondiente al periodo actual."},{"$f":"IF(G36<>\"\",\"CORRECTO\",\"Debe registrar información para '\"&E36&\"'  en la columna correspondiente al periodo anterior. En caso de que la empresa haya sido constituida el mismo año de la fecha de corte, registre cero en '\"&E17&\"'. (Celda F14)\")","v":"CORRECTO"},null,null,{"$f":"IF(I36=\"CORRECTO\",0,1)","v":1},0]
[null,null,1,"co-svsp-core-g3:PatrimonioYPasivosTitulo","Patrimonio y pasivos [resumen]"]
[null,null,1,"co-svsp-core-g3:PasivosTitulo","Pasivos [resumen]"]
[null,null,1,"co-svsp-core-g3:PasivosCorrientesTitulo","Pasivos corrientes [resumen]"]
[null,null,1,"co-svsp-core-g3:AcreedoresComercialesYOtrasCuentasPorPagarCorrientes","Acreedores comerciales y otras cuentas por pagar corrientes"]
[null,null,1,"co-svsp-core-g3:ProveedoresCorrientes","Proveedores corrientes"]
[null,null,1,"co-svsp-core-g3:IngresosDiferidosCorrientes","Ingresos diferidos corrientes"]
[null,null,1,"co-svsp-core-g3:GastosAcumuladosPorPagarCorrientes","Gastos acumulados por pagar corrientes"]
[null,null,1,"co-svsp-core-g3:OtrasCuentasPorPagarCorrientes","Otras cuentas por pagar corrientes"]
[null,null,1,"co-svsp-core-g3:ObligacionesFinancierasCorrientes","Obligaciones financieras corrientes"]
[null,null,1,"co-svsp-core-g3:ObligacionesLaboralesCorrientes","Obligaciones laborales corrientes"]
[null,null,1,"co-svsp-core-g3:PasivosPorImpuestosCorrientes","Pasivos por impuestos corrientes"]
[null,null,1,"co-svsp-core-g3:ProvisionesCorrientes","Provisiones corrientes"]
[null,null,1,"co-svsp-core-g3:OtrosPasivosCorrientes","Otros pasivos corrientes"]
[null,null,1,"co-svsp-core-g3:PasivosCorrientes","Pasivos corrientes totales",{"$f":"IF(SUM(F40:F49)=0,\"\",SUM(F40:F49))","v":""},{"$f":"IF(AND(G40=\"\",SUM(G40:G49)=0),\"\",SUM(G40:G49))","v":""}]
[null,null,1,"co-svsp-core-g3:PasivosNoCorrientesTitulo","Pasivos no corrientes [resumen]"]
[null,null,1,"co-svsp-core-g3:AcreedoresComercialesYOtrasCuentasPorPagarNoCorrientes","Acreedores comerciales y otras cuentas por pagar no corrientes"]
[null,null,1,"co-svsp-core-g3:ProveedoresNoCorrientes","Proveedores no corrientes"]
[null,null,1,"co-svsp-core-g3:IngresosDiferidosNoCorrientes","Ingresos diferidos no corrientes"]
[null,null,1,"co-svsp-core-g3:GastosAcumuladosPorPagarNoCorrientes","Gastos acumulados por pagar no corrientes"]
[null,null,1,"co-svsp-core-g3:OtrasCuentasPorPagarNoCorrientes","Otras cuentas por pagar no corrientes"]
[null,null,1,"co-svsp-core-g3:ObligacionesFinancierasNoCorrientes","Obligaciones financieras no corrientes"]
[null,null,1,"co-svsp-core-g3:ObligacionesLaboralesNoCorrientes","Obligaciones laborales no corrientes"]
[null,null,1,"co-svsp-core-g3:PasivosPorImpuestosDiferidos","Pasivos por impuestos diferidos"]
[null,null,1,"co-svsp-core-g3:PasivosPorImpuestosNoCorrientes","Pasivos por impuestos no corrientes"]
[null,null,1,"co-svsp-core-g3:ProvisionesNoCorrientes","Provisiones no corrientes"]
[null,null,1,"co-svsp-core-g3:OtrosPasivosNoCorrientes","Otros pasivos no corrientes"]
[null,null,1,"co-svsp-core-g3:PasivosNoCorrientes","Total de pasivos no corrientes",{"$f":"IF((SUM(F52:F62))=0,\"\",(SUM(F52:F62)))","v":""},{"$f":"IF((SUM(G52:G62))=0,\"\",(SUM(G52:G62)))","v":""}]
[null,null,1,"co-svsp-core-g3:Pasivos","Total pasivos",{"$f":"IF((SUM(F40:F49)+SUM(F52:F62))=0,\"\",(SUM(F40:F49)+SUM(F52:F62)))","v":""},{"$f":"SUM(G40:G49)+SUM(G52:G62)","v":0},null,{"$f":"IF(F64<>\"\",\"CORRECTO\",\"Debe registrar información para '\"&E64&\"' en la columna correspondiente al periodo actual.\")","v":"Debe registrar información para 'Total pasivos' en la columna correspondiente al periodo actual."},{"$f":"IF(G64<>\"\",\"CORRECTO\",\"Debe registrar información para '\"&E64&\"'  en la columna correspondiente al periodo anterior. En caso de que la empresa haya sido constituida el mismo año de la fecha de corte, registre cero en '\"&E40&\"'. (Celda F37)\")","v":"CORRECTO"},null,null,{"$f":"IF(I64=\"CORRECTO\",0,1)","v":1},0]
[null,null,1,"co-svsp-core-g3:PatrimonioTitulo","Patrimonio [resumen]"]
[null,null,1,"co-svsp-core-g3:CapitalEmitido","Capital emitido"]
[null,null,1,"co-svsp-core-g3:UtilidadOPerdidaDelEjercicio","Utilidad o perdida del ejercicio"]
[null,null,1,"co-svsp-core-g3:GananciasAcumuladas","Ganancias acumuladas"]
[null,null,1,"co-svsp-core-g3:Reservas","Reservas"]
[null,null,1,"co-svsp-core-g3:OtrosComponentesDelPatrimonio","Otros componentes del patrimonio"]
[null,null,1,"co-svsp-core-g3:Patrimonio","Patrimonio total",{"$f":"IF((SUM(F66:F70))=0,\"\",(SUM(F66:F70)))","v":""},{"$f":"SUM(G66:G70)","v":0},null,{"$f":"IF(F71<>\"\",\"CORRECTO\",\"Debe registrar información para '\"&E71&\"' en la columna correspondiente al periodo actual.\")","v":"Debe registrar información para 'Patrimonio total' en la columna correspondiente al periodo actual."},{"$f":"IF(G71<>\"\",\"CORRECTO\",\"Debe registrar información para '\"&E71&\"'  en la columna correspondiente al periodo anterior. En caso de que la empresa haya sido constituida el mismo año de la fecha de corte, registre cero en '\"&E66&\"'. (Celda F63)\")","v":"CORRECTO"},null,null,{"$f":"IF(I71=\"CORRECTO\",0,1)","v":1},0]
[null,null,1,"co-svsp-core-g3:PatrimonioYPasivos","Total de patrimonio y pasivos",{"$f":"IF((SUM(F40:F49)+SUM(F52:F62)+SUM(F66:F70))=0,\"\",(SUM(F40:F49)+SUM(F52:F62)+SUM(F66:F70)))","v":""},{"$f":"SUM(G40:G49)+SUM(G52:G62)+SUM(G66:G70)","v":0},null,{"$f":"IF(F72<>\"\",\"CORRECTO\",\"Debe registrar información para '\"&E72&\"' en la columna correspondiente al periodo actual.\")","v":"Debe registrar información para 'Total de patrimonio y pasivos' en la columna correspondiente al periodo actual."},{"$f":"IF(G72<>\"\",\"CORRECTO\",\"Debe registrar información para '\"&E72&\"'  en la columna correspondiente al periodo anterior.\")","v":"CORRECTO"},null,null,1,0]
[]
[]
[null,null,null,null,"Cumplimiento de la Ecuación contable",{"$f":"IF(F76=0,\"CORRECTO\",\"INCORRECTO\")","v":"INCORRECTO"},{"$f":"IF(G76=0,\"CORRECTO\",\"INCORRECTO\")","v":"CORRECTO"}]
[null,null,null,null,"Diferencia entre Activo y Pasivo + Patrimonio",{"$f":"IFERROR(+F36-F72,\"Registre valor en Total Activos y en Total Patrimonio y pasivos\")","v":"Registre valor en Total Activos y en Total Patrimonio y pasivos"},{"$f":"IFERROR(+G36-G72,\"Registre valor en Total Activos y en Total Patrimonio y pasivos\")","v":0}]

{"sheet":"310000 - Est. Resultados","index":10,"n_rows":28,"n_cols":16,"rows_kept":28,"cut":false,"hidden":false,"merged":[[7,4,7,9],[12,8,12,9]]}
[]
[]
[]
[]
[]
[]
[]
[null,null,null,null,"310000 - ESTADO DE RESULTADOS"]
[]
[]
[]
[null,null,null,null,null,1,2]
[null,null,null,null,null,{"$f":"Periodos!C4","v":"2020-12-31"},{"$f":"Periodos!D4","v":"2019-12-31"},null,{"$f":"IF(P13=0,\"Formulario 'Estado de Resultados' Válido\",\"Formulario 'Estado de Resultados' con \"&P13&\" inconsistencias\")","v":"Formulario 'Estado de Resultados' con 4 inconsistencias"},null,null,null,null,null,null,{"$f":"SUM(O16:P28)","v":4}]
[null,null,0,"co-svsp-core-g3:ResultadoDelPeriodoTitulo","Resultado de periodo [resumen]"]
[null,null,0,"co-svsp-core-g3:GananciaPerdidaTitulo","Ganancia (pérdida) [resumen]"]
[null,null,0,"co-svsp-core-g3:IngresosDeActividadesOrdinarias","Ingresos de actividades ordinarias",null,null,null,{"$f":"IF(F16<>\"\",\"CORRECTO\",\"Debe registrar información para '\"&E16&\"' en la columna correspondiente al periodo actual.\")","v":"Debe registrar información para 'Ingresos de actividades ordinarias' en la columna correspondiente al periodo actual."},{"$f":"IF(G16<>\"\",\"CORRECTO\",\"Debe registrar información para '\"&E16&\"'  en la columna correspondiente al periodo anterior.\")","v":"Debe registrar información para 'Ingresos de actividades ordinarias'  en la columna correspondiente al periodo anterior."},null,null,null,null,{"$f":"IF(I16=\"CORRECTO\",0,1)","v":1},1]
[null,null,0,"co-svsp-core-g3:CostoDeVentas","Costo de ventas",null,null,null,{"$f":"IF(F17<>\"\",\"CORRECTO\",\"Debe registrar información para '\"&E17&\"' en la columna correspondiente al periodo actual.\")","v":"Debe registrar información para 'Costo de ventas' en la columna correspondiente al periodo actual."},{"$f":"IF(G17<>\"\",\"CORRECTO\",\"Debe registrar información para '\"&E17&\"'  en la columna correspondiente al periodo anterior.\")","v":"Debe registrar información para 'Costo de ventas'  en la columna correspondiente al periodo anterior."},null,null,null,null,1,1]
[null,null,0,"co-svsp-core-g3:GananciaBruta","Ganancia bruta",{"$f":"F16-F17","v":0},{"$f":"G16-G17","v":0},null,{"$f":"IF(F18<>\"\",\"CORRECTO\",\"Debe registrar información para '\"&E18&\"' en la columna correspondiente al periodo actual.\")","v":"CORRECTO"},{"$f":"IF(G18<>\"\",\"CORRECTO\",\"Debe registrar información para '\"&E18&\"'  en la columna correspondiente al periodo anterior.\")","v":"CORRECTO"},null,null,null,null,0,0]
[null,null,0,"co-svsp-core-g3:OtrosIngresos","Otros ingresos"]
[null,null,0,"co-svsp-core-g3:CostosDeDistribucion","Costos de distribución"]
[null,null,0,"co-svsp-core-g3:GastosDeAdministracion","Gastos de administración"]
[null,null,0,"co-svsp-core-g3:OtrosGastos","Otros gastos"]
[null,null,0,"co-svsp-core-g3:OtrasGananciasPerdidas","Otras ganancias (pérdidas)"]
[null,null,0,"co-svsp-core-g3:CostosFinancieros","Costos financieros"]
[null,null,0,"co-svsp-core-g3:IngresosFinancieros","Ingresos financieros"]
[null,null,0,"co-svsp-core-g3:GananciaPerdidaAntesDeImpuestos","Ganancia (pérdida), antes de impuestos",{"$f":"F18+F19-F20-F21-F22+F23-F24+F25","v":0},{"$f":"G18+G19-G20-G21-G22+G23-G24+G25","v":0},null,{"$f":"IF(F26<>\"\",\"CORRECTO\",\"Debe registrar información para '\"&E26&\"' en la columna correspondiente al periodo actual.\")","v":"CORRECTO"},{"$f":"IF(G26<>\"\",\"CORRECTO\",\"Debe registrar información para '\"&E26&\"'  en la columna correspondiente al periodo anterior.\")","v":"CORRECTO"},null,null,null,null,{"$f":"IF(I26=\"CORRECTO\",0,1)","v":0},{"$f":"IF(J26=\"CORRECTO\",0,1)","v":0}]
[null,null,0,"co-svsp-core-g3:IngresoGastoPorImpuestoSobreRenta","Ingreso (gasto) por impuesto sobre la renta"]
[null,null,0,"co-svsp-core-g3:GananciaPerdida","Ganancia (pérdida)",{"$f":"F26+F27","v":0},{"$f":"G26+G27","v":0},null,{"$f":"IF(F28<>\"\",\"CORRECTO\",\"Debe registrar información para '\"&E28&\"' en la columna correspondiente al periodo actual.\")","v":"CORRECTO"},{"$f":"IF(G28<>\"\",\"CORRECTO\",\"Debe registrar información para '\"&E28&\"'  en la columna correspondiente al periodo anterior.\")","v":"CORRECTO"},null,null,null,null,{"$f":"IF(I28=\"CORRECTO\",0,1)","v":0},{"$f":"IF(J28=\"CORRECTO\",0,1)","v":0}]

{"sheet":"Anotaciones","index":11,"n_rows":8,"n_cols":3,"rows_kept":8,"cut":false,"hidden":false,"merged":[[4,2,4,9],[7,2,7,9]]}
[]
[]
[]
[]
[null,null,"ANOTACIONES"]
[]
[]
[null,null,"Esta hoja tiene por propósito que el usuario final, quien diligencia la información, pueda tomar las anotaciones que considere convenientes mientras diligencia la información y genera la plantilla. El contenido de esta hoja NO se utilizará al momento de generar el archivo .xbrl que será remitido a la Superintendencia de Vigilancia y Seguridad Privada."]